Body Name,Transaction Number,Account Code,Expenses Type,Service Code,Service Area Categorisation,Supplier Name,Date,Amount
Bath and North East Somerset Council,10584511,LH2,Advertising,C06,Service Delivery,NORTHCLIFFE MEDIA LTD,01/12/2010,469.74
Bath and North East Somerset Council,10585537,LH2,Advertising,C06,Service Delivery,NORTHCLIFFE MEDIA LTD,07/12/2010,469.74
Bath and North East Somerset Council,10587977,LH2,Advertising,C06,Service Delivery,NORTHCLIFFE MEDIA LTD,22/12/2010,469.74
Bath and North East Somerset Council,10583379,LH2,Advertising,C02,Resources,SMILE PUBLISHING LTD,10/12/2010,495
Bath and North East Somerset Council,10584942,LH2,Advertising,C03,Adult Social Services & Housing,GLOBAL RADIO SERVICES LIMITED,06/12/2010,558.94
Bath and North East Somerset Council,10587229,LH2,Advertising,C06,Service Delivery,NORTHCLIFFE MEDIA LTD,17/12/2010,571.06
Bath and North East Somerset Council,10588488,LH2,Advertising,C06,Service Delivery,NORTHCLIFFE MEDIA LTD,23/12/2010,782.9
Bath and North East Somerset Council,10586058,LH2,Advertising,C03,Adult Social Services & Housing,GLOBAL RADIO SERVICES LIMITED,14/12/2010,839.54
Bath and North East Somerset Council,10586714,LH2,Advertising,C06,Service Delivery,TRIBAL RESOURCING LTD,24/12/2010,920.82
Bath and North East Somerset Council,10585146,LH2,Advertising,C06,Service Delivery,TRIBAL RESOURCING LTD,15/12/2010,949.44
Bath and North East Somerset Council,10581800,LH2,Advertising,C05,Children's Services,ADVERTISING GIFT CONSULTANCY,08/12/2010,1430
Bath and North East Somerset Council,10586361,LH2,Advertising,Z98,West of England Partnership,TMP (UK) LTD,10/12/2010,1491.32
Bath and North East Somerset Council,10586362,LH2,Advertising,Z98,West of England Partnership,TMP (UK) LTD,10/12/2010,2050.7
Bath and North East Somerset Council,10587456,DB1,Agency Staff,C03,Adult Social Services & Housing,REDACTED,17/12/2010,145.8
Bath and North East Somerset Council,10587456,DB1,Agency Staff,C03,Adult Social Services & Housing,REDACTED,17/12/2010,145.8
Bath and North East Somerset Council,10586130,DB1,Agency Staff,C06,Service Delivery,REDACTED,15/12/2010,160
Bath and North East Somerset Council,10586962,DB1,Agency Staff,C03,Adult Social Services & Housing,REDACTED,17/12/2010,243
Bath and North East Somerset Council,10587456,DB1,Agency Staff,C03,Adult Social Services & Housing,REDACTED,17/12/2010,279.45
Bath and North East Somerset Council,10586962,DB1,Agency Staff,C03,Adult Social Services & Housing,REDACTED,17/12/2010,291.6
Bath and North East Somerset Council,10586130,DB1,Agency Staff,C06,Service Delivery,REDACTED,15/12/2010,400
Bath and North East Somerset Council,10586130,DB1,Agency Staff,C06,Service Delivery,REDACTED,15/12/2010,400
Bath and North East Somerset Council,10586101,DB1,Agency Staff,C03,Adult Social Services & Housing,REDACTED,10/12/2010,415.54
Bath and North East Somerset Council,10586101,DB1,Agency Staff,C03,Adult Social Services & Housing,REDACTED,10/12/2010,583.2
Bath and North East Somerset Council,10585471,DB1,Agency Staff,C03,Adult Social Services & Housing,REDACTED,08/12/2010,729
Bath and North East Somerset Council,10586101,DB1,Agency Staff,C03,Adult Social Services & Housing,REDACTED,10/12/2010,777.6
Bath and North East Somerset Council,10584521,DB1,Agency Staff,C04,Development & Major Projects,REDACTED,08/12/2010,1996.5
Bath and North East Somerset Council,10586829,DB1,Agency Staff,C04,Development & Major Projects,REDACTED,20/12/2010,2088.9
Bath and North East Somerset Council,10585276,DB1,Agency Staff,C06,Service Delivery,REDACTED,08/12/2010,2185
Bath and North East Somerset Council,10584065,DB1,Agency Staff,C03,Adult Social Services & Housing,PIERS MEADOWS RECRUITMENT LTD,08/12/2010,7.83
Bath and North East Somerset Council,10586448,DB1,Agency Staff,C06,Service Delivery,MINIBUS TRAVEL,14/12/2010,165
Bath and North East Somerset Council,10587874,DB1,Agency Staff,C06,Service Delivery,MINIBUS TRAVEL,20/12/2010,165
Bath and North East Somerset Council,10586876,DB1,Agency Staff,C06,Service Delivery,RANDSTAD,17/12/2010,432.82
Bath and North East Somerset Council,10585774,DB1,Agency Staff,C06,Service Delivery,RS SECURITY LTD,10/12/2010,476
Bath and North East Somerset Council,10585779,DB1,Agency Staff,C06,Service Delivery,RS SECURITY LTD,08/12/2010,476
Bath and North East Somerset Council,10587882,DB1,Agency Staff,C02,Resources,BUILDING RECRUITMENT COMPANY L,24/12/2010,482.81
Bath and North East Somerset Council,10586472,DB1,Agency Staff,C04,Development & Major Projects,APPOINT PERSONNEL LIMITED,16/12/2010,495.2
Bath and North East Somerset Council,10584526,DB1,Agency Staff,C04,Development & Major Projects,APPOINT PERSONNEL LIMITED,02/12/2010,499.44
Bath and North East Somerset Council,10586720,DB1,Agency Staff,C02,Resources,CATERING SERVICES INT LTD,17/12/2010,501
Bath and North East Somerset Council,10583222,DB1,Agency Staff,C06,Service Delivery,MITIE SECURITY LTD,08/12/2010,504.13
Bath and North East Somerset Council,10585744,DB1,Agency Staff,C06,Service Delivery,RANDSTAD,17/12/2010,516.8
Bath and North East Somerset Council,10585481,DB1,Agency Staff,C03,Adult Social Services & Housing,SERVOCA NURSING & CARE LIMITED,09/12/2010,517.66
Bath and North East Somerset Council,10587622,DB1,Agency Staff,C06,Service Delivery,IAYAZ CONSULTING ENGINEERS LTD,20/12/2010,520
Bath and North East Somerset Council,10585024,DB1,Agency Staff,C05,Children's Services,ROYAL UNITED HOSPITAL NHS TRUST,20/12/2010,542.1
Bath and North East Somerset Council,10588603,DB1,Agency Staff,C04,Development & Major Projects,APPOINT PERSONNEL LIMITED,29/12/2010,545.99
Bath and North East Somerset Council,10585949,DB1,Agency Staff,C02,Resources,BUILDING RECRUITMENT COMPANY L,24/12/2010,566.5
Bath and North East Somerset Council,10587006,DB1,Agency Staff,C06,Service Delivery,SOMERSET TRANSPORT SERVICES LTD,15/12/2010,574
Bath and North East Somerset Council,10588671,DB1,Agency Staff,C06,Service Delivery,RS SECURITY LTD,31/12/2010,574
Bath and North East Somerset Council,10583775,DB1,Agency Staff,C02,Resources,MORGAN HUNT PUBLIC SECTOR LIMITED,01/12/2010,585
Bath and North East Somerset Council,10586557,DB1,Agency Staff,C02,Resources,MERIDIAN BUSINESS SUPPORT LTD,17/12/2010,613.3
Bath and North East Somerset Council,10584283,DB1,Agency Staff,C03,Adult Social Services & Housing,RIG MEDICAL RECRUIT LTD,09/12/2010,619.5
Bath and North East Somerset Council,10584908,DB1,Agency Staff,C03,Adult Social Services & Housing,RIG MEDICAL RECRUIT LTD,09/12/2010,619.5
Bath and North East Somerset Council,10582095,DB1,Agency Staff,C06,Service Delivery,RANDSTAD,07/12/2010,620.16
Bath and North East Somerset Council,10585113,DB1,Agency Staff,C06,Service Delivery,RANDSTAD,06/12/2010,620.16
Bath and North East Somerset Council,10585743,DB1,Agency Staff,C06,Service Delivery,RANDSTAD,17/12/2010,620.16
Bath and North East Somerset Council,10584906,DB1,Agency Staff,C02,Resources,MERIDIAN BUSINESS SUPPORT LTD,03/12/2010,623.04
Bath and North East Somerset Council,10587369,DB1,Agency Staff,C02,Resources,MORGAN HUNT PUBLIC SECTOR LIMITED,17/12/2010,635
Bath and North East Somerset Council,10588393,DB1,Agency Staff,C06,Service Delivery,RS SECURITY LTD,24/12/2010,637
Bath and North East Somerset Council,10584895,DB1,Agency Staff,C02,Resources,BUILDING RECRUITMENT COMPANY L,20/12/2010,669.5
Bath and North East Somerset Council,10586684,DB1,Agency Staff,C02,Resources,CATERING SERVICES INT LTD,17/12/2010,678
Bath and North East Somerset Council,10587366,DB1,Agency Staff,C02,Resources,MORGAN HUNT PUBLIC SECTOR LIMITED,20/12/2010,680
Bath and North East Somerset Council,10587623,DB1,Agency Staff,C06,Service Delivery,M WIDDOWSON LTD,20/12/2010,704.25
Bath and North East Somerset Council,10588373,DB1,Agency Staff,C02,Resources,MORGAN HUNT PUBLIC SECTOR LIMITED,23/12/2010,710
Bath and North East Somerset Council,10588372,DB1,Agency Staff,C02,Resources,MORGAN HUNT PUBLIC SECTOR LIMITED,23/12/2010,725
Bath and North East Somerset Council,10583776,DB1,Agency Staff,C02,Resources,MORGAN HUNT PUBLIC SECTOR LIMITED,01/12/2010,740
Bath and North East Somerset Council,10583777,DB1,Agency Staff,C02,Resources,MORGAN HUNT PUBLIC SECTOR LIMITED,01/12/2010,740
Bath and North East Somerset Council,10587367,DB1,Agency Staff,C02,Resources,MORGAN HUNT PUBLIC SECTOR LIMITED,20/12/2010,740
Bath and North East Somerset Council,10587368,DB1,Agency Staff,C02,Resources,MORGAN HUNT PUBLIC SECTOR LIMITED,17/12/2010,740
Bath and North East Somerset Council,10587627,DB1,Agency Staff,C06,Service Delivery,IAYAZ CONSULTING ENGINEERS LTD,20/12/2010,747.5
Bath and North East Somerset Council,10587611,DB1,Agency Staff,C02,Resources,CDI ANDERSELITE LTD,17/12/2010,768.4
Bath and North East Somerset Council,10587076,DB1,Agency Staff,C02,Resources,MERIDIAN BUSINESS SUPPORT LTD,17/12/2010,769.07
Bath and North East Somerset Council,10588275,DB1,Agency Staff,C02,Resources,MERIDIAN BUSINESS SUPPORT LTD,23/12/2010,769.07
Bath and North East Somerset Council,10587609,DB1,Agency Staff,C02,Resources,CDI ANDERSELITE LTD,17/12/2010,836.2
Bath and North East Somerset Council,10587610,DB1,Agency Staff,C02,Resources,CDI ANDERSELITE LTD,17/12/2010,836.2
Bath and North East Somerset Council,10587624,DB1,Agency Staff,C06,Service Delivery,M WIDDOWSON LTD,20/12/2010,946.83
Bath and North East Somerset Council,10584561,DB1,Agency Staff,C06,Service Delivery,M WIDDOWSON LTD,01/12/2010,954.65
Bath and North East Somerset Council,10587621,DB1,Agency Staff,C06,Service Delivery,IAYAZ CONSULTING ENGINEERS LTD,20/12/2010,986.24
Bath and North East Somerset Council,10587626,DB1,Agency Staff,C06,Service Delivery,C R DAWSON LTD,20/12/2010,1057.05
Bath and North East Somerset Council,10587911,DB1,Agency Staff,C06,Service Delivery,MITIE SECURITY LTD,24/12/2010,1093.63
Bath and North East Somerset Council,10584065,DB1,Agency Staff,C03,Adult Social Services & Housing,PIERS MEADOWS RECRUITMENT LTD,08/12/2010,1104.68
Bath and North East Somerset Council,10587033,DB1,Agency Staff,C02,Resources,WATSON  LTD SETSQUARE RECRUITMENT,15/12/2010,1180.09
Bath and North East Somerset Council,10585098,DB1,Agency Staff,C02,Resources,WATSON  LTD SETSQUARE RECRUITMENT,03/12/2010,1183.33
Bath and North East Somerset Council,10586464,DB1,Agency Staff,C02,Resources,WATSON  LTD SETSQUARE RECRUITMENT,13/12/2010,1184.62
Bath and North East Somerset Council,10588154,DB1,Agency Staff,C06,Service Delivery,IAYAZ CONSULTING ENGINEERS LTD,22/12/2010,1243.12
Bath and North East Somerset Council,10587625,DB1,Agency Staff,C06,Service Delivery,C R DAWSON LTD,20/12/2010,1247
Bath and North East Somerset Council,10587362,DB1,Agency Staff,C02,Resources,SERCO LTD,20/12/2010,1250
Bath and North East Somerset Council,10582933,DB1,Agency Staff,C03,Adult Social Services & Housing,RIG MEDICAL RECRUIT LTD,07/12/2010,1312.76
Bath and North East Somerset Council,10584560,DB1,Agency Staff,C06,Service Delivery,C R DAWSON LTD,01/12/2010,1508
Bath and North East Somerset Council,10587809,DB1,Agency Staff,C06,Service Delivery,S P WATKINS,24/12/2010,1743.75
Bath and North East Somerset Council,10585166,DB1,Agency Staff,C02,Resources,SFS SERVICES LTD,24/12/2010,1810.18
Bath and North East Somerset Council,10582889,DB1,Agency Staff,C06,Service Delivery,REDACTED,01/12/2010,1856.25
Bath and North East Somerset Council,10583930,DB1,Agency Staff,C06,Service Delivery,MOTT MACDONALD LIMITED,20/12/2010,2484.64
Bath and North East Somerset Council,10581718,DB1,Agency Staff,C03,Adult Social Services & Housing,BATH AND NORTH EAST SOMERSET PCT,07/12/2010,2712.14
Bath and North East Somerset Council,10587628,DB1,Agency Staff,C06,Service Delivery,S W PERRY LTD,20/12/2010,2946.05
Bath and North East Somerset Council,10587254,DB1,Agency Staff,C06,Service Delivery,NJH TRANSPORT CONSULTANTS LTD,22/12/2010,3861.8
Bath and North East Somerset Council,10584327,DB1,Agency Staff,C06,Service Delivery,NJH TRANSPORT CONSULTANTS LTD,07/12/2010,4798.3
Bath and North East Somerset Council,10588074,DB1,Agency Staff,C06,Service Delivery,AVON PERSONNEL SERVICES,22/12/2010,4859.2
Bath and North East Somerset Council,10588075,DB1,Agency Staff,C06,Service Delivery,AVON PERSONNEL SERVICES,22/12/2010,5688
Bath and North East Somerset Council,10587629,DB1,Agency Staff,C06,Service Delivery,CEEMA LTD,20/12/2010,6668.8
Bath and North East Somerset Council,10588015,DB1,Agency Staff,C04,Development & Major Projects,HAMMONDS PROJECT MANAGEMENT SERVICES LTD,23/12/2010,15887.5
Bath and North East Somerset Council,10585428,DB1,Agency Staff,C02,Resources,HAYS OFFICE SUPPORT,07/12/2010,99785.17
Bath and North East Somerset Council,10585290,LF3,Books & Publications,C05,Children's Services,RALPH ALLEN SCHOOL,24/12/2010,500
Bath and North East Somerset Council,10587168,3C1,Building Works,C06,Service Delivery,SCENA PROJECTS LTD,21/12/2010,435.2
Bath and North East Somerset Council,10587168,3C1,Building Works,C06,Service Delivery,SCENA PROJECTS LTD,21/12/2010,936.8
Bath and North East Somerset Council,10583131,3C1,Building Works,C06,Service Delivery,SCENA PROJECTS LTD,15/12/2010,1489
Bath and North East Somerset Council,10587169,3C1,Building Works,C06,Service Delivery,SCENA PROJECTS LTD,21/12/2010,3229
Bath and North East Somerset Council,10583131,3C1,Building Works,C06,Service Delivery,SCENA PROJECTS LTD,15/12/2010,5509
Bath and North East Somerset Council,10586225,3C1,Building Works,C06,Service Delivery,TECALEMIT GARAGE EQUIPMENT CO LTD,10/12/2010,60000
Bath and North East Somerset Council,10585810,LX6,Bus Revenue Support,C06,Service Delivery,FARESAVER,08/12/2010,865.83
Bath and North East Somerset Council,10588155,LX6,Bus Revenue Support,C06,Service Delivery,ABUS,22/12/2010,1494.05
Bath and North East Somerset Council,10586701,LX6,Bus Revenue Support,C06,Service Delivery,EUROTAXIS (BRISTOL) LTD,17/12/2010,2021.98
Bath and North East Somerset Council,10585808,LX6,Bus Revenue Support,C06,Service Delivery,FARESAVER,08/12/2010,3504.6
Bath and North East Somerset Council,10585811,LX6,Bus Revenue Support,C06,Service Delivery,SOMERBUS LTD,08/12/2010,4855.14
Bath and North East Somerset Council,10588155,LX6,Bus Revenue Support,C06,Service Delivery,ABUS,22/12/2010,8259.03
Bath and North East Somerset Council,10588153,LX6,Bus Revenue Support,C06,Service Delivery,CT COACHES,22/12/2010,9703.59
Bath and North East Somerset Council,10588683,LX6,Bus Revenue Support,C06,Service Delivery,WESSEX CONNECT,29/12/2010,24286.67
Bath and North East Somerset Council,10585471,KD2,Car Allowances/Mileage,C03,Adult Social Services & Housing,H M MORRIS,08/12/2010,117.45
Bath and North East Somerset Council,10588015,KD2,Car Allowances/Mileage,C04,Development & Major Projects,HAMMONDS PROJECT MANAGEMENT SERVICES LTD,23/12/2010,107.19
Bath and North East Somerset Council,10585202,HV4,Cleaning Materials,C03,Adult Social Services & Housing,GOMPELS HEALTHCARE LTD,06/12/2010,30.68
Bath and North East Somerset Council,10585477,HV4,Cleaning Materials,C03,Adult Social Services & Housing,GOMPELS HEALTHCARE LTD,13/12/2010,134.22
Bath and North East Somerset Council,10587312,HV4,Cleaning Materials,C03,Adult Social Services & Housing,GOMPELS HEALTHCARE LTD,16/12/2010,350.91
Bath and North East Somerset Council,10584891,HV4,Cleaning Materials,C02,Resources,DIRECT CLEANING SERVICES UK LTD,20/12/2010,912
Bath and North East Somerset Council,10586061,KE1,Clients & Service Users Public Transport,C03,Adult Social Services & Housing,BNES-MAPLE GROVE IMPREST ACCOUN,09/12/2010,8.2
Bath and North East Somerset Council,10584692,KE1,Clients & Service Users Public Transport,C03,Adult Social Services & Housing,MR T HILL & MRS H B HILL,16/12/2010,986
Bath and North East Somerset Council,10585644,KE1,Clients & Service Users Public Transport,C03,Adult Social Services & Housing,REDACTED,16/12/2010,638
Bath and North East Somerset Council,10587894,3R6,Compensation,C06,Service Delivery,LEON KENNEDY LTD,21/12/2010,120000
Bath and North East Somerset Council,10587026,LX5,Concessionary Fares,C06,Service Delivery,MIDSOMER NORTON & RADSTOCK RING & RIDE,16/12/2010,1816.5
Bath and North East Somerset Council,10582224,LW8,Conservation,C06,Service Delivery,SHEPHARD TRAVIS TCS LTD,07/12/2010,470
Bath and North East Somerset Council,10585654,LW8,Conservation,C06,Service Delivery,PROPORTION LONDON LTD,21/12/2010,555
Bath and North East Somerset Council,10587429,3J1,Consultants,C02,Resources,INTEGRA ASSOCIATES LTD,20/12/2010,690.01
Bath and North East Somerset Council,10587432,3J1,Consultants,C02,Resources,INTEGRA ASSOCIATES LTD,20/12/2010,1326.52
Bath and North East Somerset Council,10588522,3J1,Consultants,C02,Resources,INTEGRA ASSOCIATES LTD,24/12/2010,1327.76
Bath and North East Somerset Council,10586115,3J1,Consultants,C02,Resources,INTEGRA ASSOCIATES LTD,09/12/2010,1329.62
Bath and North East Somerset Council,10588520,3J1,Consultants,C02,Resources,INTEGRA ASSOCIATES LTD,24/12/2010,1344.77
Bath and North East Somerset Council,10587431,3J1,Consultants,C02,Resources,INTEGRA ASSOCIATES LTD,20/12/2010,1348.49
Bath and North East Somerset Council,10586116,3J1,Consultants,C02,Resources,INTEGRA ASSOCIATES LTD,09/12/2010,1359.57
Bath and North East Somerset Council,10587430,3J1,Consultants,C02,Resources,INTEGRA ASSOCIATES LTD,20/12/2010,1370
Bath and North East Somerset Council,10587433,3J1,Consultants,C02,Resources,INTEGRA ASSOCIATES LTD,20/12/2010,1384
Bath and North East Somerset Council,10588521,3J1,Consultants,C02,Resources,INTEGRA ASSOCIATES LTD,24/12/2010,1387.6
Bath and North East Somerset Council,10587837,LJ1,Consultants Fees,C06,Service Delivery,REDACTED,21/12/2010,1642.5
Bath and North East Somerset Council,10586896,LJ1,Consultants Fees,C03,Adult Social Services & Housing,REDACTED,16/12/2010,1833.35
Bath and North East Somerset Council,10587838,LJ1,Consultants Fees,C06,Service Delivery,REDACTED,20/12/2010,2047.5
Bath and North East Somerset Council,10587146,LJ1,Consultants Fees,Z98,West of England Partnership,REDACTED,21/12/2010,2103.75
Bath and North East Somerset Council,10585261,LJ1,Consultants Fees,C06,Service Delivery,JOANNA GREGSON,06/12/2010,643.5
Bath and North East Somerset Council,10584346,LJ1,Consultants Fees,C02,Resources,MR GRAHAM RUSSELL,15/12/2010,1832.75
Bath and North East Somerset Council,10585397,LJ1,Consultants Fees,C02,Resources,STEVE ASH,10/12/2010,2057
Bath and North East Somerset Council,10587975,LJ1,Consultants Fees,C06,Service Delivery,M EDWARDS,29/12/2010,3483.43
Bath and North East Somerset Council,10587875,LJ1,Consultants Fees,C05,Children's Services,BJB ASSOCIATES LTD,21/12/2010,3735
Bath and North East Somerset Council,10587232,LJ1,Consultants Fees,C06,Service Delivery,PLANNING SERVICES (UK) LTD,16/12/2010,4238
Bath and North East Somerset Council,10587233,LJ1,Consultants Fees,C06,Service Delivery,PLANNING SERVICES (UK) LTD,16/12/2010,4255
Bath and North East Somerset Council,10585939,LJ1,Consultants Fees,C02,Resources,MARTIN MILLMAN,13/12/2010,5000
Bath and North East Somerset Council,10587458,LJ1,Consultants Fees,C03,Adult Social Services & Housing,JACQUI BUFFTON LIMITED,17/12/2010,6750
Bath and North East Somerset Council,10584024,LJ1,Consultants Fees,C05,Children's Services,MRS JDM SHORT T/A INSPIR.ED,07/12/2010,7055
Bath and North East Somerset Council,10588487,LJ1,Consultants Fees,C06,Service Delivery,PLANNING SERVICES (UK) LTD,30/12/2010,8391
Bath and North East Somerset Council,10587955,LJ1,Consultants Fees,C06,Service Delivery,PLANNING SERVICES (UK) LTD,23/12/2010,8872.8
Bath and North East Somerset Council,10583829,LJ1,Consultants Fees,C06,Service Delivery,KINETICUS LIMITED,08/12/2010,290.4
Bath and North East Somerset Council,10587635,LJ1,Consultants Fees,C06,Service Delivery,KINETICUS LIMITED,21/12/2010,290.4
Bath and North East Somerset Council,10587680,LJ1,Consultants Fees,C06,Service Delivery,KINETICUS LIMITED,24/12/2010,294
Bath and North East Somerset Council,10587957,LJ1,Consultants Fees,C06,Service Delivery,URBAN AND RURAL PLANNING ASSOCIATES LTD,23/12/2010,348.03
Bath and North East Somerset Council,10587635,LJ1,Consultants Fees,C06,Service Delivery,KINETICUS LIMITED,21/12/2010,466.94
Bath and North East Somerset Council,10587680,LJ1,Consultants Fees,C06,Service Delivery,KINETICUS LIMITED,24/12/2010,493.36
Bath and North East Somerset Council,10583543,LJ1,Consultants Fees,C02,Resources,MENTORING PLUS LTD,08/12/2010,500
Bath and North East Somerset Council,10585409,LJ1,Consultants Fees,C02,Resources,MJD PUBLIC RELATIONS  LTD,20/12/2010,500
Bath and North East Somerset Council,10586767,LJ1,Consultants Fees,C02,Resources,ST SAVIN ASSOCIATES LTD,14/12/2010,560
Bath and North East Somerset Council,10581978,LJ1,Consultants Fees,C05,Children's Services,DEE REID,01/12/2010,575.9
Bath and North East Somerset Council,10587877,LJ1,Consultants Fees,C02,Resources,MJD PUBLIC RELATIONS  LTD,24/12/2010,600
Bath and North East Somerset Council,10583829,LJ1,Consultants Fees,C06,Service Delivery,KINETICUS LIMITED,08/12/2010,656.73
Bath and North East Somerset Council,10583561,LJ1,Consultants Fees,C02,Resources,TREE MAINTENANCE LTD,01/12/2010,700
Bath and North East Somerset Council,10583648,LJ1,Consultants Fees,C02,Resources,ECOSULIS LTD,01/12/2010,740
Bath and North East Somerset Council,10586355,LJ1,Consultants Fees,C02,Resources,BROOKS CHARTERED SURVEYORS,29/12/2010,750
Bath and North East Somerset Council,10586766,LJ1,Consultants Fees,C02,Resources,ST SAVIN ASSOCIATES LTD,14/12/2010,812
Bath and North East Somerset Council,10583898,LJ1,Consultants Fees,C02,Resources,INTEGRALE,01/12/2010,842.5
Bath and North East Somerset Council,10585231,LJ1,Consultants Fees,C02,Resources,WORKOUT ENTERPRISES LTD,15/12/2010,1000
Bath and North East Somerset Council,10586554,LJ1,Consultants Fees,C02,Resources,AARON EVANS ASSOCIATES,24/12/2010,1000
Bath and North East Somerset Council,10588899,LJ1,Consultants Fees,C02,Resources,NEWLANDS SPECIAL PROJECTS LTD,31/12/2010,1050
Bath and North East Somerset Council,10587024,LJ1,Consultants Fees,C06,Service Delivery,RESPONSE HANDLING .NET LTD,24/12/2010,1200
Bath and North East Somerset Council,10585607,LJ1,Consultants Fees,C06,Service Delivery,SEARCY TANSLEY & CO LTD,08/12/2010,1250
Bath and North East Somerset Council,10586845,LJ1,Consultants Fees,C05,Children's Services,QUALITY SCHOOL MANAGEMENT LTD,20/12/2010,1300
Bath and North East Somerset Council,10586846,LJ1,Consultants Fees,C05,Children's Services,QUALITY SCHOOL MANAGEMENT LTD,20/12/2010,1300
Bath and North East Somerset Council,10586574,LJ1,Consultants Fees,C02,Resources,NEWLANDS SPECIAL PROJECTS LTD,13/12/2010,1312.5
Bath and North East Somerset Council,10586575,LJ1,Consultants Fees,C02,Resources,NEWLANDS SPECIAL PROJECTS LTD,13/12/2010,1312.5
Bath and North East Somerset Council,10586576,LJ1,Consultants Fees,C02,Resources,NEWLANDS SPECIAL PROJECTS LTD,13/12/2010,1312.5
Bath and North East Somerset Council,10586577,LJ1,Consultants Fees,C02,Resources,NEWLANDS SPECIAL PROJECTS LTD,13/12/2010,1312.5
Bath and North East Somerset Council,10586764,LJ1,Consultants Fees,C02,Resources,NEWLANDS SPECIAL PROJECTS LTD,15/12/2010,1312.5
Bath and North East Somerset Council,10585674,LJ1,Consultants Fees,C02,Resources,C K GIBBONS LTD,07/12/2010,1334.75
Bath and North East Somerset Council,10582465,LJ1,Consultants Fees,C06,Service Delivery,ATKINS LIMITED,06/12/2010,1403
Bath and North East Somerset Council,10587410,LJ1,Consultants Fees,C06,Service Delivery,WINCKWORTH SHERWOOD,22/12/2010,1465.95
Bath and North East Somerset Council,10583186,LJ1,Consultants Fees,C02,Resources,KEY TRANSPORT CONSULTANTS LTD,14/12/2010,1565.8
Bath and North East Somerset Council,10585697,LJ1,Consultants Fees,C02,Resources,ST SAVIN ASSOCIATES LTD,07/12/2010,1568
Bath and North East Somerset Council,10587685,LJ1,Consultants Fees,Z98,West of England Partnership,MOTT MACDONALD LIMITED,24/12/2010,1603.8
Bath and North East Somerset Council,10586522,LJ1,Consultants Fees,C06,Service Delivery,PLACE STUDIO LTD,14/12/2010,1665
Bath and North East Somerset Council,10582998,LJ1,Consultants Fees,C06,Service Delivery,HNI INTERNATIONAL LIMITED,08/12/2010,2000
Bath and North East Somerset Council,10586712,LJ1,Consultants Fees,C06,Service Delivery,MOTT MACDONALD LIMITED,15/12/2010,2000
Bath and North East Somerset Council,10584015,LJ1,Consultants Fees,C06,Service Delivery,SLR CONSULTING,08/12/2010,2000.4
Bath and North East Somerset Council,10586515,LJ1,Consultants Fees,C06,Service Delivery,ENVIRON,24/12/2010,2220
Bath and North East Somerset Council,10586304,LJ1,Consultants Fees,C02,Resources,WORKOUT ENTERPRISES LTD,24/12/2010,2250
Bath and North East Somerset Council,10585372,LJ1,Consultants Fees,C02,Resources,CAPITA SYMONDS,24/12/2010,2735
Bath and North East Somerset Council,10588485,LJ1,Consultants Fees,C06,Service Delivery,EB BEETON & DC BEETON,24/12/2010,2775.5
Bath and North East Somerset Council,10583768,LJ1,Consultants Fees,C02,Resources,PRACTICUS LTD,14/12/2010,2850
Bath and North East Somerset Council,10583769,LJ1,Consultants Fees,C02,Resources,PRACTICUS LTD,06/12/2010,2850
Bath and North East Somerset Council,10587976,LJ1,Consultants Fees,C06,Service Delivery,SLR CONSULTING,23/12/2010,3242.9
Bath and North East Somerset Council,10585394,LJ1,Consultants Fees,C02,Resources,MENDIP SURVEY & DESIGN LTD,16/12/2010,3660
Bath and North East Somerset Council,10583995,LJ1,Consultants Fees,C03,Adult Social Services & Housing,ARK HOUSING CONSULTANCY LLP,08/12/2010,4650
Bath and North East Somerset Council,10587257,LJ1,Consultants Fees,C06,Service Delivery,DTZ CONSULTING & RESEARCH,16/12/2010,4809
Bath and North East Somerset Council,10583800,LJ1,Consultants Fees,C06,Service Delivery,ATKINS LIMITED,08/12/2010,5912
Bath and North East Somerset Council,10585373,LJ1,Consultants Fees,C02,Resources,CAPITA SYMONDS,24/12/2010,6500
Bath and North East Somerset Council,10588771,LJ1,Consultants Fees,C06,Service Delivery,RESOURCE FUTURES LTD,30/12/2010,6675
Bath and North East Somerset Council,10582277,LJ1,Consultants Fees,C06,Service Delivery,ENVIRON,07/12/2010,6920
Bath and North East Somerset Council,10584456,LJ1,Consultants Fees,C06,Service Delivery,COMMUNITY FIRST PARTNERSHIP LTD,08/12/2010,7313.7
Bath and North East Somerset Council,10584015,LJ1,Consultants Fees,C06,Service Delivery,SLR CONSULTING,08/12/2010,7346.35
Bath and North East Somerset Council,10582852,LJ1,Consultants Fees,Z98,West of England Partnership,SAMUEL LAMBE LIMITED,08/12/2010,8427.3
Bath and North East Somerset Council,10587957,LJ1,Consultants Fees,C06,Service Delivery,URBAN AND RURAL PLANNING ASSOCIATES LTD,23/12/2010,8530
Bath and North East Somerset Council,10583997,LJ1,Consultants Fees,C03,Adult Social Services & Housing,ARK HOUSING CONSULTANCY LLP,08/12/2010,9156.78
Bath and North East Somerset Council,10588486,LJ1,Consultants Fees,C06,Service Delivery,CAMCO ADVISORY SERVICES LTD,24/12/2010,9386.25
Bath and North East Somerset Council,10586111,LJ1,Consultants Fees,C03,Adult Social Services & Housing,RSZ CONSULTING,29/12/2010,12450
Bath and North East Somerset Council,10587145,LJ1,Consultants Fees,Z98,West of England Partnership,ENVIRONMENTAL RESOURCES MANAGEMENT,17/12/2010,13106.81
Bath and North East Somerset Council,10587871,LJ1,Consultants Fees,C02,Resources,ACHIEVE BREAKTHROUGH LTD,24/12/2010,13516.79
Bath and North East Somerset Council,10582275,LJ1,Consultants Fees,C06,Service Delivery,THREE DRAGONS (AG) LTD,01/12/2010,17483
Bath and North East Somerset Council,10584889,LH4,Consultation,C06,Service Delivery,INSTITUTE OF PUBLIC FINANCE LIMITED,08/12/2010,2240.94
Bath and North East Somerset Council,10584859,LH4,Consultation,C03,Adult Social Services & Housing,ANNE H PALEY,21/12/2010,2400
Bath and North East Somerset Council,10585408,LH4,Consultation,C02,Resources,LANGUAGE IS EVERYTHING,08/12/2010,469.3
Bath and North East Somerset Council,10584028,LH4,Consultation,C05,Children's Services,VOICE,15/12/2010,607.8
Bath and North East Somerset Council,10587223,LH4,Consultation,C06,Service Delivery,WYG ENVIRONMENT PLANNING TRANSPORT LTD,20/12/2010,735
Bath and North East Somerset Council,10583941,LH4,Consultation,C06,Service Delivery,DANDO SURVEYING LIMITED,08/12/2010,850
Bath and North East Somerset Council,10587221,LH4,Consultation,C06,Service Delivery,WYG ENVIRONMENT PLANNING TRANSPORT LTD,20/12/2010,875
Bath and North East Somerset Council,10587226,LH4,Consultation,C06,Service Delivery,WYG ENVIRONMENT PLANNING TRANSPORT LTD,20/12/2010,892.5
Bath and North East Somerset Council,10587222,LH4,Consultation,C06,Service Delivery,WYG ENVIRONMENT PLANNING TRANSPORT LTD,20/12/2010,1015.6
Bath and North East Somerset Council,10587227,LH4,Consultation,C06,Service Delivery,WYG ENVIRONMENT PLANNING TRANSPORT LTD,20/12/2010,1017.5
Bath and North East Somerset Council,10587949,LH4,Consultation,C06,Service Delivery,BLACK SHEEP PRESS,29/12/2010,1729.75
Bath and North East Somerset Council,10584088,LH4,Consultation,C03,Adult Social Services & Housing,RIDGEWAY ASSOCIATES,08/12/2010,2460.6
Bath and North East Somerset Council,10585364,LH4,Consultation,C02,Resources,SILVER DIALOGUE LIMITED,17/12/2010,4025
Bath and North East Somerset Council,10585802,LJ4,Contracts,C06,Service Delivery,REDACTED,10/12/2010,360
Bath and North East Somerset Council,10585350,LJ4,Contracts,C06,Service Delivery,REDACTED,15/12/2010,530
Bath and North East Somerset Council,10585802,LJ4,Contracts,C06,Service Delivery,REDACTED,10/12/2010,2039.18
Bath and North East Somerset Council,10583095,LJ4,Contracts,C05,Children's Services,BATH AREA PLAY PROJECT,07/12/2010,3838.8
Bath and North East Somerset Council,10583090,LJ4,Contracts,C05,Children's Services,BATH AREA PLAY PROJECT,07/12/2010,8646.75
Bath and North East Somerset Council,10583091,LJ4,Contracts,C05,Children's Services,BATH AREA PLAY PROJECT,07/12/2010,8646.75
Bath and North East Somerset Council,10586743,LJ4,Contracts,C06,Service Delivery,METRIC GROUP LIMITED,24/12/2010,2847.15
Bath and North East Somerset Council,10588009,LJ4,Contracts,C06,Service Delivery,ROBERT HYMAN,29/12/2010,862.54
Bath and North East Somerset Council,10585792,LJ4,Contracts,C06,Service Delivery,M M PALMER,10/12/2010,880
Bath and North East Somerset Council,10588008,LJ4,Contracts,C06,Service Delivery,LORNA OSBON,29/12/2010,924.15
Bath and North East Somerset Council,10586415,LJ4,Contracts,C06,Service Delivery,MR M L BRACEY T/A A B M MINIBUSES,13/12/2010,1204
Bath and North East Somerset Council,10586416,LJ4,Contracts,C06,Service Delivery,MR M L BRACEY T/A A B M MINIBUSES,13/12/2010,1617.23
Bath and North East Somerset Council,10588007,LJ4,Contracts,C06,Service Delivery,DEREK STUART CLARK,29/12/2010,1786.69
Bath and North East Somerset Council,10588010,LJ4,Contracts,C06,Service Delivery,KEITH TEMPEST,29/12/2010,1786.69
Bath and North East Somerset Council,10585805,LJ4,Contracts,C06,Service Delivery,TOMMY JUKES,10/12/2010,1992
Bath and North East Somerset Council,10586122,LJ4,Contracts,C05,Children's Services,NICOLA THEOBALD,09/12/2010,5102
Bath and North East Somerset Council,10587846,LJ4,Contracts,C05,Children's Services,NICOLA THEOBALD,20/12/2010,5102
Bath and North East Somerset Council,10588865,LJ4,Contracts,C06,Service Delivery,ABBEY TAXIS LIMITED,31/12/2010,23.27
Bath and North East Somerset Council,10588865,LJ4,Contracts,C06,Service Delivery,ABBEY TAXIS LIMITED,31/12/2010,48.93
Bath and North East Somerset Council,10586670,LJ4,Contracts,C06,Service Delivery,ABBEY TAXIS LIMITED,14/12/2010,93.12
Bath and North East Somerset Council,10586669,LJ4,Contracts,C06,Service Delivery,ABBEY TAXIS LIMITED,14/12/2010,121.04
Bath and North East Somerset Council,10586669,LJ4,Contracts,C06,Service Delivery,ABBEY TAXIS LIMITED,14/12/2010,227.42
Bath and North East Somerset Council,10586670,LJ4,Contracts,C06,Service Delivery,ABBEY TAXIS LIMITED,14/12/2010,244.44
Bath and North East Somerset Council,10586668,LJ4,Contracts,C06,Service Delivery,ABBEY TAXIS LIMITED,14/12/2010,500.1
Bath and North East Somerset Council,10586668,LJ4,Contracts,C06,Service Delivery,ABBEY TAXIS LIMITED,14/12/2010,500.51
Bath and North East Somerset Council,10586669,LJ4,Contracts,C06,Service Delivery,ABBEY TAXIS LIMITED,14/12/2010,667.79
Bath and North East Somerset Council,10586417,LJ4,Contracts,C06,Service Delivery,ABBEY TAXIS LIMITED,13/12/2010,840
Bath and North East Somerset Council,10586669,LJ4,Contracts,C06,Service Delivery,ABBEY TAXIS LIMITED,14/12/2010,1889.98
Bath and North East Somerset Council,10586668,LJ4,Contracts,C06,Service Delivery,ABBEY TAXIS LIMITED,14/12/2010,1957.22
Bath and North East Somerset Council,10588865,LJ4,Contracts,C06,Service Delivery,ABBEY TAXIS LIMITED,31/12/2010,11063.1
Bath and North East Somerset Council,10586670,LJ4,Contracts,C06,Service Delivery,ABBEY TAXIS LIMITED,14/12/2010,16785.15
Bath and North East Somerset Council,10586453,LJ4,Contracts,C06,Service Delivery,WELTON CABS,14/12/2010,18
Bath and North East Somerset Council,10586672,LJ4,Contracts,C06,Service Delivery,BATH TAXIS (UK) LTD,14/12/2010,116.4
Bath and North East Somerset Council,10585128,LJ4,Contracts,C06,Service Delivery,HIGHWAY TAXIS & TRAVEL,06/12/2010,174.6
Bath and North East Somerset Council,10586861,LJ4,Contracts,C06,Service Delivery,BONINGALE NURSERIES,16/12/2010,194.75
Bath and North East Somerset Council,10586672,LJ4,Contracts,C06,Service Delivery,BATH TAXIS (UK) LTD,14/12/2010,199.81
Bath and North East Somerset Council,10586672,LJ4,Contracts,C06,Service Delivery,BATH TAXIS (UK) LTD,14/12/2010,216
Bath and North East Somerset Council,10586744,LJ4,Contracts,C06,Service Delivery,MOUCHEL LIMITED,20/12/2010,232.47
Bath and North East Somerset Council,10586744,LJ4,Contracts,C06,Service Delivery,MOUCHEL LIMITED,20/12/2010,232.47
Bath and North East Somerset Council,10587806,LJ4,Contracts,C06,Service Delivery,PIXTON WOODLANDS,29/12/2010,280
Bath and North East Somerset Council,10586677,LJ4,Contracts,C06,Service Delivery,MR P S MATTHEWS T/A NORAD TAXIS,14/12/2010,298
Bath and North East Somerset Council,10587184,LJ4,Contracts,C06,Service Delivery,CT COACHES,16/12/2010,360.1
Bath and North East Somerset Council,10586428,LJ4,Contracts,C06,Service Delivery,KEYNSHAM CARS,13/12/2010,504
Bath and North East Somerset Council,10588331,LJ4,Contracts,C06,Service Delivery,KEYNSHAM CARS,23/12/2010,520
Bath and North East Somerset Council,10585794,LJ4,Contracts,C06,Service Delivery,KEYNSHAM CARS,10/12/2010,528
Bath and North East Somerset Council,10588334,LJ4,Contracts,C06,Service Delivery,KEYNSHAM CARS,23/12/2010,528
Bath and North East Somerset Council,10585790,LJ4,Contracts,C06,Service Delivery,CENTURION TRAVEL,10/12/2010,540
Bath and North East Somerset Council,10586445,LJ4,Contracts,C06,Service Delivery,JASON KING LTD,14/12/2010,540
Bath and North East Somerset Council,10587760,LJ4,Contracts,C06,Service Delivery,BERKELEY COACH & TRAVEL LTD,20/12/2010,545
Bath and North East Somerset Council,10588342,LJ4,Contracts,C06,Service Delivery,KEYNSHAM CARS,23/12/2010,548
Bath and North East Somerset Council,10588322,LJ4,Contracts,C06,Service Delivery,ANDREWS COACHES,23/12/2010,553.92
Bath and North East Somerset Council,10584605,LJ4,Contracts,C06,Service Delivery,BATHEASTON PARISH COUNCIL,03/12/2010,556.78
Bath and North East Somerset Council,10588339,LJ4,Contracts,C06,Service Delivery,KEYNSHAM CARS,23/12/2010,572
Bath and North East Somerset Council,10587814,LJ4,Contracts,C06,Service Delivery,BTCV,23/12/2010,600
Bath and North East Somerset Council,10587013,LJ4,Contracts,C06,Service Delivery,B S MOWERS LTD,24/12/2010,600.69
Bath and North East Somerset Council,10586432,LJ4,Contracts,C06,Service Delivery,KEYNSHAM CARS,13/12/2010,602
Bath and North East Somerset Council,10586418,LJ4,Contracts,C06,Service Delivery,ARLEEN COACH & HIRE SERVICES L,13/12/2010,610
Bath and North East Somerset Council,10588656,LJ4,Contracts,C06,Service Delivery,R E & V P JEFFRIES,24/12/2010,627.12
Bath and North East Somerset Council,10588168,LJ4,Contracts,C06,Service Delivery,NEED TO GET HOME? TAXI COMPANY,22/12/2010,649
Bath and North East Somerset Council,10585804,LJ4,Contracts,C06,Service Delivery,STEPHEN WARREN,10/12/2010,673.72
Bath and North East Somerset Council,10588337,LJ4,Contracts,C06,Service Delivery,KEYNSHAM CARS,23/12/2010,676
Bath and North East Somerset Council,10586677,LJ4,Contracts,C06,Service Delivery,MR P S MATTHEWS T/A NORAD TAXIS,14/12/2010,720
Bath and North East Somerset Council,10588333,LJ4,Contracts,C06,Service Delivery,KEYNSHAM CARS,23/12/2010,728
Bath and North East Somerset Council,10588343,LJ4,Contracts,C06,Service Delivery,STEPHEN WARREN,23/12/2010,762.5
Bath and North East Somerset Council,10585352,LJ4,Contracts,C06,Service Delivery,KEYNSHAM CARS,10/12/2010,792
Bath and North East Somerset Council,10586427,LJ4,Contracts,C06,Service Delivery,KEYNSHAM CARS,13/12/2010,826
Bath and North East Somerset Council,10585355,LJ4,Contracts,C06,Service Delivery,KEYNSHAM CARS,10/12/2010,840
Bath and North East Somerset Council,10586698,LJ4,Contracts,C06,Service Delivery,KEYNSHAM CARS,14/12/2010,924
Bath and North East Somerset Council,10586431,LJ4,Contracts,C06,Service Delivery,KEYNSHAM CARS,13/12/2010,943
Bath and North East Somerset Council,10586438,LJ4,Contracts,C06,Service Delivery,KEYNSHAM CARS,13/12/2010,968
Bath and North East Somerset Council,10586174,LJ4,Contracts,C06,Service Delivery,ACOUSTIGUIDE LTD,16/12/2010,1000
Bath and North East Somerset Council,10586449,LJ4,Contracts,C06,Service Delivery,SOMERSET TRANSPORT SERVICES LTD,14/12/2010,1058
Bath and North East Somerset Council,10586424,LJ4,Contracts,C06,Service Delivery,R E & V P JEFFRIES,13/12/2010,1061.28
Bath and North East Somerset Council,10583600,LJ4,Contracts,C02,Resources,ROYAL MAIL,03/12/2010,1063.74
Bath and North East Somerset Council,10587000,LJ4,Contracts,C06,Service Delivery,G R W BLANEY,15/12/2010,1102
Bath and North East Somerset Council,10587005,LJ4,Contracts,C06,Service Delivery,RIVERSIDE TAXIS,15/12/2010,1122
Bath and North East Somerset Council,10585354,LJ4,Contracts,C06,Service Delivery,KEYNSHAM CARS,10/12/2010,1144
Bath and North East Somerset Council,10585351,LJ4,Contracts,C06,Service Delivery,KEYNSHAM CARS,10/12/2010,1176
Bath and North East Somerset Council,10586405,LJ4,Contracts,C02,Resources,SAFE AND SOUND UK LIMITED,15/12/2010,1200
Bath and North East Somerset Council,10585151,LJ4,Contracts,C06,Service Delivery,WORCESTERSHIRE COUNTY COUNCIL,07/12/2010,1285
Bath and North East Somerset Council,10585356,LJ4,Contracts,C06,Service Delivery,STEPHEN WARREN,10/12/2010,1322
Bath and North East Somerset Council,10587946,LJ4,Contracts,C06,Service Delivery,1ST AVENUE TRAVEL,21/12/2010,1383.14
Bath and North East Somerset Council,10587184,LJ4,Contracts,C06,Service Delivery,CT COACHES,16/12/2010,1430.22
Bath and North East Somerset Council,10586861,LJ4,Contracts,C06,Service Delivery,BONINGALE NURSERIES,16/12/2010,1474.55
Bath and North East Somerset Council,10586433,LJ4,Contracts,C06,Service Delivery,KEYNSHAM CARS,13/12/2010,1476
Bath and North East Somerset Council,10586452,LJ4,Contracts,C06,Service Delivery,STATE EXPRESS,14/12/2010,1579.2
Bath and North East Somerset Council,10586675,LJ4,Contracts,C06,Service Delivery,MR C A HIGGS T/A LIBRA TRAVEL,14/12/2010,1607.32
Bath and North East Somerset Council,10588168,LJ4,Contracts,C06,Service Delivery,NEED TO GET HOME? TAXI COMPANY,22/12/2010,1646.54
Bath and North East Somerset Council,10584862,LJ4,Contracts,C02,Resources,G4S CASH SERVICES UK LIMITED,02/12/2010,1668.58
Bath and North East Somerset Council,10585128,LJ4,Contracts,C06,Service Delivery,HIGHWAY TAXIS & TRAVEL,06/12/2010,1677.48
Bath and North East Somerset Council,10588371,LJ4,Contracts,C02,Resources,G4S CASH SERVICES UK LIMITED,24/12/2010,1735.49
Bath and North East Somerset Council,10585795,LJ4,Contracts,C06,Service Delivery,MR C A HIGGS T/A LIBRA TRAVEL,10/12/2010,1760
Bath and North East Somerset Council,10587946,LJ4,Contracts,C06,Service Delivery,1ST AVENUE TRAVEL,21/12/2010,1860
Bath and North East Somerset Council,10587057,LJ4,Contracts,C03,Adult Social Services & Housing,BRISTOL CITY COUNCIL,20/12/2010,2034.85
Bath and North East Somerset Council,10585797,LJ4,Contracts,C06,Service Delivery,MR C A HIGGS T/A LIBRA TRAVEL,10/12/2010,2042.48
Bath and North East Somerset Council,10586453,LJ4,Contracts,C06,Service Delivery,WELTON CABS,14/12/2010,2150.72
Bath and North East Somerset Council,10586676,LJ4,Contracts,C06,Service Delivery,MR C A HIGGS T/A LIBRA TRAVEL,14/12/2010,2156
Bath and North East Somerset Council,10585770,LJ4,Contracts,C06,Service Delivery,NATURAL THEATRE COMPANY,10/12/2010,2233
Bath and North East Somerset Council,10586423,LJ4,Contracts,C06,Service Delivery,CRESCENT CARS,13/12/2010,2332
Bath and North East Somerset Council,10586510,LJ4,Contracts,C06,Service Delivery,ACOUSTIGUIDE LTD,16/12/2010,2378.61
Bath and North East Somerset Council,10586678,LJ4,Contracts,C06,Service Delivery,SOMERSET TRANSPORT SERVICES LTD,14/12/2010,2403.56
Bath and North East Somerset Council,10585796,LJ4,Contracts,C06,Service Delivery,MR C A HIGGS T/A LIBRA TRAVEL,10/12/2010,2450.36
Bath and North East Somerset Council,10586420,LJ4,Contracts,C06,Service Delivery,BUGLERS COACHES LIMITED,13/12/2010,2493.12
Bath and North East Somerset Council,10586087,LJ4,Contracts,C05,Children's Services,THE CARE NETWORK,10/12/2010,2500
Bath and North East Somerset Council,10588776,LJ4,Contracts,C05,Children's Services,BATH & NORTH EAST SOMERSET CARERS CENTRE,29/12/2010,2500
Bath and North East Somerset Council,10585172,LJ4,Contracts,C05,Children's Services,BARNARDO'S SERVICES LTD,06/12/2010,2632.5
Bath and North East Somerset Council,10585800,LJ4,Contracts,C06,Service Delivery,SOMERBUS LTD,10/12/2010,2875.53
Bath and North East Somerset Council,10585798,LJ4,Contracts,C06,Service Delivery,MR C A HIGGS T/A LIBRA TRAVEL,10/12/2010,2888
Bath and North East Somerset Council,10585768,LJ4,Contracts,C06,Service Delivery,NATURAL THEATRE COMPANY,10/12/2010,2926
Bath and North East Somerset Council,10585771,LJ4,Contracts,C06,Service Delivery,NATURAL THEATRE COMPANY,10/12/2010,2926
Bath and North East Somerset Council,10588743,LJ4,Contracts,C06,Service Delivery,ABUS,29/12/2010,3107
Bath and North East Somerset Council,10586453,LJ4,Contracts,C06,Service Delivery,WELTON CABS,14/12/2010,3234.56
Bath and North East Somerset Council,10586895,LJ4,Contracts,C03,Adult Social Services & Housing,NEW HIGHWAY,20/12/2010,3316.06
Bath and North East Somerset Council,10586083,LJ4,Contracts,C05,Children's Services,5 x 5 x 5 = CREATIVITY,15/12/2010,3400
Bath and North East Somerset Council,10587184,LJ4,Contracts,C06,Service Delivery,CT COACHES,16/12/2010,3449.3
Bath and North East Somerset Council,10588744,LJ4,Contracts,C06,Service Delivery,RADSTOCK TAXIS,29/12/2010,3543.86
Bath and North East Somerset Council,10586419,LJ4,Contracts,C06,Service Delivery,BUGLERS COACHES LIMITED,13/12/2010,3669.16
Bath and North East Somerset Council,10585854,LJ4,Contracts,C02,Resources,ROYAL MAIL,13/12/2010,3723.75
Bath and North East Somerset Council,10588657,LJ4,Contracts,C06,Service Delivery,STATE EXPRESS,24/12/2010,3773.44
Bath and North East Somerset Council,10588745,LJ4,Contracts,C06,Service Delivery,ROAD RUNNER TAXI BUSES,29/12/2010,3816.54
Bath and North East Somerset Council,10588329,LJ4,Contracts,C06,Service Delivery,S. J. & J M MUNDEN T/A GUYAN MINI BUSES,23/12/2010,3868.15
Bath and North East Somerset Council,10586673,LJ4,Contracts,C06,Service Delivery,JASON KING LTD,14/12/2010,3975.25
Bath and North East Somerset Council,10586677,LJ4,Contracts,C06,Service Delivery,MR P S MATTHEWS T/A NORAD TAXIS,14/12/2010,3997.5
Bath and North East Somerset Council,10586593,LJ4,Contracts,C06,Service Delivery,SOMERBUS LTD,14/12/2010,4200
Bath and North East Somerset Council,10585128,LJ4,Contracts,C06,Service Delivery,HIGHWAY TAXIS & TRAVEL,06/12/2010,4340.28
Bath and North East Somerset Council,10585460,LJ4,Contracts,C06,Service Delivery,PAUL LEDBURY,21/12/2010,4395.97
Bath and North East Somerset Council,10586671,LJ4,Contracts,C06,Service Delivery,BATH TAXIS (UK) LTD,14/12/2010,4400.75
Bath and North East Somerset Council,10586677,LJ4,Contracts,C06,Service Delivery,MR P S MATTHEWS T/A NORAD TAXIS,14/12/2010,4699
Bath and North East Somerset Council,10583496,LJ4,Contracts,C05,Children's Services,BATH AND NORTH EAST SOMERSET PCT,15/12/2010,4788
Bath and North East Somerset Council,10587184,LJ4,Contracts,C06,Service Delivery,CT COACHES,16/12/2010,4825.5
Bath and North East Somerset Council,10583089,LJ4,Contracts,C05,Children's Services,CHILDRENS SCRAPSTORE,07/12/2010,4910
Bath and North East Somerset Council,10582499,LJ4,Contracts,C06,Service Delivery,MCC-PATROL,01/12/2010,5135.65
Bath and North East Somerset Council,10588742,LJ4,Contracts,C06,Service Delivery,ABUS,29/12/2010,5236
Bath and North East Somerset Council,10586446,LJ4,Contracts,C06,Service Delivery,JASON KING LTD,14/12/2010,5685.13
Bath and North East Somerset Council,10585799,LJ4,Contracts,C06,Service Delivery,RADSTOCK TAXIS,10/12/2010,6088.84
Bath and North East Somerset Council,10586592,LJ4,Contracts,C06,Service Delivery,ROAD RUNNER TAXI BUSES,14/12/2010,6254.2
Bath and North East Somerset Council,10585793,LJ4,Contracts,C06,Service Delivery,S. J. & J M MUNDEN T/A GUYAN MINI BUSES,10/12/2010,6469.87
Bath and North East Somerset Council,10588682,LJ4,Contracts,C06,Service Delivery,MINIBUS TRAVEL,24/12/2010,7725.48
Bath and North East Somerset Council,10587545,LJ4,Contracts,C05,Children's Services,BATH AND NORTH EAST SOMERSET PCT,20/12/2010,7803
Bath and North East Somerset Council,10585171,LJ4,Contracts,C05,Children's Services,THE TRAINING EXCHANGE,06/12/2010,8050
Bath and North East Somerset Council,10586510,LJ4,Contracts,C06,Service Delivery,ACOUSTIGUIDE LTD,16/12/2010,9472.51
Bath and North East Somerset Council,10588343,LJ4,Contracts,C06,Service Delivery,STEPHEN WARREN,23/12/2010,10253.42
Bath and North East Somerset Council,10586451,LJ4,Contracts,C06,Service Delivery,SOMERSET TRANSPORT SERVICES LTD,14/12/2010,12169.02
Bath and North East Somerset Council,10588328,LJ4,Contracts,C06,Service Delivery,CENTURION TRAVEL,23/12/2010,12277.98
Bath and North East Somerset Council,10586448,LJ4,Contracts,C06,Service Delivery,MINIBUS TRAVEL,14/12/2010,12431.16
Bath and North East Somerset Council,10587874,LJ4,Contracts,C06,Service Delivery,MINIBUS TRAVEL,20/12/2010,12431.16
Bath and North East Somerset Council,10587546,LJ4,Contracts,C05,Children's Services,BATH AND NORTH EAST SOMERSET PCT,20/12/2010,15606
Bath and North East Somerset Council,10585356,LJ4,Contracts,C06,Service Delivery,STEPHEN WARREN,10/12/2010,16189.04
Bath and North East Somerset Council,10586671,LJ4,Contracts,C06,Service Delivery,BATH TAXIS (UK) LTD,14/12/2010,16862.07
Bath and North East Somerset Council,10588655,LJ4,Contracts,C06,Service Delivery,EAST HARPTREE COUNTRY CABS,24/12/2010,19504.82
Bath and North East Somerset Council,10588324,LJ4,Contracts,C06,Service Delivery,ARLEEN COACH & HIRE SERVICES L,23/12/2010,19518.33
Bath and North East Somerset Council,10587027,LJ4,Contracts,C06,Service Delivery,FAUN MUNICIPAL VEHICLES LTD,15/12/2010,20099.11
Bath and North East Somerset Council,10586422,LJ4,Contracts,C06,Service Delivery,CENTURION TRAVEL,13/12/2010,20793.12
Bath and North East Somerset Council,10586678,LJ4,Contracts,C06,Service Delivery,SOMERSET TRANSPORT SERVICES LTD,14/12/2010,23384.98
Bath and North East Somerset Council,10585173,LJ4,Contracts,C05,Children's Services,BATH AND NORTH EAST SOMERSET PCT,15/12/2010,25000
Bath and North East Somerset Council,10587760,LJ4,Contracts,C06,Service Delivery,BERKELEY COACH & TRAVEL LTD,20/12/2010,28669.57
Bath and North East Somerset Council,10585791,LJ4,Contracts,C06,Service Delivery,FILERS COACHES,09/12/2010,29329.86
Bath and North East Somerset Council,10587759,LJ4,Contracts,C06,Service Delivery,ARLEEN COACH & HIRE SERVICES L,20/12/2010,32543.87
Bath and North East Somerset Council,10587544,LJ4,Contracts,C05,Children's Services,BARNARDO'S SERVICES LTD,20/12/2010,133500
Bath and North East Somerset Council,10586404,LV2,Contributions to Organisations,C02,Resources,CAMVALE TENNIS CLUB COACHING CLUB,15/12/2010,500
Bath and North East Somerset Council,10582772,LV2,Contributions to Organisations,C03,Adult Social Services & Housing,ROBERTS (BATH) LTD,01/12/2010,523.8
Bath and North East Somerset Council,10584068,LV2,Contributions to Organisations,C03,Adult Social Services & Housing,LARKHALL PHARMACY,02/12/2010,622
Bath and North East Somerset Council,10583544,LV2,Contributions to Organisations,C02,Resources,WESTFIELD METHODIST CHURCH,08/12/2010,760
Bath and North East Somerset Council,10586994,LV2,Contributions to Organisations,C02,Resources,LARKHALL FESTIVAL,21/12/2010,1000
Bath and North East Somerset Council,10583954,LV2,Contributions to Organisations,C02,Resources,RADSTOCK TRADERS ASSOCIATION,08/12/2010,1500
Bath and North East Somerset Council,10587428,LV2,Contributions to Organisations,C02,Resources,RADSTOCK TRADERS ASSOCIATION,21/12/2010,1500
Bath and North East Somerset Council,10586998,LV2,Contributions to Organisations,C02,Resources,WESTON FREE CHURCH,22/12/2010,2300
Bath and North East Somerset Council,10582572,LV2,Contributions to Organisations,C02,Resources,SCOUT ENTERPRISES (WESTERN) LTD NO 1 A/C,02/12/2010,25398
Bath and North East Somerset Council,10587684,LN5,Data Lines,C06,Service Delivery,BRITISH TELECOM,20/12/2010,582.5
Bath and North East Somerset Council,10583934,LN5,Data Lines,C06,Service Delivery,PARKEON LIMITED,15/12/2010,1472
Bath and North East Somerset Council,10587631,LN5,Data Lines,C06,Service Delivery,PARKEON LIMITED,24/12/2010,1472
Bath and North East Somerset Council,10588779,LN5,Data Lines,C06,Service Delivery,ARQIVA LIMITED,29/12/2010,4128
Bath and North East Somerset Council,10588778,LN5,Data Lines,C06,Service Delivery,ARQIVA LIMITED,29/12/2010,5024
Bath and North East Somerset Council,10584077,LM9,Day Care,C03,Adult Social Services & Housing,HEADWAY BATH & DISTRICT,01/12/2010,700
Bath and North East Somerset Council,10584061,LM9,Day Care,C03,Adult Social Services & Housing,ROYAL MENCAP SOCIETY,02/12/2010,938
Bath and North East Somerset Council,10585643,LM9,Day Care,C03,Adult Social Services & Housing,ROYAL MENCAP SOCIETY,16/12/2010,938
Bath and North East Somerset Council,10584156,LM9,Day Care,C03,Adult Social Services & Housing,NATIONAL AUTISTIC SOCIETY,01/12/2010,12972.02
Bath and North East Somerset Council,10582366,LM9,Day Care,C03,Adult Social Services & Housing,DIMENSIONS (UK) LTD,01/12/2010,1.53
Bath and North East Somerset Council,10582373,LM9,Day Care,C03,Adult Social Services & Housing,DIMENSIONS (UK) LTD,01/12/2010,502.8
Bath and North East Somerset Council,10584049,LM9,Day Care,C03,Adult Social Services & Housing,MR N BRADBURY,13/12/2010,525
Bath and North East Somerset Council,10582366,LM9,Day Care,C03,Adult Social Services & Housing,DIMENSIONS (UK) LTD,01/12/2010,569.84
Bath and North East Somerset Council,10583952,LM9,Day Care,C03,Adult Social Services & Housing,CARE FUTURES,02/12/2010,712.5
Bath and North East Somerset Council,10583951,LM9,Day Care,C03,Adult Social Services & Housing,CARE FUTURES,02/12/2010,741
Bath and North East Somerset Council,10583950,LM9,Day Care,C03,Adult Social Services & Housing,CARE FUTURES,02/12/2010,769.5
Bath and North East Somerset Council,10583953,LM9,Day Care,C03,Adult Social Services & Housing,CARE FUTURES,02/12/2010,769.5
Bath and North East Somerset Council,10584050,LM9,Day Care,C03,Adult Social Services & Housing,MR N BRADBURY,13/12/2010,770
Bath and North East Somerset Council,10581425,LM9,Day Care,C03,Adult Social Services & Housing,THE REGARD PARTNERSHIP LTD,01/12/2010,1183.5
Bath and North East Somerset Council,10583822,LM9,Day Care,C03,Adult Social Services & Housing,GLOUCESTERSHIRE COUNTY COUNCIL,02/12/2010,1520.48
Bath and North East Somerset Council,10586952,LL4,Direct Payments,C03,Adult Social Services & Housing,SHAW TRUST LTD,24/12/2010,2
Bath and North East Somerset Council,21014374,LL4,Direct Payments,C03,Adult Social Services & Housing,REDACTED,06/12/2010,595.54
Bath and North East Somerset Council,21014374,LL4,Direct Payments,C03,Adult Social Services & Housing,REDACTED,06/12/2010,595.54
Bath and North East Somerset Council,21019787,LL4,Direct Payments,C03,Adult Social Services & Housing,REDACTED,20/12/2010,595.54
Bath and North East Somerset Council,21019787,LL4,Direct Payments,C03,Adult Social Services & Housing,REDACTED,20/12/2010,595.54
Bath and North East Somerset Council,21014361,LL4,Direct Payments,C03,Adult Social Services & Housing,REDACTED,06/12/2010,641.69
Bath and North East Somerset Council,21014361,LL4,Direct Payments,C03,Adult Social Services & Housing,REDACTED,06/12/2010,641.69
Bath and North East Somerset Council,21019774,LL4,Direct Payments,C03,Adult Social Services & Housing,REDACTED,20/12/2010,641.69
Bath and North East Somerset Council,21019774,LL4,Direct Payments,C03,Adult Social Services & Housing,REDACTED,20/12/2010,641.69
Bath and North East Somerset Council,21014351,LL4,Direct Payments,C03,Adult Social Services & Housing,REDACTED,06/12/2010,932.61
Bath and North East Somerset Council,21014351,LL4,Direct Payments,C03,Adult Social Services & Housing,REDACTED,06/12/2010,932.61
Bath and North East Somerset Council,21019764,LL4,Direct Payments,C03,Adult Social Services & Housing,REDACTED,20/12/2010,932.61
Bath and North East Somerset Council,21019764,LL4,Direct Payments,C03,Adult Social Services & Housing,REDACTED,20/12/2010,932.61
Bath and North East Somerset Council,21014352,LL4,Direct Payments,C03,Adult Social Services & Housing,REDACTED,08/12/2010,993.53
Bath and North East Somerset Council,21014352,LL4,Direct Payments,C03,Adult Social Services & Housing,REDACTED,08/12/2010,993.53
Bath and North East Somerset Council,21019765,LL4,Direct Payments,C03,Adult Social Services & Housing,REDACTED,21/12/2010,993.53
Bath and North East Somerset Council,21019765,LL4,Direct Payments,C03,Adult Social Services & Housing,REDACTED,21/12/2010,993.53
Bath and North East Somerset Council,21014353,LL4,Direct Payments,C03,Adult Social Services & Housing,REDACTED,06/12/2010,1293.48
Bath and North East Somerset Council,21014353,LL4,Direct Payments,C03,Adult Social Services & Housing,REDACTED,06/12/2010,1293.48
Bath and North East Somerset Council,21019766,LL4,Direct Payments,C03,Adult Social Services & Housing,REDACTED,20/12/2010,1293.48
Bath and North East Somerset Council,21019766,LL4,Direct Payments,C03,Adult Social Services & Housing,REDACTED,20/12/2010,1293.48
Bath and North East Somerset Council,21014350,LL4,Direct Payments,C03,Adult Social Services & Housing,REDACTED,06/12/2010,1419.81
Bath and North East Somerset Council,21014350,LL4,Direct Payments,C03,Adult Social Services & Housing,REDACTED,06/12/2010,1419.81
Bath and North East Somerset Council,21019763,LL4,Direct Payments,C03,Adult Social Services & Housing,REDACTED,20/12/2010,1419.81
Bath and North East Somerset Council,21019763,LL4,Direct Payments,C03,Adult Social Services & Housing,REDACTED,20/12/2010,1419.81
Bath and North East Somerset Council,10584993,LE1,Education Payment (independent school),C05,Children's Services,CALDER HOUSE SCHOOL,07/12/2010,4600
Bath and North East Somerset Council,10584997,LE1,Education Payment (independent school),C05,Children's Services,CALDER HOUSE SCHOOL,07/12/2010,4600
Bath and North East Somerset Council,10587401,LE1,Education Payment (independent school),C05,Children's Services,ROYAL SCHOOL FOR THE DEAF DERBY,24/12/2010,7232
Bath and North East Somerset Council,10587400,LE1,Education Payment (independent school),C05,Children's Services,MORE HOUSE SCHOOL,24/12/2010,7590
Bath and North East Somerset Council,10584998,LE1,Education Payment (independent school),C05,Children's Services,INAURA,07/12/2010,13850
Bath and North East Somerset Council,10584994,LE1,Education Payment (independent school),C05,Children's Services,TALOCHER SCHOOL PRIORY,07/12/2010,20232
Bath and North East Somerset Council,10587421,LE1,Education Payment (independent school),C05,Children's Services,THE WEST OF ENGLAND SCHOOL,24/12/2010,29158.67
Bath and North East Somerset Council,10583790,LE1,Education Payment (independent school),C05,Children's Services,NORTH HILL HOUSE PRIORY,07/12/2010,33713.84
Bath and North East Somerset Council,10583556,LE1,Education Payment (independent school),C05,Children's Services,CAMBIAN AUTISM SERVICES LTD,08/12/2010,45416.54
Bath and North East Somerset Council,10587907,LX1,Educational Activity,C06,Service Delivery,MANVERS ST. BAPTIST CHURCH,24/12/2010,512
Bath and North East Somerset Council,10588027,LX1,Educational Activity,C05,Children's Services,KAYA RHYTHM & ARTS LTD,23/12/2010,535.5
Bath and North East Somerset Council,10583465,LX1,Educational Activity,C05,Children's Services,BATH AND NORTH EAST SOMERSET PCT,15/12/2010,702
Bath and North East Somerset Council,10583466,LX1,Educational Activity,C05,Children's Services,BATH AND NORTH EAST SOMERSET PCT,15/12/2010,1292
Bath and North East Somerset Council,10588512,LX1,Educational Activity,C05,Children's Services,BATH AND NORTH EAST SOMERSET PCT,30/12/2010,1872
Bath and North East Somerset Council,10582185,LX1,Educational Activity,C05,Children's Services,BRISTOL CITY COUNCIL,08/12/2010,5407.65
Bath and North East Somerset Council,10583467,LX1,Educational Activity,C05,Children's Services,BATH AND NORTH EAST SOMERSET PCT,15/12/2010,10295
Bath and North East Somerset Council,10585969,HN1,Electricity,C02,Resources,EDF ENERGY,09/12/2010,1.17
Bath and North East Somerset Council,10587881,HN1,Electricity,C05,Children's Services,SOUTHERN ELECTRIC,29/12/2010,365.09
Bath and North East Somerset Council,10587881,HN1,Electricity,C05,Children's Services,SOUTHERN ELECTRIC,29/12/2010,365.09
Bath and North East Somerset Council,10585000,HN1,Electricity,C02,Resources,EDF ENERGY,03/12/2010,521.09
Bath and North East Somerset Council,10586154,HN1,Electricity,C02,Resources,BRITISH GAS - ELECTRICITY,16/12/2010,604.09
Bath and North East Somerset Council,10583649,HN1,Electricity,C06,Service Delivery,SOUTHERN ELECTRIC PLC,06/12/2010,610.92
Bath and North East Somerset Council,10585969,HN1,Electricity,C02,Resources,EDF ENERGY,09/12/2010,966.58
Bath and North East Somerset Council,10585970,HN1,Electricity,C02,Resources,EDF ENERGY,10/12/2010,1310.97
Bath and North East Somerset Council,10586020,HN1,Electricity,C03,Adult Social Services & Housing,EDF ENERGY,10/12/2010,1485.19
Bath and North East Somerset Council,10587671,HN1,Electricity,C03,Adult Social Services & Housing,SOUTHERN ELECTRIC PLC,21/12/2010,2247.68
Bath and North East Somerset Council,10586006,HN1,Electricity,C06,Service Delivery,EDF ENERGY,09/12/2010,2687.28
Bath and North East Somerset Council,10587671,HN1,Electricity,C02,Resources,SOUTHERN ELECTRIC PLC,21/12/2010,2842.36
Bath and North East Somerset Council,10587671,HN1,Electricity,C06,Service Delivery,SOUTHERN ELECTRIC PLC,21/12/2010,2991.95
Bath and North East Somerset Council,10587671,HN1,Electricity,C02,Resources,SOUTHERN ELECTRIC PLC,21/12/2010,4315.43
Bath and North East Somerset Council,10587671,HN1,Electricity,C06,Service Delivery,SOUTHERN ELECTRIC PLC,21/12/2010,4797.31
Bath and North East Somerset Council,10588502,HN1,Electricity,C02,Resources,SOUTHERN ELECTRIC PLC,24/12/2010,9230.72
Bath and North East Somerset Council,10588502,HN1,Electricity,C02,Resources,SOUTHERN ELECTRIC PLC,24/12/2010,31858.98
Bath and North East Somerset Council,10585723,KD1,Employees Public Transport,C02,Resources,N WASHBOURNE PERSONAL DRIVER,10/12/2010,741
Bath and North East Somerset Council,10588415,KD1,Employees Public Transport,C02,Resources,N WASHBOURNE PERSONAL DRIVER,23/12/2010,1170
Bath and North East Somerset Council,10587863,KD1,Employees Public Transport,C03,Adult Social Services & Housing,ATOS ORIGIN IT SERVICES (UK) LTD,22/12/2010,1007.6
Bath and North East Somerset Council,10585444,LA4,Equipment Hire/Rent,C06,Service Delivery,GEORGIAN HIRE LTD,20/12/2010,600
Bath and North East Somerset Council,10585445,LA4,Equipment Hire/Rent,C06,Service Delivery,GEORGIAN HIRE LTD,20/12/2010,600
Bath and North East Somerset Council,10585446,LA4,Equipment Hire/Rent,C06,Service Delivery,GEORGIAN HIRE LTD,20/12/2010,600
Bath and North East Somerset Council,10585447,LA4,Equipment Hire/Rent,C06,Service Delivery,GEORGIAN HIRE LTD,20/12/2010,600
Bath and North East Somerset Council,10585448,LA4,Equipment Hire/Rent,C06,Service Delivery,GEORGIAN HIRE LTD,21/12/2010,600
Bath and North East Somerset Council,10585449,LA4,Equipment Hire/Rent,C06,Service Delivery,GEORGIAN HIRE LTD,20/12/2010,600
Bath and North East Somerset Council,10587935,LA4,Equipment Hire/Rent,C06,Service Delivery,PANTHER PLATFORM RENTALS LTD,24/12/2010,650
Bath and North East Somerset Council,10582477,LA4,Equipment Hire/Rent,C06,Service Delivery,PITNEY BOWES LTD,07/12/2010,762.86
Bath and North East Somerset Council,10584455,LA4,Equipment Hire/Rent,C06,Service Delivery,WESSEX WATER SERVICES LIMITED,07/12/2010,3157.66
Bath and North East Somerset Council,10586364,LA3,Equipment Maintenance,C06,Service Delivery,FACULTATIEVE TECHNOLOGIES LTD,24/12/2010,823
Bath and North East Somerset Council,10588874,LA3,Equipment Maintenance,C06,Service Delivery,SSE CONTRACTING,30/12/2010,1800
Bath and North East Somerset Council,10586128,LA3,Equipment Maintenance,C06,Service Delivery,P A ANSTY,29/12/2010,680
Bath and North East Somerset Council,10587104,LA3,Equipment Maintenance,C02,Resources,TWOFOLD LTD,16/12/2010,446.6
Bath and North East Somerset Council,10586529,LA3,Equipment Maintenance,C06,Service Delivery,WESSEX HYDRAULICS SERVICES,22/12/2010,509
Bath and North East Somerset Council,10586795,LA3,Equipment Maintenance,C06,Service Delivery,PAUL LEDBURY,15/12/2010,1120
Bath and North East Somerset Council,10587215,LA3,Equipment Maintenance,C06,Service Delivery,WESSEX HYDRAULICS SERVICES,22/12/2010,1495
Bath and North East Somerset Council,10583071,LA3,Equipment Maintenance,C06,Service Delivery,DAVIES & CO (ENGINEERING) LTD,15/12/2010,2425
Bath and North East Somerset Council,10583825,LA3,Equipment Maintenance,C06,Service Delivery,ABW ENGINEERING SERVICES [SW] LTD,08/12/2010,3317.6
Bath and North East Somerset Council,10586031,LA1,Equipment Purchase,C05,Children's Services,BNES-FROME RD CENTRE IMPREST A/C,13/12/2010,15
Bath and North East Somerset Council,10583836,LA1,Equipment Purchase,C06,Service Delivery,DC WELDING,10/12/2010,460
Bath and North East Somerset Council,10584910,LA1,Equipment Purchase,C03,Adult Social Services & Housing,LIFTECH.ORG LTD,21/12/2010,1521
Bath and North East Somerset Council,10584985,LA1,Equipment Purchase,C02,Resources,LIONEL SAUNDERS & CO (BRISTOL),06/12/2010,4400
Bath and North East Somerset Council,10586397,LA1,Equipment Purchase,C05,Children's Services,PAUL DENEGRI,15/12/2010,640
Bath and North East Somerset Council,10581956,LA1,Equipment Purchase,C05,Children's Services,NORMANS MUSICAL INSTRUMENTS,08/12/2010,445.23
Bath and North East Somerset Council,10586560,LA1,Equipment Purchase,C05,Children's Services,YORKSHIRE PURCHASING ORGANISATION,21/12/2010,500
Bath and North East Somerset Council,10584286,LA1,Equipment Purchase,C03,Adult Social Services & Housing,HILL ROM LTD,10/12/2010,507
Bath and North East Somerset Council,10587380,LA1,Equipment Purchase,C06,Service Delivery,DANUK INNOVATIVE GIFTS LTD,20/12/2010,545
Bath and North East Somerset Council,10588280,LA1,Equipment Purchase,C02,Resources,HARFIELD COMPONENTS LTD,24/12/2010,550.8
Bath and North East Somerset Council,10586030,LA1,Equipment Purchase,C02,Resources,HEWLETT-PACKARD LIMITED,24/12/2010,560
Bath and North East Somerset Council,10587300,LA1,Equipment Purchase,C03,Adult Social Services & Housing,WELLAND MEDICAL,24/12/2010,602.8
Bath and North East Somerset Council,10585369,LA1,Equipment Purchase,C03,Adult Social Services & Housing,FREEWAY HEALTHCARE,29/12/2010,621.73
Bath and North East Somerset Council,10585279,LA1,Equipment Purchase,C03,Adult Social Services & Housing,SIEMENS FINANCIAL SERVICES LTD,07/12/2010,631.47
Bath and North East Somerset Council,10585827,LA1,Equipment Purchase,C03,Adult Social Services & Housing,TUNSTALL HEALTHCARE (UK) LTD,21/12/2010,634.5
Bath and North East Somerset Council,10585278,LA1,Equipment Purchase,C03,Adult Social Services & Housing,SIEMENS FINANCIAL SERVICES LTD,07/12/2010,671.47
Bath and North East Somerset Council,10582946,LA1,Equipment Purchase,C03,Adult Social Services & Housing,OTS LTD,23/12/2010,684
Bath and North East Somerset Council,10587299,LA1,Equipment Purchase,C03,Adult Social Services & Housing,FRONTIER THERAPEUTICS,29/12/2010,717
Bath and North East Somerset Council,10583719,LA1,Equipment Purchase,C02,Resources,NUMATIC INTERNATIONAL LIMITED,08/12/2010,750.9
Bath and North East Somerset Council,10579302,LA1,Equipment Purchase,C03,Adult Social Services & Housing,LANGHAM PRODUCTS,23/12/2010,757.3
Bath and North East Somerset Council,10584448,LA1,Equipment Purchase,C06,Service Delivery,COSALT INTERNATIONAL LTD,07/12/2010,779
Bath and North East Somerset Council,10587046,LA1,Equipment Purchase,C03,Adult Social Services & Housing,BRITISH TELECOM,21/12/2010,805.66
Bath and North East Somerset Council,10586527,LA1,Equipment Purchase,C06,Service Delivery,ULRICH ATTACHMENTS LIMITED,21/12/2010,807.86
Bath and North East Somerset Council,10584095,LA1,Equipment Purchase,C03,Adult Social Services & Housing,IRM MOBILITY & HEALTHCARE LTD,07/12/2010,850.71
Bath and North East Somerset Council,10587136,LA1,Equipment Purchase,C06,Service Delivery,LFC DESPATCH LINE,15/12/2010,879.97
Bath and North East Somerset Council,10584912,LA1,Equipment Purchase,C03,Adult Social Services & Housing,SUNRISE MEDICAL LTD,20/12/2010,886.82
Bath and North East Somerset Council,10581644,LA1,Equipment Purchase,C03,Adult Social Services & Housing,WELLAND MEDICAL,01/12/2010,960.8
Bath and North East Somerset Council,10584285,LA1,Equipment Purchase,C03,Adult Social Services & Housing,NUFFIELD ORTHOPAEDIC CENTRE,15/12/2010,1000
Bath and North East Somerset Council,10585828,LA1,Equipment Purchase,C03,Adult Social Services & Housing,TUNSTALL HEALTHCARE (UK) LTD,21/12/2010,1010
Bath and North East Somerset Council,10580909,LA1,Equipment Purchase,C05,Children's Services,ZINGS MUSIC GROUP,01/12/2010,1088
Bath and North East Somerset Council,10582949,LA1,Equipment Purchase,C03,Adult Social Services & Housing,HILL ROM LTD,10/12/2010,1107.01
Bath and North East Somerset Council,10580910,LA1,Equipment Purchase,C05,Children's Services,ZINGS MUSIC GROUP,01/12/2010,1190
Bath and North East Somerset Council,10582929,LA1,Equipment Purchase,C03,Adult Social Services & Housing,INVACARE (UK) LTD,23/12/2010,1200
Bath and North East Somerset Council,10583647,LA1,Equipment Purchase,C03,Adult Social Services & Housing,HARVEST HEALTHCARE,15/12/2010,1305
Bath and North East Somerset Council,10586508,LA1,Equipment Purchase,C06,Service Delivery,DIRECT COMMUNICATIONS RADIO SERVICES LTD,21/12/2010,1485
Bath and North East Somerset Council,10588288,LA1,Equipment Purchase,C03,Adult Social Services & Housing,KAROMED,24/12/2010,1876.5
Bath and North East Somerset Council,10584909,LA1,Equipment Purchase,C03,Adult Social Services & Housing,WELLAND MEDICAL,23/12/2010,1890
Bath and North East Somerset Council,10587927,LA1,Equipment Purchase,C06,Service Delivery,K.I.T. CO,24/12/2010,2309
Bath and North East Somerset Council,10587841,LA1,Equipment Purchase,C03,Adult Social Services & Housing,ETHITEC,24/12/2010,2387.23
Bath and North East Somerset Council,10587961,LA1,Equipment Purchase,C06,Service Delivery,BAT PRO LTD,21/12/2010,2772
Bath and North East Somerset Council,10585023,LA1,Equipment Purchase,C02,Resources,HEWLETT-PACKARD LIMITED,08/12/2010,3630.9
Bath and North East Somerset Council,10584232,LA1,Equipment Purchase,C06,Service Delivery,F1 SOUND COMPANY LTD,07/12/2010,23536.21
Bath and North East Somerset Council,10585690,LK1,Fees,C05,Children's Services,FAMILIES FOR CHLDREN ADOPTION,10/12/2010,573
Bath and North East Somerset Council,10586085,LK1,Fees,C05,Children's Services,EAST HARPTREE NURSERY PRE-SCHOOL,15/12/2010,3000
Bath and North East Somerset Council,10586086,LK1,Fees,C05,Children's Services,EAST HARPTREE NURSERY PRE-SCHOOL,15/12/2010,3000
Bath and North East Somerset Council,10587677,LK1,Fees,C05,Children's Services,LITTLE SCRIBBLERS LTD,17/12/2010,3000
Bath and North East Somerset Council,10585955,LK1,Fees,C03,Adult Social Services & Housing,CREST ESTATE AGENTS,08/12/2010,376
Bath and North East Somerset Council,10588269,LK1,Fees,C06,Service Delivery,THREE WAYS SCHOOL,22/12/2010,1000
Bath and North East Somerset Council,10585423,LK1,Fees,C05,Children's Services,BATH AREA PLAY PROJECT,08/12/2010,1100
Bath and North East Somerset Council,10586084,LK1,Fees,C05,Children's Services,BISHOP SUTTON PRE-SCHOOL,09/12/2010,3000
Bath and North East Somerset Council,10585291,LK1,Fees,C05,Children's Services,ST NICHOLAS PRIMARY SCHOOL,08/12/2010,6720
Bath and North East Somerset Council,10585292,LK1,Fees,C05,Children's Services,ST NICHOLAS PRIMARY SCHOOL,08/12/2010,7987
Bath and North East Somerset Council,10587889,LK1,Fees,C02,Resources,BNES RE: LAND REGISTRY VDD,21/12/2010,781
Bath and North East Somerset Council,10585957,LK1,Fees,C02,Resources,BNES RE: LAND REGISTRY VDD,08/12/2010,940
Bath and North East Somerset Council,10586363,LK1,Fees,C06,Service Delivery,MR C A HUNT,13/12/2010,526.5
Bath and North East Somerset Council,10585362,LK1,Fees,C06,Service Delivery,MR C A HUNT,14/12/2010,567
Bath and North East Somerset Council,10583721,LK1,Fees,C05,Children's Services,HELEN MACGREGOR,06/12/2010,575
Bath and North East Somerset Council,10587943,LK1,Fees,C06,Service Delivery,MR C A HUNT,21/12/2010,594
Bath and North East Somerset Council,10582230,LK1,Fees,C05,Children's Services,COACHING CLIMATE,15/12/2010,650
Bath and North East Somerset Council,10586794,LK1,Fees,C06,Service Delivery,MATTHEW PEARSON,24/12/2010,800
Bath and North East Somerset Council,10588203,LK1,Fees,C06,Service Delivery,TONY JACKSON,22/12/2010,1000
Bath and North East Somerset Council,10570342,LK1,Fees,C05,Children's Services,COMPUTERXPLORERS,10/12/2010,1595.75
Bath and North East Somerset Council,10587416,LK1,Fees,C06,Service Delivery,MR J M URE T/A MIDGE URE BUSINESS ACCOUNT,22/12/2010,2500
Bath and North East Somerset Council,10585816,LK1,Fees,C05,Children's Services,MRS JDM SHORT T/A INSPIR.ED,10/12/2010,2600
Bath and North East Somerset Council,10588149,LK1,Fees,C05,Children's Services,JACQUI BUFFTON LIMITED,23/12/2010,9937.5
Bath and North East Somerset Council,10585834,LK1,Fees,C06,Service Delivery,SOMERSET COUNTY COUNCIL,09/12/2010,5.61
Bath and North East Somerset Council,10585834,LK1,Fees,C06,Service Delivery,SOMERSET COUNTY COUNCIL,09/12/2010,17
Bath and North East Somerset Council,10585834,LK1,Fees,C06,Service Delivery,SOMERSET COUNTY COUNCIL,09/12/2010,18.25
Bath and North East Somerset Council,10586984,LK1,Fees,C03,Adult Social Services & Housing,RENTING PLACES,15/12/2010,50
Bath and North East Somerset Council,10586984,LK1,Fees,C03,Adult Social Services & Housing,RENTING PLACES,15/12/2010,165
Bath and North East Somerset Council,10585414,LK1,Fees,C05,Children's Services,FIRST RESPONSE TRAINING & CONSULTANC,08/12/2010,465
Bath and North East Somerset Council,10586023,LK1,Fees,C02,Resources,STROMA CERTIFICATION LIMITED,24/12/2010,491.52
Bath and North East Somerset Council,10587742,LK1,Fees,C05,Children's Services,LEARNING TO LEAD,21/12/2010,500
Bath and North East Somerset Council,10588268,LK1,Fees,C06,Service Delivery,FOSSEWAY SCHOOL,22/12/2010,520
Bath and North East Somerset Council,10584371,LK1,Fees,C06,Service Delivery,SEARCY TANSLEY & CO LTD,01/12/2010,540
Bath and North East Somerset Council,10587415,LK1,Fees,C06,Service Delivery,SEARCY TANSLEY & CO LTD,20/12/2010,542.1
Bath and North East Somerset Council,10582971,LK1,Fees,C06,Service Delivery,ROSPA,08/12/2010,555
Bath and North East Somerset Council,10581271,LK1,Fees,C05,Children's Services,MARKSBURY CEVC PRIMARY,08/12/2010,560
Bath and North East Somerset Council,10587082,LK1,Fees,C05,Children's Services,ST JOHNS C/E SCHOOL,16/12/2010,560
Bath and North East Somerset Council,10587859,LK1,Fees,C05,Children's Services,WIDCOMBE ACORNS PRE-SCHOOL,21/12/2010,560
Bath and North East Somerset Council,10583393,LK1,Fees,C02,Resources,FIRST AID TRAINING (BATH) LIMITED,15/12/2010,575
Bath and North East Somerset Council,10582239,LK1,Fees,C02,Resources,FIRST AID TRAINING (BATH) LIMITED,08/12/2010,620
Bath and North East Somerset Council,10585911,LK1,Fees,C05,Children's Services,KELSTON TRAINING LTD,24/12/2010,636
Bath and North East Somerset Council,10586082,LK1,Fees,C05,Children's Services,STANTON DREW & PENSFORD PRESCH,09/12/2010,666.67
Bath and North East Somerset Council,10587450,LK1,Fees,C05,Children's Services,ST MARTINS GARDEN PRIMARY SCHOOL,24/12/2010,669.42
Bath and North East Somerset Council,10588271,LK1,Fees,C06,Service Delivery,CITY OF BATH COLLEGE,24/12/2010,710
Bath and North East Somerset Council,10585126,LK1,Fees,C05,Children's Services,CITY OF BATH COLLEGE,06/12/2010,800
Bath and North East Somerset Council,10586306,LK1,Fees,C02,Resources,SHL [UK] LTD,24/12/2010,864
Bath and North East Somerset Council,10582625,LK1,Fees,C02,Resources,BATH & WANSDYKE MAGISTRATES CO,15/12/2010,930
Bath and North East Somerset Council,10584388,LK1,Fees,C02,Resources,FIRST AID TRAINING (BATH) LIMITED,21/12/2010,930
Bath and North East Somerset Council,10587781,LK1,Fees,C05,Children's Services,SOUTH GLOUCESTERSHIRE COUNCIL,29/12/2010,1000
Bath and North East Somerset Council,10588696,LK1,Fees,C05,Children's Services,SAVILLS (L&P) LIMITED,24/12/2010,1172.5
Bath and North East Somerset Council,10585264,LK1,Fees,C06,Service Delivery,DANCE BATH LTD,08/12/2010,1260
Bath and North East Somerset Council,10585611,LK1,Fees,C06,Service Delivery,BATH CITY SUPPORTERS SOCIETY LTD,08/12/2010,1325
Bath and North East Somerset Council,10587845,LK1,Fees,C02,Resources,FIRST AID TRAINING (BATH) LIMITED,24/12/2010,1395
Bath and North East Somerset Council,10588270,LK1,Fees,C06,Service Delivery,NORTON RADSTOCK COLLEGE,24/12/2010,1500
Bath and North East Somerset Council,10587023,LK1,Fees,C06,Service Delivery,LIFE CYCLE UK,24/12/2010,1662
Bath and North East Somerset Council,10587412,LK1,Fees,C06,Service Delivery,BATH TOURISM PLUS,20/12/2010,1900
Bath and North East Somerset Council,10583134,LK1,Fees,C05,Children's Services,BATH Y.M.C.A.,01/12/2010,2000
Bath and North East Somerset Council,10585834,LK1,Fees,C06,Service Delivery,SOMERSET COUNTY COUNCIL,09/12/2010,2275
Bath and North East Somerset Council,10585090,LK1,Fees,C06,Service Delivery,MENDIP CARE AND REPAIR,08/12/2010,2500
Bath and North East Somerset Council,10586331,LK1,Fees,C06,Service Delivery,THE BIG ACT,14/12/2010,2500
Bath and North East Somerset Council,10587542,LK1,Fees,C05,Children's Services,WESTWOOD NURSERY SCHOOL,17/12/2010,2500
Bath and North East Somerset Council,10583840,LK1,Fees,C06,Service Delivery,WESTCOTEC LTD,08/12/2010,2750
Bath and North East Somerset Council,10584673,LK1,Fees,C05,Children's Services,ECORYS UK LTD,03/12/2010,2790
Bath and North East Somerset Council,10585953,LK1,Fees,C03,Adult Social Services & Housing,CARE QUALITY COMMISSION,10/12/2010,2970
Bath and North East Somerset Council,10586842,LK1,Fees,C05,Children's Services,INTERNATIONAL LEARNING AND RESEARCH CENTRE,24/12/2010,2975
Bath and North East Somerset Council,10585145,LK1,Fees,C06,Service Delivery,DEPARTMENT OF TRANSPORT,08/12/2010,3000
Bath and North East Somerset Council,10588581,LK1,Fees,C06,Service Delivery,COOLER FESTIVALS LTD,24/12/2010,3000
Bath and North East Somerset Council,10581495,LK1,Fees,C05,Children's Services,BRISTOL CITY COUNCIL,08/12/2010,3100
Bath and North East Somerset Council,10585717,LK1,Fees,C06,Service Delivery,UNIVERSITY OF BATH,15/12/2010,3449.86
Bath and North East Somerset Council,10585912,LK1,Fees,C06,Service Delivery,UNIVERSITY OF BATH,15/12/2010,3449.86
Bath and North East Somerset Council,10583841,LK1,Fees,C06,Service Delivery,WESTCOTEC LTD,08/12/2010,3655
Bath and North East Somerset Council,10583337,LK1,Fees,C06,Service Delivery,LIFE CYCLE UK,01/12/2010,4214
Bath and North East Somerset Council,10581160,LK1,Fees,C05,Children's Services,OFF THE RECORD (B&NES),06/12/2010,5000
Bath and North East Somerset Council,10582767,LK1,Fees,C03,Adult Social Services & Housing,THE PLUSS ORGANISATION LTD,01/12/2010,5000
Bath and North East Somerset Council,10585237,LK1,Fees,C02,Resources,CRIMINAL RECORDS BUREAU,10/12/2010,8938
Bath and North East Somerset Council,10587543,LK1,Fees,C05,Children's Services,OBMH NHS FOUNDATION TRUST,21/12/2010,9372
Bath and North East Somerset Council,10587126,LK1,Fees,C06,Service Delivery,NATURAL THEATRE COMPANY,20/12/2010,10000
Bath and North East Somerset Council,10584463,LK1,Fees,C05,Children's Services,CITY OF BATH COLLEGE,02/12/2010,10989.33
Bath and North East Somerset Council,10586080,LK1,Fees,C06,Service Delivery,HAMILTONS GALLERIES LTD,09/12/2010,13747.5
Bath and North East Somerset Council,10584885,LK1,Fees,C06,Service Delivery,BATH FESTIVALS TRUST,02/12/2010,21871.18
Bath and North East Somerset Council,10584674,LK1,Fees,C05,Children's Services,ECORYS UK LTD,03/12/2010,25110
Bath and North East Somerset Council,10583483,LK1,Fees,C02,Resources,BATH AND NORTH EAST SOMERSET PCT,01/12/2010,144591
Bath and North East Somerset Council,21014500,YF2,Fees & Charges,C03,Adult Social Services & Housing,EUROPEAN CARE (UK) LTD - REDACTED,08/12/2010,43.64
Bath and North East Somerset Council,21019314,YF2,Fees & Charges,C03,Adult Social Services & Housing,CEDAR PARK NURSING HOME,20/12/2010,50.23
Bath and North East Somerset Council,21019385,YF2,Fees & Charges,C03,Adult Social Services & Housing,REDACTED,20/12/2010,86.6
Bath and North East Somerset Council,21019385,YF2,Fees & Charges,C03,Adult Social Services & Housing,REDACTED,20/12/2010,86.6
Bath and North East Somerset Council,21019385,YF2,Fees & Charges,C03,Adult Social Services & Housing,REDACTED,20/12/2010,86.6
Bath and North East Somerset Council,21019385,YF2,Fees & Charges,C03,Adult Social Services & Housing,REDACTED,20/12/2010,86.6
Bath and North East Somerset Council,21019385,YF2,Fees & Charges,C03,Adult Social Services & Housing,REDACTED,20/12/2010,86.6
Bath and North East Somerset Council,21019385,YF2,Fees & Charges,C03,Adult Social Services & Housing,REDACTED,20/12/2010,86.6
Bath and North East Somerset Council,21019385,YF2,Fees & Charges,C03,Adult Social Services & Housing,REDACTED,20/12/2010,86.6
Bath and North East Somerset Council,21019385,YF2,Fees & Charges,C03,Adult Social Services & Housing,REDACTED,20/12/2010,86.6
Bath and North East Somerset Council,21019385,YF2,Fees & Charges,C03,Adult Social Services & Housing,REDACTED,20/12/2010,86.6
Bath and North East Somerset Council,21019385,YF2,Fees & Charges,C03,Adult Social Services & Housing,REDACTED,20/12/2010,86.6
Bath and North East Somerset Council,21019385,YF2,Fees & Charges,C03,Adult Social Services & Housing,REDACTED,20/12/2010,86.6
Bath and North East Somerset Council,21019385,YF2,Fees & Charges,C03,Adult Social Services & Housing,REDACTED,20/12/2010,86.6
Bath and North East Somerset Council,21019385,YF2,Fees & Charges,C03,Adult Social Services & Housing,REDACTED,20/12/2010,86.6
Bath and North East Somerset Council,21019385,YF2,Fees & Charges,C03,Adult Social Services & Housing,REDACTED,20/12/2010,86.6
Bath and North East Somerset Council,21019385,YF2,Fees & Charges,C03,Adult Social Services & Housing,REDACTED,20/12/2010,86.6
Bath and North East Somerset Council,21019385,YF2,Fees & Charges,C03,Adult Social Services & Housing,REDACTED,20/12/2010,86.6
Bath and North East Somerset Council,21019385,YF2,Fees & Charges,C03,Adult Social Services & Housing,REDACTED,20/12/2010,86.6
Bath and North East Somerset Council,21019385,YF2,Fees & Charges,C03,Adult Social Services & Housing,REDACTED,20/12/2010,86.6
Bath and North East Somerset Council,21019385,YF2,Fees & Charges,C03,Adult Social Services & Housing,REDACTED,20/12/2010,86.6
Bath and North East Somerset Council,21019385,YF2,Fees & Charges,C03,Adult Social Services & Housing,REDACTED,20/12/2010,86.6
Bath and North East Somerset Council,21019385,YF2,Fees & Charges,C03,Adult Social Services & Housing,REDACTED,20/12/2010,86.6
Bath and North East Somerset Council,21019385,YF2,Fees & Charges,C03,Adult Social Services & Housing,REDACTED,20/12/2010,86.6
Bath and North East Somerset Council,21019385,YF2,Fees & Charges,C03,Adult Social Services & Housing,REDACTED,20/12/2010,86.6
Bath and North East Somerset Council,21019385,YF2,Fees & Charges,C03,Adult Social Services & Housing,REDACTED,20/12/2010,86.6
Bath and North East Somerset Council,21019385,YF2,Fees & Charges,C03,Adult Social Services & Housing,REDACTED,20/12/2010,86.6
Bath and North East Somerset Council,21019385,YF2,Fees & Charges,C03,Adult Social Services & Housing,REDACTED,20/12/2010,86.6
Bath and North East Somerset Council,21019385,YF2,Fees & Charges,C03,Adult Social Services & Housing,REDACTED,20/12/2010,86.6
Bath and North East Somerset Council,21019385,YF2,Fees & Charges,C03,Adult Social Services & Housing,REDACTED,20/12/2010,86.6
Bath and North East Somerset Council,21019385,YF2,Fees & Charges,C03,Adult Social Services & Housing,REDACTED,20/12/2010,86.6
Bath and North East Somerset Council,21019385,YF2,Fees & Charges,C03,Adult Social Services & Housing,REDACTED,20/12/2010,86.6
Bath and North East Somerset Council,21019385,YF2,Fees & Charges,C03,Adult Social Services & Housing,REDACTED,20/12/2010,86.6
Bath and North East Somerset Council,21019385,YF2,Fees & Charges,C03,Adult Social Services & Housing,REDACTED,20/12/2010,86.6
Bath and North East Somerset Council,21019385,YF2,Fees & Charges,C03,Adult Social Services & Housing,REDACTED,20/12/2010,86.6
Bath and North East Somerset Council,21019385,YF2,Fees & Charges,C03,Adult Social Services & Housing,REDACTED,20/12/2010,86.6
Bath and North East Somerset Council,21019385,YF2,Fees & Charges,C03,Adult Social Services & Housing,REDACTED,20/12/2010,86.6
Bath and North East Somerset Council,21019314,YF2,Fees & Charges,C03,Adult Social Services & Housing,CEDAR PARK NURSING HOME,20/12/2010,117.21
Bath and North East Somerset Council,10588015,YF2,Fees & Charges,C04,Development & Major Projects,HAMMONDS PROJECT MANAGEMENT SERVICES LTD,23/12/2010,50
Bath and North East Somerset Council,10584686,YF2,Fees & Charges,C06,Service Delivery,CALLIGRAPHY UK LTD,02/12/2010,440.89
Bath and North East Somerset Council,10582867,YF2,Fees & Charges,C06,Service Delivery,TRIBAL RESOURCING LTD,08/12/2010,473.55
Bath and North East Somerset Council,10582865,YF2,Fees & Charges,C06,Service Delivery,TRIBAL RESOURCING LTD,08/12/2010,593.04
Bath and North East Somerset Council,10587634,YF2,Fees & Charges,C06,Service Delivery,AQUATERRA LEISURE LIMITED,24/12/2010,4080.47
Bath and North East Somerset Council,10586505,YF2,Fees & Charges,C06,Service Delivery,WEST WILTS ROOFING,21/12/2010,5468.44
Bath and North East Somerset Council,21020065,LM2,Foster Carer Allowances,C05,Children's Services,REDACTED,21/12/2010,27.1
Bath and North East Somerset Council,21020062,LM2,Foster Carer Allowances,C05,Children's Services,REDACTED,21/12/2010,100
Bath and North East Somerset Council,21014781,LM2,Foster Carer Allowances,C05,Children's Services,REDACTED,08/12/2010,142.49
Bath and North East Somerset Council,21020076,LM2,Foster Carer Allowances,C05,Children's Services,REDACTED,21/12/2010,142.49
Bath and North East Somerset Council,21014792,LM2,Foster Carer Allowances,C05,Children's Services,REDACTED,08/12/2010,177.38
Bath and North East Somerset Council,21020081,LM2,Foster Carer Allowances,C05,Children's Services,REDACTED,21/12/2010,177.38
Bath and North East Somerset Council,21020106,LM2,Foster Carer Allowances,C05,Children's Services,REDACTED,21/12/2010,215.74
Bath and North East Somerset Council,21020062,LM2,Foster Carer Allowances,C05,Children's Services,REDACTED,21/12/2010,240.72
Bath and North East Somerset Council,21014762,LM2,Foster Carer Allowances,C05,Children's Services,REDACTED,08/12/2010,354.76
Bath and North East Somerset Council,21020047,LM2,Foster Carer Allowances,C05,Children's Services,REDACTED,21/12/2010,354.76
Bath and North East Somerset Council,21020062,LM2,Foster Carer Allowances,C05,Children's Services,REDACTED,21/12/2010,354.76
Bath and North East Somerset Council,21020065,LM2,Foster Carer Allowances,C05,Children's Services,REDACTED,21/12/2010,354.76
Bath and North East Somerset Council,21014751,LM2,Foster Carer Allowances,C05,Children's Services,REDACTED,08/12/2010,494.94
Bath and North East Somerset Council,21020036,LM2,Foster Carer Allowances,C05,Children's Services,REDACTED,21/12/2010,494.94
Bath and North East Somerset Council,21020062,LM2,Foster Carer Allowances,C05,Children's Services,REDACTED,21/12/2010,680.42
Bath and North East Somerset Council,21014792,LM2,Foster Carer Allowances,C05,Children's Services,REDACTED,08/12/2010,689.78
Bath and North East Somerset Council,21014827,LM2,Foster Carer Allowances,C05,Children's Services,REDACTED,08/12/2010,733
Bath and North East Somerset Council,21020111,LM2,Foster Carer Allowances,C05,Children's Services,REDACTED,21/12/2010,733
Bath and North East Somerset Council,21014792,LM2,Foster Carer Allowances,C05,Children's Services,REDACTED,08/12/2010,742.84
Bath and North East Somerset Council,21020076,LM2,Foster Carer Allowances,C05,Children's Services,REDACTED,21/12/2010,742.84
Bath and North East Somerset Council,21020076,LM2,Foster Carer Allowances,C05,Children's Services,REDACTED,21/12/2010,742.84
Bath and North East Somerset Council,21014822,LM2,Foster Carer Allowances,C05,Children's Services,REDACTED,08/12/2010,750
Bath and North East Somerset Council,21020106,LM2,Foster Carer Allowances,C05,Children's Services,REDACTED,21/12/2010,750
Bath and North East Somerset Council,21014797,LM2,Foster Carer Allowances,C05,Children's Services,REDACTED,08/12/2010,771.98
Bath and North East Somerset Council,21014797,LM2,Foster Carer Allowances,C05,Children's Services,REDACTED,08/12/2010,771.98
Bath and North East Somerset Council,21014798,LM2,Foster Carer Allowances,C05,Children's Services,REDACTED,08/12/2010,771.98
Bath and North East Somerset Council,21014798,LM2,Foster Carer Allowances,C05,Children's Services,REDACTED,08/12/2010,771.98
Bath and North East Somerset Council,21020081,LM2,Foster Carer Allowances,C05,Children's Services,REDACTED,21/12/2010,771.98
Bath and North East Somerset Council,21020081,LM2,Foster Carer Allowances,C05,Children's Services,REDACTED,21/12/2010,771.98
Bath and North East Somerset Council,21020082,LM2,Foster Carer Allowances,C05,Children's Services,REDACTED,21/12/2010,771.98
Bath and North East Somerset Council,21020082,LM2,Foster Carer Allowances,C05,Children's Services,REDACTED,21/12/2010,771.98
Bath and North East Somerset Council,21020071,LM2,Foster Carer Allowances,C05,Children's Services,REDACTED,21/12/2010,772.2
Bath and North East Somerset Council,21014751,LM2,Foster Carer Allowances,C05,Children's Services,REDACTED,08/12/2010,782.92
Bath and North East Somerset Council,21020036,LM2,Foster Carer Allowances,C05,Children's Services,REDACTED,21/12/2010,782.92
Bath and North East Somerset Council,21014795,LM2,Foster Carer Allowances,C05,Children's Services,REDACTED,08/12/2010,790.7
Bath and North East Somerset Council,21014795,LM2,Foster Carer Allowances,C05,Children's Services,REDACTED,08/12/2010,790.7
Bath and North East Somerset Council,21014795,LM2,Foster Carer Allowances,C05,Children's Services,REDACTED,08/12/2010,790.7
Bath and North East Somerset Council,21014800,LM2,Foster Carer Allowances,C05,Children's Services,REDACTED,08/12/2010,790.7
Bath and North East Somerset Council,21020079,LM2,Foster Carer Allowances,C05,Children's Services,REDACTED,21/12/2010,790.7
Bath and North East Somerset Council,21020079,LM2,Foster Carer Allowances,C05,Children's Services,REDACTED,21/12/2010,790.7
Bath and North East Somerset Council,21020079,LM2,Foster Carer Allowances,C05,Children's Services,REDACTED,21/12/2010,790.7
Bath and North East Somerset Council,21020084,LM2,Foster Carer Allowances,C05,Children's Services,REDACTED,21/12/2010,790.7
Bath and North East Somerset Council,21014739,LM2,Foster Carer Allowances,C05,Children's Services,REDACTED,08/12/2010,794.86
Bath and North East Somerset Council,21014739,LM2,Foster Carer Allowances,C05,Children's Services,REDACTED,08/12/2010,794.86
Bath and North East Somerset Council,21020024,LM2,Foster Carer Allowances,C05,Children's Services,REDACTED,21/12/2010,794.86
Bath and North East Somerset Council,21020024,LM2,Foster Carer Allowances,C05,Children's Services,REDACTED,21/12/2010,794.86
Bath and North East Somerset Council,21014821,LM2,Foster Carer Allowances,C05,Children's Services,REDACTED,08/12/2010,800
Bath and North East Somerset Council,21014821,LM2,Foster Carer Allowances,C05,Children's Services,REDACTED,08/12/2010,800
Bath and North East Somerset Council,21014821,LM2,Foster Carer Allowances,C05,Children's Services,REDACTED,08/12/2010,800
Bath and North East Somerset Council,21014822,LM2,Foster Carer Allowances,C05,Children's Services,REDACTED,08/12/2010,800
Bath and North East Somerset Council,21020105,LM2,Foster Carer Allowances,C05,Children's Services,REDACTED,21/12/2010,800
Bath and North East Somerset Council,21020105,LM2,Foster Carer Allowances,C05,Children's Services,REDACTED,21/12/2010,800
Bath and North East Somerset Council,21020105,LM2,Foster Carer Allowances,C05,Children's Services,REDACTED,21/12/2010,800
Bath and North East Somerset Council,21020106,LM2,Foster Carer Allowances,C05,Children's Services,REDACTED,21/12/2010,800
Bath and North East Somerset Council,21014832,LM2,Foster Carer Allowances,C05,Children's Services,REDACTED,08/12/2010,806
Bath and North East Somerset Council,21014778,LM2,Foster Carer Allowances,C05,Children's Services,REDACTED,08/12/2010,807.36
Bath and North East Somerset Council,21014778,LM2,Foster Carer Allowances,C05,Children's Services,REDACTED,08/12/2010,807.36
Bath and North East Somerset Council,21014781,LM2,Foster Carer Allowances,C05,Children's Services,REDACTED,08/12/2010,807.36
Bath and North East Somerset Council,21014781,LM2,Foster Carer Allowances,C05,Children's Services,REDACTED,08/12/2010,807.36
Bath and North East Somerset Council,21014793,LM2,Foster Carer Allowances,C05,Children's Services,REDACTED,08/12/2010,807.36
Bath and North East Somerset Council,21014793,LM2,Foster Carer Allowances,C05,Children's Services,REDACTED,08/12/2010,807.36
Bath and North East Somerset Council,21014793,LM2,Foster Carer Allowances,C05,Children's Services,REDACTED,08/12/2010,807.36
Bath and North East Somerset Council,21020063,LM2,Foster Carer Allowances,C05,Children's Services,REDACTED,21/12/2010,807.36
Bath and North East Somerset Council,21020063,LM2,Foster Carer Allowances,C05,Children's Services,REDACTED,21/12/2010,807.36
Bath and North East Somerset Council,21020066,LM2,Foster Carer Allowances,C05,Children's Services,REDACTED,21/12/2010,807.36
Bath and North East Somerset Council,21020066,LM2,Foster Carer Allowances,C05,Children's Services,REDACTED,21/12/2010,807.36
Bath and North East Somerset Council,21020077,LM2,Foster Carer Allowances,C05,Children's Services,REDACTED,21/12/2010,807.36
Bath and North East Somerset Council,21020077,LM2,Foster Carer Allowances,C05,Children's Services,REDACTED,21/12/2010,807.36
Bath and North East Somerset Council,21020077,LM2,Foster Carer Allowances,C05,Children's Services,REDACTED,21/12/2010,807.36
Bath and North East Somerset Council,21014814,LM2,Foster Carer Allowances,C05,Children's Services,REDACTED,08/12/2010,809.88
Bath and North East Somerset Council,21020098,LM2,Foster Carer Allowances,C05,Children's Services,REDACTED,21/12/2010,809.88
Bath and North East Somerset Council,21014818,LM2,Foster Carer Allowances,C05,Children's Services,REDACTED,08/12/2010,812
Bath and North East Somerset Council,21014818,LM2,Foster Carer Allowances,C05,Children's Services,REDACTED,08/12/2010,812
Bath and North East Somerset Council,21014818,LM2,Foster Carer Allowances,C05,Children's Services,REDACTED,08/12/2010,812
Bath and North East Somerset Council,21020102,LM2,Foster Carer Allowances,C05,Children's Services,REDACTED,21/12/2010,812
Bath and North East Somerset Council,21020102,LM2,Foster Carer Allowances,C05,Children's Services,REDACTED,21/12/2010,812
Bath and North East Somerset Council,21020102,LM2,Foster Carer Allowances,C05,Children's Services,REDACTED,21/12/2010,812
Bath and North East Somerset Council,21014811,LM2,Foster Carer Allowances,C05,Children's Services,REDACTED,08/12/2010,816
Bath and North East Somerset Council,21014811,LM2,Foster Carer Allowances,C05,Children's Services,REDACTED,08/12/2010,816
Bath and North East Somerset Council,21014811,LM2,Foster Carer Allowances,C05,Children's Services,REDACTED,08/12/2010,816
Bath and North East Somerset Council,21014813,LM2,Foster Carer Allowances,C05,Children's Services,REDACTED,08/12/2010,816
Bath and North East Somerset Council,21020095,LM2,Foster Carer Allowances,C05,Children's Services,REDACTED,21/12/2010,816
Bath and North East Somerset Council,21020095,LM2,Foster Carer Allowances,C05,Children's Services,REDACTED,21/12/2010,816
Bath and North East Somerset Council,21020095,LM2,Foster Carer Allowances,C05,Children's Services,REDACTED,21/12/2010,816
Bath and North East Somerset Council,21020065,LM2,Foster Carer Allowances,C05,Children's Services,REDACTED,21/12/2010,1033.24
Bath and North East Somerset Council,21014813,LM2,Foster Carer Allowances,C05,Children's Services,REDACTED,08/12/2010,1130.92
Bath and North East Somerset Council,21014842,LM2,Foster Carer Allowances,C05,Children's Services,REDACTED,08/12/2010,1544.4
Bath and North East Somerset Council,21020127,LM2,Foster Carer Allowances,C05,Children's Services,REDACTED,21/12/2010,1544.4
Bath and North East Somerset Council,21014762,LM2,Foster Carer Allowances,C05,Children's Services,REDACTED,08/12/2010,2066.48
Bath and North East Somerset Council,21020047,LM2,Foster Carer Allowances,C05,Children's Services,REDACTED,21/12/2010,2066.48
Bath and North East Somerset Council,10586011,LM2,Foster Carer Allowances,C05,Children's Services,REDACTED,10/12/2010,3262.75
Bath and North East Somerset Council,10586012,LM2,Foster Carer Allowances,C05,Children's Services,REDACTED,10/12/2010,3436.66
Bath and North East Somerset Council,10586008,LM2,Foster Carer Allowances,C05,Children's Services,REDACTED,10/12/2010,3473.24
Bath and North East Somerset Council,10585998,LM2,Foster Carer Allowances,C05,Children's Services,REDACTED,10/12/2010,3558.8
Bath and North East Somerset Council,10585997,LM2,Foster Carer Allowances,C05,Children's Services,REDACTED,10/12/2010,3776.42
Bath and North East Somerset Council,10586007,LM2,Foster Carer Allowances,C05,Children's Services,REDACTED,10/12/2010,4047.36
Bath and North East Somerset Council,10586010,LM2,Foster Carer Allowances,C05,Children's Services,REDACTED,10/12/2010,4047.36
Bath and North East Somerset Council,10586009,LM2,Foster Carer Allowances,C05,Children's Services,REDACTED,10/12/2010,4216
Bath and North East Somerset Council,10586014,LM2,Foster Carer Allowances,C05,Children's Services,REDACTED,10/12/2010,4216
Bath and North East Somerset Council,10586013,LM2,Foster Carer Allowances,C05,Children's Services,REDACTED,10/12/2010,4296.29
Bath and North East Somerset Council,10585996,LM2,Foster Carer Allowances,C05,Children's Services,REDACTED,10/12/2010,4654.8
Bath and North East Somerset Council,10588142,LM2,Foster Carer Allowances,C05,Children's Services,REDACTED,24/12/2010,560.71
Bath and North East Somerset Council,10587561,LM2,Foster Carer Allowances,C05,Children's Services,REDACTED,23/12/2010,810.6
Bath and North East Somerset Council,10587570,LM2,Foster Carer Allowances,C05,Children's Services,REDACTED,23/12/2010,821.33
Bath and North East Somerset Council,10583260,LM2,Foster Carer Allowances,C05,Children's Services,REDACTED,15/12/2010,1121.43
Bath and North East Somerset Council,10582295,LM2,Foster Carer Allowances,C05,Children's Services,REDACTED,08/12/2010,2600
Bath and North East Somerset Council,10587560,LM2,Foster Carer Allowances,C05,Children's Services,REDACTED,24/12/2010,2600
Bath and North East Somerset Council,10586001,LM2,Foster Carer Allowances,C05,Children's Services,REDACTED,21/12/2010,2610.76
Bath and North East Somerset Council,10585994,LM2,Foster Carer Allowances,C05,Children's Services,REDACTED,20/12/2010,2866.26
Bath and North East Somerset Council,10587571,LM2,Foster Carer Allowances,C05,Children's Services,REDACTED,23/12/2010,2977.64
Bath and North East Somerset Council,10585999,LM2,Foster Carer Allowances,C05,Children's Services,REDACTED,17/12/2010,3019.71
Bath and North East Somerset Council,10586000,LM2,Foster Carer Allowances,C05,Children's Services,REDACTED,17/12/2010,3019.71
Bath and North East Somerset Council,10583262,LM2,Foster Carer Allowances,C05,Children's Services,REDACTED,15/12/2010,3045
Bath and North East Somerset Council,10585689,LM2,Foster Carer Allowances,C05,Children's Services,REDACTED,10/12/2010,3099.99
Bath and North East Somerset Council,10588140,LM2,Foster Carer Allowances,C05,Children's Services,REDACTED,24/12/2010,3146.5
Bath and North East Somerset Council,10587569,LM2,Foster Carer Allowances,C05,Children's Services,REDACTED,23/12/2010,3276.3
Bath and North East Somerset Council,10583257,LM2,Foster Carer Allowances,C05,Children's Services,REDACTED,15/12/2010,3297
Bath and North East Somerset Council,10582292,LM2,Foster Carer Allowances,C05,Children's Services,REDACTED,06/12/2010,3300
Bath and North East Somerset Council,10582294,LM2,Foster Carer Allowances,C05,Children's Services,REDACTED,06/12/2010,3302.36
Bath and North East Somerset Council,10583259,LM2,Foster Carer Allowances,C05,Children's Services,REDACTED,15/12/2010,3364.29
Bath and North East Somerset Council,10583261,LM2,Foster Carer Allowances,C05,Children's Services,REDACTED,15/12/2010,3364.29
Bath and North East Somerset Council,10583263,LM2,Foster Carer Allowances,C05,Children's Services,REDACTED,15/12/2010,3364.29
Bath and North East Somerset Council,10582289,LM2,Foster Carer Allowances,C05,Children's Services,REDACTED,08/12/2010,3366
Bath and North East Somerset Council,10587562,LM2,Foster Carer Allowances,C05,Children's Services,REDACTED,24/12/2010,3366
Bath and North East Somerset Council,10585985,LM2,Foster Carer Allowances,C05,Children's Services,REDACTED,20/12/2010,3370.63
Bath and North East Somerset Council,10583660,LM2,Foster Carer Allowances,C05,Children's Services,REDACTED,21/12/2010,3405.34
Bath and North East Somerset Council,10588139,LM2,Foster Carer Allowances,C05,Children's Services,REDACTED,24/12/2010,3406.9
Bath and North East Somerset Council,10587565,LM2,Foster Carer Allowances,C05,Children's Services,REDACTED,24/12/2010,3410
Bath and North East Somerset Council,10587564,LM2,Foster Carer Allowances,C05,Children's Services,REDACTED,24/12/2010,3412.44
Bath and North East Somerset Council,10582290,LM2,Foster Carer Allowances,C05,Children's Services,REDACTED,06/12/2010,3428.57
Bath and North East Somerset Council,10582291,LM2,Foster Carer Allowances,C05,Children's Services,REDACTED,06/12/2010,3428.57
Bath and North East Somerset Council,10582293,LM2,Foster Carer Allowances,C05,Children's Services,REDACTED,06/12/2010,3472.59
Bath and North East Somerset Council,10588141,LM2,Foster Carer Allowances,C05,Children's Services,REDACTED,24/12/2010,3476.43
Bath and North East Somerset Council,10588144,LM2,Foster Carer Allowances,C05,Children's Services,REDACTED,24/12/2010,3476.43
Bath and North East Somerset Council,10588145,LM2,Foster Carer Allowances,C05,Children's Services,REDACTED,24/12/2010,3476.43
Bath and North East Somerset Council,10585991,LM2,Foster Carer Allowances,C05,Children's Services,REDACTED,20/12/2010,3478.51
Bath and North East Somerset Council,10585993,LM2,Foster Carer Allowances,C05,Children's Services,REDACTED,20/12/2010,3478.51
Bath and North East Somerset Council,10585995,LM2,Foster Carer Allowances,C05,Children's Services,REDACTED,20/12/2010,3478.51
Bath and North East Somerset Council,10585986,LM2,Foster Carer Allowances,C05,Children's Services,REDACTED,20/12/2010,3511.06
Bath and North East Somerset Council,10585983,LM2,Foster Carer Allowances,C05,Children's Services,REDACTED,20/12/2010,3534
Bath and North East Somerset Council,10586016,LM2,Foster Carer Allowances,C05,Children's Services,REDACTED,20/12/2010,3534
Bath and North East Somerset Council,10587566,LM2,Foster Carer Allowances,C05,Children's Services,REDACTED,24/12/2010,3542.86
Bath and North East Somerset Council,10585989,LM2,Foster Carer Allowances,C05,Children's Services,REDACTED,20/12/2010,3569.34
Bath and North East Somerset Council,10585990,LM2,Foster Carer Allowances,C05,Children's Services,REDACTED,20/12/2010,3569.34
Bath and North East Somerset Council,10587563,LM2,Foster Carer Allowances,C05,Children's Services,REDACTED,24/12/2010,3588.34
Bath and North East Somerset Council,10585984,LM2,Foster Carer Allowances,C05,Children's Services,REDACTED,20/12/2010,3969.86
Bath and North East Somerset Council,10586017,LM2,Foster Carer Allowances,C05,Children's Services,REDACTED,20/12/2010,3969.86
Bath and North East Somerset Council,10585987,LM2,Foster Carer Allowances,C05,Children's Services,REDACTED,20/12/2010,4118.66
Bath and North East Somerset Council,10583258,LM2,Foster Carer Allowances,C05,Children's Services,REDACTED,15/12/2010,4285.71
Bath and North East Somerset Council,10585988,LM2,Foster Carer Allowances,C05,Children's Services,REDACTED,20/12/2010,4383.4
Bath and North East Somerset Council,10588143,LM2,Foster Carer Allowances,C05,Children's Services,REDACTED,24/12/2010,4428.57
Bath and North East Somerset Council,10586015,LM2,Foster Carer Allowances,C05,Children's Services,REDACTED,10/12/2010,6864.28
Bath and North East Somerset Council,10583256,LM2,Foster Carer Allowances,C05,Children's Services,REDACTED,15/12/2010,9291.22
Bath and North East Somerset Council,10588138,LM2,Foster Carer Allowances,C05,Children's Services,REDACTED,24/12/2010,9600.92
Bath and North East Somerset Council,10582014,KA3,Fuel,C06,Service Delivery,FORD FUELS LTD,07/12/2010,587.37
Bath and North East Somerset Council,10588131,KA3,Fuel,C06,Service Delivery,FORD FUELS LTD,24/12/2010,600.1
Bath and North East Somerset Council,10586543,KA3,Fuel,C06,Service Delivery,DATA TRACK FUEL SYSTEMS LTD,24/12/2010,655
Bath and North East Somerset Council,10582015,KA3,Fuel,C06,Service Delivery,FORD FUELS LTD,07/12/2010,1279.2
Bath and North East Somerset Council,10582454,KA3,Fuel,C06,Service Delivery,FORD FUELS LTD,08/12/2010,2130.17
Bath and North East Somerset Council,10582016,KA3,Fuel,C06,Service Delivery,FORD FUELS LTD,07/12/2010,2133.07
Bath and North East Somerset Council,10585813,KA3,Fuel,C06,Service Delivery,ARVAL UK LTD PAYMENTS,08/12/2010,3033.97
Bath and North East Somerset Council,10581754,KA3,Fuel,C06,Service Delivery,FORD FUELS LTD,01/12/2010,3081
Bath and North East Somerset Council,10581758,KA3,Fuel,C06,Service Delivery,FORD FUELS LTD,01/12/2010,3081
Bath and North East Somerset Council,10584775,KA3,Fuel,C06,Service Delivery,FORD FUELS LTD,15/12/2010,3624.69
Bath and North East Somerset Council,10581755,KA3,Fuel,C06,Service Delivery,FORD FUELS LTD,01/12/2010,4108
Bath and North East Somerset Council,10584772,KA3,Fuel,C06,Service Delivery,FORD FUELS LTD,15/12/2010,4126
Bath and North East Somerset Council,10587163,KA3,Fuel,C06,Service Delivery,FORD FUELS LTD,24/12/2010,4332.34
Bath and North East Somerset Council,10581756,KA3,Fuel,C06,Service Delivery,FORD FUELS LTD,01/12/2010,5135
Bath and North East Somerset Council,10587161,KA3,Fuel,C06,Service Delivery,FORD FUELS LTD,24/12/2010,5247.5
Bath and North East Somerset Council,10582452,KA3,Fuel,C06,Service Delivery,FORD FUELS LTD,08/12/2010,5326.46
Bath and North East Somerset Council,10584771,KA3,Fuel,C06,Service Delivery,FORD FUELS LTD,15/12/2010,5363.8
Bath and North East Somerset Council,10585812,KA3,Fuel,C06,Service Delivery,ARVAL UK LTD PAYMENTS,08/12/2010,5751.72
Bath and North East Somerset Council,10582453,KA3,Fuel,C06,Service Delivery,FORD FUELS LTD,08/12/2010,6265.2
Bath and North East Somerset Council,10581757,KA3,Fuel,C06,Service Delivery,FORD FUELS LTD,01/12/2010,7189
Bath and North East Somerset Council,10584774,KA3,Fuel,C06,Service Delivery,FORD FUELS LTD,15/12/2010,8252
Bath and North East Somerset Council,10587162,KA3,Fuel,C06,Service Delivery,FORD FUELS LTD,24/12/2010,8396
Bath and North East Somerset Council,10587844,HN2,Gas,C02,Resources,SOUTHERN ELECTRIC PLC,21/12/2010,1456.92
Bath and North East Somerset Council,10587844,HN2,Gas,C02,Resources,SOUTHERN ELECTRIC PLC,21/12/2010,9710.95
Bath and North East Somerset Council,10588082,HE1,General Maintenance,C06,Service Delivery,TPM (SOUTH WEST) LTD,22/12/2010,453.2
Bath and North East Somerset Council,10587994,HE1,General Maintenance,C06,Service Delivery,HORDERS,24/12/2010,525.8
Bath and North East Somerset Council,10587918,HE1,General Maintenance,C06,Service Delivery,HORDERS,24/12/2010,644.33
Bath and North East Somerset Council,10588082,HE1,General Maintenance,C06,Service Delivery,TPM (SOUTH WEST) LTD,22/12/2010,679.8
Bath and North East Somerset Council,10586039,HE1,General Maintenance,C06,Service Delivery,WALCOT UPHOLSTERY LTD,29/12/2010,540
Bath and North East Somerset Council,10586806,HE1,General Maintenance,C06,Service Delivery,PAUL LEDBURY,15/12/2010,920
Bath and North East Somerset Council,10585133,HE1,General Maintenance,C06,Service Delivery,SCAN COIN LTD,07/12/2010,1850.44
Bath and North East Somerset Council,10588187,HE1,General Maintenance,C06,Service Delivery,E W HOBBS,22/12/2010,2575.75
Bath and North East Somerset Council,10588967,XA1,Grant Income,Z99,Outside Revenue Accounts,CLG,31/12/2010,698066
Bath and North East Somerset Council,10587643,XA1,Grant Income,Z99,Outside Revenue Accounts,CLG,17/12/2010,698067
Bath and North East Somerset Council,10588658,LV1,Grants to Voluntary Bodies,C02,Resources,BATH & NORTH EAST SOMERSET SOCIAL CLUB,29/12/2010,2000
Bath and North East Somerset Council,10586188,LV1,Grants to Voluntary Bodies,C03,Adult Social Services & Housing,COMBE DOWN HOLIDAY TRUST,24/12/2010,2550
Bath and North East Somerset Council,10588472,LV1,Grants to Voluntary Bodies,C06,Service Delivery,MIDSOMER NORTON + RADSTOCK CHAMBER OF COMMERCE,23/12/2010,6476
Bath and North East Somerset Council,10586193,LV1,Grants to Voluntary Bodies,C03,Adult Social Services & Housing,DEAF PLUS,24/12/2010,24778
Bath and North East Somerset Council,10586267,LV1,Grants to Voluntary Bodies,C03,Adult Social Services & Housing,S.W.A.L.L.O.W. LTD,24/12/2010,6437.5
Bath and North East Somerset Council,10586180,LV1,Grants to Voluntary Bodies,C03,Adult Social Services & Housing,SHAPE HOUSING ASSOCIATION,24/12/2010,7781.25
Bath and North East Somerset Council,10585853,LV1,Grants to Voluntary Bodies,C03,Adult Social Services & Housing,SHAW TRUST LTD,14/12/2010,17594.5
Bath and North East Somerset Council,10586189,LV1,Grants to Voluntary Bodies,C03,Adult Social Services & Housing,CROSSROADS CARE WESSEX LTD,24/12/2010,18264.75
Bath and North East Somerset Council,10586189,LV1,Grants to Voluntary Bodies,C03,Adult Social Services & Housing,CROSSROADS CARE WESSEX LTD,24/12/2010,18657.25
Bath and North East Somerset Council,10586266,LV1,Grants to Voluntary Bodies,C03,Adult Social Services & Housing,SUPPORT FOR PEOPLE WITH ALZHEI,29/12/2010,280.5
Bath and North East Somerset Council,10583963,LV1,Grants to Voluntary Bodies,C06,Service Delivery,M SPERRING,15/12/2010,580
Bath and North East Somerset Council,10583964,LV1,Grants to Voluntary Bodies,C06,Service Delivery,PAROCHIAL CHURCH COUNCIL OF EN,08/12/2010,825
Bath and North East Somerset Council,10586252,LV1,Grants to Voluntary Bodies,C03,Adult Social Services & Housing,CREATIVITY WORKS,24/12/2010,826
Bath and North East Somerset Council,10586184,LV1,Grants to Voluntary Bodies,C03,Adult Social Services & Housing,CARE FORUM-DISABILITY INF SERV,29/12/2010,828.75
Bath and North East Somerset Council,10585101,LV1,Grants to Voluntary Bodies,C06,Service Delivery,TIMSBURY PAROCHIAL CHURCH COUNCIL,24/12/2010,910
Bath and North East Somerset Council,10583966,LV1,Grants to Voluntary Bodies,C06,Service Delivery,PAULTON PAROCHIAL CHURCH COUNCIL,08/12/2010,925
Bath and North East Somerset Council,10586184,LV1,Grants to Voluntary Bodies,C03,Adult Social Services & Housing,CARE FORUM-DISABILITY INF SERV,29/12/2010,1050
Bath and North East Somerset Council,10586197,LV1,Grants to Voluntary Bodies,C03,Adult Social Services & Housing,LIVING (DLC),24/12/2010,1312.75
Bath and North East Somerset Council,10586169,LV1,Grants to Voluntary Bodies,C03,Adult Social Services & Housing,BATH & DISTRICT BOND SCHEME,29/12/2010,1591
Bath and North East Somerset Council,10586264,LV1,Grants to Voluntary Bodies,C03,Adult Social Services & Housing,SOUNDWELL MUSIC THERAPY,29/12/2010,1618.75
Bath and North East Somerset Council,10586269,LV1,Grants to Voluntary Bodies,C03,Adult Social Services & Housing,TERRENCE HIGGINS TRUST,24/12/2010,1676.75
Bath and North East Somerset Council,10586168,LV1,Grants to Voluntary Bodies,C03,Adult Social Services & Housing,THE ALZHEIMER'S SOCIETY N.E.SO,24/12/2010,1838.5
Bath and North East Somerset Council,10586181,LV1,Grants to Voluntary Bodies,C03,Adult Social Services & Housing,CARE FORUM COMPLAINTS ADVOCAC,24/12/2010,1909
Bath and North East Somerset Council,10586252,LV1,Grants to Voluntary Bodies,C03,Adult Social Services & Housing,CREATIVITY WORKS,24/12/2010,2159.75
Bath and North East Somerset Council,10586173,LV1,Grants to Voluntary Bodies,C03,Adult Social Services & Housing,BATH & DISTRICT CITIZENS ADVIC,24/12/2010,2195
Bath and North East Somerset Council,10586182,LV1,Grants to Voluntary Bodies,C03,Adult Social Services & Housing,CARE FORUM-DISABILITY INF SERV,29/12/2010,2244.75
Bath and North East Somerset Council,10586165,LV1,Grants to Voluntary Bodies,C03,Adult Social Services & Housing,AGE CONCERN BATH & N E SOMERSE,24/12/2010,2503.25
Bath and North East Somerset Council,10586178,LV1,Grants to Voluntary Bodies,C03,Adult Social Services & Housing,BATH MIND,29/12/2010,2626.5
Bath and North East Somerset Council,10586263,LV1,Grants to Voluntary Bodies,C03,Adult Social Services & Housing,RETHINK,29/12/2010,2646.5
Bath and North East Somerset Council,10586178,LV1,Grants to Voluntary Bodies,C03,Adult Social Services & Housing,BATH MIND,29/12/2010,3315
Bath and North East Somerset Council,10586166,LV1,Grants to Voluntary Bodies,C03,Adult Social Services & Housing,AGE CONCERN BATH & N E SOMERSE,24/12/2010,3482
Bath and North East Somerset Council,10586183,LV1,Grants to Voluntary Bodies,C03,Adult Social Services & Housing,CARE FORUM - BATH & NTH EAST S,24/12/2010,3556.75
Bath and North East Somerset Council,10586179,LV1,Grants to Voluntary Bodies,C03,Adult Social Services & Housing,BATH RACIAL EQUALITY COUNCIL,29/12/2010,3596.25
Bath and North East Somerset Council,10586165,LV1,Grants to Voluntary Bodies,C03,Adult Social Services & Housing,AGE CONCERN BATH & N E SOMERSE,24/12/2010,3750
Bath and North East Somerset Council,10586980,LV1,Grants to Voluntary Bodies,C02,Resources,BATH & NES REC,15/12/2010,4167
Bath and North East Somerset Council,10586167,LV1,Grants to Voluntary Bodies,C03,Adult Social Services & Housing,THE ALZHEIMER'S SOCIETY N.E.SO,24/12/2010,4171.75
Bath and North East Somerset Council,10586249,LV1,Grants to Voluntary Bodies,C03,Adult Social Services & Housing,INCLUDE TO INFORM,24/12/2010,4383.25
Bath and North East Somerset Council,10586186,LV1,Grants to Voluntary Bodies,C03,Adult Social Services & Housing,BATH & NORTH EAST SOMERSET CARERS CENTRE,24/12/2010,4870.75
Bath and North East Somerset Council,10586178,LV1,Grants to Voluntary Bodies,C03,Adult Social Services & Housing,BATH MIND,29/12/2010,4961.75
Bath and North East Somerset Council,10586268,LV1,Grants to Voluntary Bodies,C03,Adult Social Services & Housing,SWAN ADVICE NETWORK,24/12/2010,5192
Bath and North East Somerset Council,10586175,LV1,Grants to Voluntary Bodies,C03,Adult Social Services & Housing,BATH CHURCHES HOUSING ASSOC,24/12/2010,5522
Bath and North East Somerset Council,10586166,LV1,Grants to Voluntary Bodies,C03,Adult Social Services & Housing,AGE CONCERN BATH & N E SOMERSE,24/12/2010,5643.5
Bath and North East Somerset Council,10586184,LV1,Grants to Voluntary Bodies,C03,Adult Social Services & Housing,CARE FORUM-DISABILITY INF SERV,29/12/2010,5805.25
Bath and North East Somerset Council,10586178,LV1,Grants to Voluntary Bodies,C03,Adult Social Services & Housing,BATH MIND,29/12/2010,6250
Bath and North East Somerset Council,10586175,LV1,Grants to Voluntary Bodies,C03,Adult Social Services & Housing,BATH CHURCHES HOUSING ASSOC,24/12/2010,6404.5
Bath and North East Somerset Council,10586175,LV1,Grants to Voluntary Bodies,C03,Adult Social Services & Housing,BATH CHURCHES HOUSING ASSOC,24/12/2010,6571.5
Bath and North East Somerset Council,10586165,LV1,Grants to Voluntary Bodies,C03,Adult Social Services & Housing,AGE CONCERN BATH & N E SOMERSE,24/12/2010,6578.5
Bath and North East Somerset Council,10586178,LV1,Grants to Voluntary Bodies,C03,Adult Social Services & Housing,BATH MIND,29/12/2010,6584
Bath and North East Somerset Council,10586178,LV1,Grants to Voluntary Bodies,C03,Adult Social Services & Housing,BATH MIND,29/12/2010,7772.5
Bath and North East Somerset Council,10586175,LV1,Grants to Voluntary Bodies,C03,Adult Social Services & Housing,BATH CHURCHES HOUSING ASSOC,24/12/2010,7886.75
Bath and North East Somerset Council,10586248,LV1,Grants to Voluntary Bodies,C03,Adult Social Services & Housing,DRUGS AND HOMELESS INITIATIVE,24/12/2010,8023.25
Bath and North East Somerset Council,10586263,LV1,Grants to Voluntary Bodies,C03,Adult Social Services & Housing,RETHINK,29/12/2010,8124.5
Bath and North East Somerset Council,10586263,LV1,Grants to Voluntary Bodies,C03,Adult Social Services & Housing,RETHINK,29/12/2010,9427.75
Bath and North East Somerset Council,10586170,LV1,Grants to Voluntary Bodies,C03,Adult Social Services & Housing,BATH BLACK & OME SEN CITIZN PR,29/12/2010,9472
Bath and North East Somerset Council,10586173,LV1,Grants to Voluntary Bodies,C03,Adult Social Services & Housing,BATH & DISTRICT CITIZENS ADVIC,24/12/2010,9485.75
Bath and North East Somerset Council,10586266,LV1,Grants to Voluntary Bodies,C03,Adult Social Services & Housing,SUPPORT FOR PEOPLE WITH ALZHEI,29/12/2010,9650
Bath and North East Somerset Council,10586265,LV1,Grants to Voluntary Bodies,C03,Adult Social Services & Housing,SUPPORT FOR PEOPLE WITH ALZHEI,29/12/2010,10017.75
Bath and North East Somerset Council,10586169,LV1,Grants to Voluntary Bodies,C03,Adult Social Services & Housing,BATH & DISTRICT BOND SCHEME,29/12/2010,10832.75
Bath and North East Somerset Council,10586185,LV1,Grants to Voluntary Bodies,C03,Adult Social Services & Housing,BATH & NORTH EAST SOMERSET CARERS CENTRE,24/12/2010,11084.75
Bath and North East Somerset Council,10586265,LV1,Grants to Voluntary Bodies,C03,Adult Social Services & Housing,SUPPORT FOR PEOPLE WITH ALZHEI,29/12/2010,11152.75
Bath and North East Somerset Council,10586253,LV1,Grants to Voluntary Bodies,C03,Adult Social Services & Housing,NEXT LINK DOMESTIC VIOLENCE SERVICE,29/12/2010,11548.75
Bath and North East Somerset Council,10586178,LV1,Grants to Voluntary Bodies,C03,Adult Social Services & Housing,BATH MIND,29/12/2010,12500
Bath and North East Somerset Council,10586168,LV1,Grants to Voluntary Bodies,C03,Adult Social Services & Housing,THE ALZHEIMER'S SOCIETY N.E.SO,24/12/2010,15338.25
Bath and North East Somerset Council,10587699,LV1,Grants to Voluntary Bodies,C02,Resources,BATH AND NORTH EAST SOMERSET PCT,21/12/2010,16298
Bath and North East Somerset Council,10586263,LV1,Grants to Voluntary Bodies,C03,Adult Social Services & Housing,RETHINK,29/12/2010,17538
Bath and North East Somerset Council,10586250,LV1,Grants to Voluntary Bodies,C03,Adult Social Services & Housing,MENDIP CARE AND REPAIR,24/12/2010,18611.75
Bath and North East Somerset Council,10581064,LV1,Grants to Voluntary Bodies,C03,Adult Social Services & Housing,BATH AND NORTH EAST SOMERSET PCT,01/12/2010,20381
Bath and North East Somerset Council,10586165,LV1,Grants to Voluntary Bodies,C03,Adult Social Services & Housing,AGE CONCERN BATH & N E SOMERSE,24/12/2010,22598.25
Bath and North East Somerset Council,10586185,LV1,Grants to Voluntary Bodies,C03,Adult Social Services & Housing,BATH & NORTH EAST SOMERSET CARERS CENTRE,24/12/2010,22875.5
Bath and North East Somerset Council,10586167,LV1,Grants to Voluntary Bodies,C03,Adult Social Services & Housing,THE ALZHEIMER'S SOCIETY N.E.SO,24/12/2010,23508.5
Bath and North East Somerset Council,10586167,LV1,Grants to Voluntary Bodies,C03,Adult Social Services & Housing,THE ALZHEIMER'S SOCIETY N.E.SO,24/12/2010,24828.75
Bath and North East Somerset Council,10586173,LV1,Grants to Voluntary Bodies,C03,Adult Social Services & Housing,BATH & DISTRICT CITIZENS ADVIC,24/12/2010,100000
Bath and North East Somerset Council,10585272,3G1,Grants/Advances,C03,Adult Social Services & Housing,P & J SHOWERS LTD,08/12/2010,500
Bath and North East Somerset Council,10585274,3G1,Grants/Advances,C03,Adult Social Services & Housing,P & J SHOWERS LTD,08/12/2010,1225
Bath and North East Somerset Council,10585285,3G1,Grants/Advances,C03,Adult Social Services & Housing,A J & M L SPRATLING,07/12/2010,1275
Bath and North East Somerset Council,10586311,3G1,Grants/Advances,C03,Adult Social Services & Housing,A J & M L SPRATLING,14/12/2010,1430
Bath and North East Somerset Council,10588032,3G1,Grants/Advances,C03,Adult Social Services & Housing,P & J SHOWERS LTD,30/12/2010,2200
Bath and North East Somerset Council,10586299,3G1,Grants/Advances,C03,Adult Social Services & Housing,A & R MILES LTD,20/12/2010,2480
Bath and North East Somerset Council,10586997,3G1,Grants/Advances,C03,Adult Social Services & Housing,H SEAMAN & SON,30/12/2010,2591.75
Bath and North East Somerset Council,10588031,3G1,Grants/Advances,C03,Adult Social Services & Housing,P & J SHOWERS LTD,30/12/2010,2825
Bath and North East Somerset Council,10583893,3G1,Grants/Advances,C03,Adult Social Services & Housing,A & R MILES LTD,08/12/2010,2840
Bath and North East Somerset Council,10585286,3G1,Grants/Advances,C03,Adult Social Services & Housing,A J & M L SPRATLING,07/12/2010,2890
Bath and North East Somerset Council,10582433,3G1,Grants/Advances,C03,Adult Social Services & Housing,A & R MILES LTD,01/12/2010,3090
Bath and North East Somerset Council,10586302,3G1,Grants/Advances,C03,Adult Social Services & Housing,H SEAMAN & SON,16/12/2010,3339
Bath and North East Somerset Council,10583890,3G1,Grants/Advances,C03,Adult Social Services & Housing,CHILTERN INVADEX LTD,01/12/2010,3460
Bath and North East Somerset Council,10588050,3G1,Grants/Advances,C03,Adult Social Services & Housing,TPM (SOUTH WEST) LTD,29/12/2010,3615
Bath and North East Somerset Council,10586297,3G1,Grants/Advances,C03,Adult Social Services & Housing,A J & M L SPRATLING,14/12/2010,6100
Bath and North East Somerset Council,10586298,3G1,Grants/Advances,C03,Adult Social Services & Housing,LIFTECH.ORG LTD,14/12/2010,8281.45
Bath and North East Somerset Council,10586296,3G1,Grants/Advances,C03,Adult Social Services & Housing,MENDIP CARE AND REPAIR,14/12/2010,610
Bath and North East Somerset Council,10588020,3G1,Grants/Advances,C03,Adult Social Services & Housing,MENDIP CARE AND REPAIR,30/12/2010,666.6
Bath and North East Somerset Council,10588033,3G1,Grants/Advances,C03,Adult Social Services & Housing,WRT CORE COMPANY LTD,30/12/2010,1026.9
Bath and North East Somerset Council,10588028,3G1,Grants/Advances,C03,Adult Social Services & Housing,OASIS BATHROOM CENTRE,30/12/2010,1265
Bath and North East Somerset Council,10586981,3G1,Grants/Advances,C03,Adult Social Services & Housing,WARMFRONT CURRENT ACCOUNT,16/12/2010,1516.25
Bath and North East Somerset Council,10588025,3G1,Grants/Advances,C03,Adult Social Services & Housing,LIFTABILITY LIMITED,30/12/2010,2083
Bath and North East Somerset Council,10585263,3G1,Grants/Advances,C03,Adult Social Services & Housing,MENDIP CARE AND REPAIR,08/12/2010,2491.88
Bath and North East Somerset Council,10585266,3G1,Grants/Advances,C03,Adult Social Services & Housing,ANDREW MAISEY,08/12/2010,2750
Bath and North East Somerset Council,10585269,3G1,Grants/Advances,C03,Adult Social Services & Housing,OASIS BATHROOM CENTRE,08/12/2010,2970
Bath and North East Somerset Council,10586300,3G1,Grants/Advances,C03,Adult Social Services & Housing,OASIS BATHROOM CENTRE,14/12/2010,3660
Bath and North East Somerset Council,10585270,3G1,Grants/Advances,C03,Adult Social Services & Housing,OASIS BATHROOM CENTRE,08/12/2010,4060
Bath and North East Somerset Council,10585265,3G1,Grants/Advances,C03,Adult Social Services & Housing,ANDREW MAISEY,08/12/2010,7367.05
Bath and North East Somerset Council,10585406,3G1,Grants/Advances,C03,Adult Social Services & Housing,CENTRE FOR SUSTAINABLE ENERGY,07/12/2010,76000
Bath and North East Somerset Council,10586280,LP1,Hardware Purchase,C05,Children's Services,SHEELAGH BROWN LIMITED,20/12/2010,830
Bath and North East Somerset Council,10586622,LP1,Hardware Purchase,C05,Children's Services,JOHN BEER,24/12/2010,1660
Bath and North East Somerset Council,10586281,LP1,Hardware Purchase,C05,Children's Services,ANNA SKETCHLEY,24/12/2010,6536.25
Bath and North East Somerset Council,10586467,LP1,Hardware Purchase,C05,Children's Services,DELL PRODUCTS,13/12/2010,455.04
Bath and North East Somerset Council,10586282,LP1,Hardware Purchase,C05,Children's Services,RON RICHARDS EDUCATION CONSULTANCY LTD,24/12/2010,1867.5
Bath and North East Somerset Council,10588056,LP1,Hardware Purchase,C05,Children's Services,DELL PRODUCTS,23/12/2010,2524.5
Bath and North East Somerset Council,10585159,LP1,Hardware Purchase,C05,Children's Services,D R NICHOLAS EDUCATIONAL LTD,24/12/2010,2593.75
Bath and North East Somerset Council,10583582,LP1,Hardware Purchase,C05,Children's Services,LEADING FUTURES LTD,15/12/2010,8092.5
Bath and North East Somerset Council,10585834,LP2,Hardware Support,C06,Service Delivery,SOMERSET COUNTY COUNCIL,09/12/2010,231.95
Bath and North East Somerset Council,10585834,LP2,Hardware Support,C06,Service Delivery,SOMERSET COUNTY COUNCIL,09/12/2010,795
Bath and North East Somerset Council,10585834,LP2,Hardware Support,C06,Service Delivery,SOMERSET COUNTY COUNCIL,09/12/2010,836.66
Bath and North East Somerset Council,10585834,LP2,Hardware Support,C06,Service Delivery,SOMERSET COUNTY COUNCIL,09/12/2010,998.75
Bath and North East Somerset Council,10585834,LP2,Hardware Support,C06,Service Delivery,SOMERSET COUNTY COUNCIL,09/12/2010,1221.56
Bath and North East Somerset Council,10588220,HK1,Highway Maintenance,C06,Service Delivery,M JENNINGS,24/12/2010,127
Bath and North East Somerset Council,10588219,HK1,Highway Maintenance,C06,Service Delivery,M JENNINGS,24/12/2010,326
Bath and North East Somerset Council,10586231,HK1,Highway Maintenance,C06,Service Delivery,JACKSONS FINE FENCING,24/12/2010,712.32
Bath and North East Somerset Council,10583943,HK1,Highway Maintenance,C06,Service Delivery,JACKSONS FINE FENCING,20/12/2010,856.78
Bath and North East Somerset Council,10583356,HK1,Highway Maintenance,C06,Service Delivery,MICHAEL JAMES HARWOOD,06/12/2010,900
Bath and North East Somerset Council,10586229,HK1,Highway Maintenance,C06,Service Delivery,E R HEMMINGS (BUILDING) LTD,10/12/2010,1368
Bath and North East Somerset Council,10586228,HK1,Highway Maintenance,C06,Service Delivery,E R HEMMINGS (BUILDING) LTD,10/12/2010,1673
Bath and North East Somerset Council,10588220,HK1,Highway Maintenance,C06,Service Delivery,M JENNINGS,24/12/2010,1853
Bath and North East Somerset Council,10588219,HK1,Highway Maintenance,C06,Service Delivery,M JENNINGS,24/12/2010,2908.04
Bath and North East Somerset Council,10585885,HK1,Highway Maintenance,C06,Service Delivery,SIEMENS PLC,09/12/2010,9081.02
Bath and North East Somerset Council,10584748,HK1,Highway Maintenance,C06,Service Delivery,TRIBAL RESOURCING LTD,15/12/2010,473.55
Bath and North East Somerset Council,10584571,HK1,Highway Maintenance,C06,Service Delivery,GREEN MANTLE (ECOSOPHY) LIMITED,15/12/2010,540
Bath and North East Somerset Council,10586358,HK1,Highway Maintenance,C06,Service Delivery,ATV FIELD SERVICES,15/12/2010,932
Bath and North East Somerset Council,10586359,HK1,Highway Maintenance,C06,Service Delivery,ATV FIELD SERVICES,15/12/2010,2241.02
Bath and North East Somerset Council,10586208,HK1,Highway Maintenance,C06,Service Delivery,MOTT MACDONALD LIMITED,13/12/2010,2568.89
Bath and North East Somerset Council,10586227,HK1,Highway Maintenance,C06,Service Delivery,STERLING GEOPHYSICAL SURVEYS LIMITED,21/12/2010,2867
Bath and North East Somerset Council,10587218,HK1,Highway Maintenance,C06,Service Delivery,MET OFFICE,24/12/2010,3584
Bath and North East Somerset Council,10587219,HK1,Highway Maintenance,C06,Service Delivery,MET OFFICE,24/12/2010,3885
Bath and North East Somerset Council,10587778,HK1,Highway Maintenance,C06,Service Delivery,RSK STATS LTD,20/12/2010,5787.79
Bath and North East Somerset Council,10588689,HK1,Highway Maintenance,C06,Service Delivery,SALT SALES COMPANY,24/12/2010,22327.02
Bath and North East Somerset Council,10588156,HK1,Highway Maintenance,C06,Service Delivery,W S ATKINS (SERVICES) LTD,22/12/2010,1888300.66
Bath and North East Somerset Council,10586617,KB1,Hire of Vehicles,C06,Service Delivery,BRISTOL & WEST VEHICLE HIRE LIMITED,14/12/2010,474.32
Bath and North East Somerset Council,10586520,KB1,Hire of Vehicles,C06,Service Delivery,PHOENIX VEHICLE HIRE LTD,21/12/2010,525
Bath and North East Somerset Council,10586613,KB1,Hire of Vehicles,C06,Service Delivery,BURNT TREE GROUP LTD,24/12/2010,531.3
Bath and North East Somerset Council,10581863,KB1,Hire of Vehicles,C06,Service Delivery,PHOENIX VEHICLE HIRE LTD,06/12/2010,775
Bath and North East Somerset Council,10583812,KB1,Hire of Vehicles,C06,Service Delivery,PHOENIX VEHICLE HIRE LTD,13/12/2010,775
Bath and North East Somerset Council,10588065,KB1,Hire of Vehicles,C06,Service Delivery,PHOENIX VEHICLE HIRE LTD,24/12/2010,775
Bath and North East Somerset Council,10588780,KB1,Hire of Vehicles,C06,Service Delivery,PHOENIX VEHICLE HIRE LTD,31/12/2010,775
Bath and North East Somerset Council,10586525,KB1,Hire of Vehicles,C06,Service Delivery,COLLETT TRANSPORT SERVICES LTD,21/12/2010,780
Bath and North East Somerset Council,10584444,KB1,Hire of Vehicles,C06,Service Delivery,MPS ROAD SWEEPERS LTD,06/12/2010,1600
Bath and North East Somerset Council,10586860,KB1,Hire of Vehicles,C06,Service Delivery,MPS ROAD SWEEPERS LTD,17/12/2010,1600
Bath and North East Somerset Council,10588077,KB1,Hire of Vehicles,C06,Service Delivery,GULLIVERS TRUCK HIRE LTD,24/12/2010,10208
Bath and North East Somerset Council,10588076,KB1,Hire of Vehicles,C06,Service Delivery,GULLIVERS TRUCK HIRE LTD,24/12/2010,12760
Bath and North East Somerset Council,21019150,LM8,Home Care,C03,Adult Social Services & Housing,AGINCARE LTD,21/12/2010,0.08
Bath and North East Somerset Council,21018026,LM8,Home Care,C03,Adult Social Services & Housing,GROVE CARE LTD T/A BATH COMMUNITY CARE,24/12/2010,7.96
Bath and North East Somerset Council,21018045,LM8,Home Care,C03,Adult Social Services & Housing,OPTIONS FOR LIVING LTD,24/12/2010,29.49
Bath and North East Somerset Council,21023689,LM8,Home Care,C03,Adult Social Services & Housing,SAFE & SOUND HOMECARE SERVICES,31/12/2010,30
Bath and North East Somerset Council,21023689,LM8,Home Care,C03,Adult Social Services & Housing,SAFE & SOUND HOMECARE SERVICES,31/12/2010,30
Bath and North East Somerset Council,21003690,LM8,Home Care,C03,Adult Social Services & Housing,GROVE CARE LTD T/A BATH COMMUNITY CARE,08/12/2010,33.6
Bath and North East Somerset Council,21003690,LM8,Home Care,C03,Adult Social Services & Housing,GROVE CARE LTD T/A BATH COMMUNITY CARE,08/12/2010,33.6
Bath and North East Somerset Council,21003690,LM8,Home Care,C03,Adult Social Services & Housing,GROVE CARE LTD T/A BATH COMMUNITY CARE,08/12/2010,33.6
Bath and North East Somerset Council,21003690,LM8,Home Care,C03,Adult Social Services & Housing,GROVE CARE LTD T/A BATH COMMUNITY CARE,08/12/2010,33.6
Bath and North East Somerset Council,21007938,LM8,Home Care,C03,Adult Social Services & Housing,GROVE CARE LTD T/A BATH COMMUNITY CARE,01/12/2010,33.6
Bath and North East Somerset Council,21007938,LM8,Home Care,C03,Adult Social Services & Housing,GROVE CARE LTD T/A BATH COMMUNITY CARE,01/12/2010,33.6
Bath and North East Somerset Council,21007938,LM8,Home Care,C03,Adult Social Services & Housing,GROVE CARE LTD T/A BATH COMMUNITY CARE,01/12/2010,33.6
Bath and North East Somerset Council,21007938,LM8,Home Care,C03,Adult Social Services & Housing,GROVE CARE LTD T/A BATH COMMUNITY CARE,01/12/2010,33.6
Bath and North East Somerset Council,21018026,LM8,Home Care,C03,Adult Social Services & Housing,GROVE CARE LTD T/A BATH COMMUNITY CARE,24/12/2010,33.6
Bath and North East Somerset Council,21018026,LM8,Home Care,C03,Adult Social Services & Housing,GROVE CARE LTD T/A BATH COMMUNITY CARE,24/12/2010,33.6
Bath and North East Somerset Council,21018026,LM8,Home Care,C03,Adult Social Services & Housing,GROVE CARE LTD T/A BATH COMMUNITY CARE,24/12/2010,33.6
Bath and North East Somerset Council,21018026,LM8,Home Care,C03,Adult Social Services & Housing,GROVE CARE LTD T/A BATH COMMUNITY CARE,24/12/2010,33.6
Bath and North East Somerset Council,21013953,LM8,Home Care,C03,Adult Social Services & Housing,SOMERSET CARE AT HOME LTD,03/12/2010,57
Bath and North East Somerset Council,21013953,LM8,Home Care,C03,Adult Social Services & Housing,SOMERSET CARE AT HOME LTD,03/12/2010,57
Bath and North East Somerset Council,21013953,LM8,Home Care,C03,Adult Social Services & Housing,SOMERSET CARE AT HOME LTD,03/12/2010,57
Bath and North East Somerset Council,21013953,LM8,Home Care,C03,Adult Social Services & Housing,SOMERSET CARE AT HOME LTD,03/12/2010,57
Bath and North East Somerset Council,21013955,LM8,Home Care,C03,Adult Social Services & Housing,SOMERSET CARE AT HOME LTD,13/12/2010,66.5
Bath and North East Somerset Council,21013955,LM8,Home Care,C03,Adult Social Services & Housing,SOMERSET CARE AT HOME LTD,13/12/2010,66.5
Bath and North East Somerset Council,21013955,LM8,Home Care,C03,Adult Social Services & Housing,SOMERSET CARE AT HOME LTD,13/12/2010,66.5
Bath and North East Somerset Council,21013955,LM8,Home Care,C03,Adult Social Services & Housing,SOMERSET CARE AT HOME LTD,13/12/2010,66.5
Bath and North East Somerset Council,21013950,LM8,Home Care,C03,Adult Social Services & Housing,AMBER HOMECARE LTD,13/12/2010,69.71
Bath and North East Somerset Council,21013950,LM8,Home Care,C03,Adult Social Services & Housing,AMBER HOMECARE LTD,13/12/2010,69.71
Bath and North East Somerset Council,21013950,LM8,Home Care,C03,Adult Social Services & Housing,AMBER HOMECARE LTD,13/12/2010,69.71
Bath and North East Somerset Council,21013950,LM8,Home Care,C03,Adult Social Services & Housing,AMBER HOMECARE LTD,13/12/2010,69.71
Bath and North East Somerset Council,21019152,LM8,Home Care,C03,Adult Social Services & Housing,AMBER HOMECARE LTD,17/12/2010,69.71
Bath and North East Somerset Council,21019152,LM8,Home Care,C03,Adult Social Services & Housing,AMBER HOMECARE LTD,17/12/2010,69.71
Bath and North East Somerset Council,21019152,LM8,Home Care,C03,Adult Social Services & Housing,AMBER HOMECARE LTD,17/12/2010,69.71
Bath and North East Somerset Council,21019152,LM8,Home Care,C03,Adult Social Services & Housing,AMBER HOMECARE LTD,17/12/2010,69.71
Bath and North East Somerset Council,21018033,LM8,Home Care,C03,Adult Social Services & Housing,SAFE & SOUND HOMECARE SERVICES,14/12/2010,72
Bath and North East Somerset Council,21023689,LM8,Home Care,C03,Adult Social Services & Housing,SAFE & SOUND HOMECARE SERVICES,31/12/2010,75.12
Bath and North East Somerset Council,21023689,LM8,Home Care,C03,Adult Social Services & Housing,SAFE & SOUND HOMECARE SERVICES,31/12/2010,75.12
Bath and North East Somerset Council,21023441,LM8,Home Care,C03,Adult Social Services & Housing,SUPPORTED INDEPENDENCE,24/12/2010,78
Bath and North East Somerset Council,21018033,LM8,Home Care,C03,Adult Social Services & Housing,SAFE & SOUND HOMECARE SERVICES,14/12/2010,84
Bath and North East Somerset Council,21018033,LM8,Home Care,C03,Adult Social Services & Housing,SAFE & SOUND HOMECARE SERVICES,14/12/2010,84
Bath and North East Somerset Council,21023689,LM8,Home Care,C03,Adult Social Services & Housing,SAFE & SOUND HOMECARE SERVICES,31/12/2010,91.98
Bath and North East Somerset Council,21023689,LM8,Home Care,C03,Adult Social Services & Housing,SAFE & SOUND HOMECARE SERVICES,31/12/2010,91.98
Bath and North East Somerset Council,21007939,LM8,Home Care,C03,Adult Social Services & Housing,GROVE CARE LTD T/A BATH COMMUNITY CARE,01/12/2010,92.4
Bath and North East Somerset Council,21007939,LM8,Home Care,C03,Adult Social Services & Housing,GROVE CARE LTD T/A BATH COMMUNITY CARE,01/12/2010,92.4
Bath and North East Somerset Council,21007939,LM8,Home Care,C03,Adult Social Services & Housing,GROVE CARE LTD T/A BATH COMMUNITY CARE,01/12/2010,92.4
Bath and North East Somerset Council,21007939,LM8,Home Care,C03,Adult Social Services & Housing,GROVE CARE LTD T/A BATH COMMUNITY CARE,01/12/2010,92.4
Bath and North East Somerset Council,21018027,LM8,Home Care,C03,Adult Social Services & Housing,GROVE CARE LTD T/A BATH COMMUNITY CARE,24/12/2010,92.4
Bath and North East Somerset Council,21018027,LM8,Home Care,C03,Adult Social Services & Housing,GROVE CARE LTD T/A BATH COMMUNITY CARE,24/12/2010,92.4
Bath and North East Somerset Council,21018027,LM8,Home Care,C03,Adult Social Services & Housing,GROVE CARE LTD T/A BATH COMMUNITY CARE,24/12/2010,92.4
Bath and North East Somerset Council,21018027,LM8,Home Care,C03,Adult Social Services & Housing,GROVE CARE LTD T/A BATH COMMUNITY CARE,24/12/2010,92.4
Bath and North East Somerset Council,21009080,LM8,Home Care,C03,Adult Social Services & Housing,NURSING SOLUTIONS LIMITED,01/12/2010,96
Bath and North East Somerset Council,21009081,LM8,Home Care,C03,Adult Social Services & Housing,NURSING SOLUTIONS LIMITED,08/12/2010,96
Bath and North East Somerset Council,21013074,LM8,Home Care,C03,Adult Social Services & Housing,NURSING SOLUTIONS LIMITED,15/12/2010,96
Bath and North East Somerset Council,21013949,LM8,Home Care,C03,Adult Social Services & Housing,NURSING SOLUTIONS LIMITED,21/12/2010,96
Bath and North East Somerset Council,21018041,LM8,Home Care,C03,Adult Social Services & Housing,NURSING SOLUTIONS LIMITED,24/12/2010,96
Bath and North East Somerset Council,21019156,LM8,Home Care,C03,Adult Social Services & Housing,ROBERT SAGE LTD T/A PRESTIGE NURSING PAYROLL,24/12/2010,96.41
Bath and North East Somerset Council,21014124,LM8,Home Care,C03,Adult Social Services & Housing,CARE & CONTINUITY,06/12/2010,108
Bath and North East Somerset Council,21014124,LM8,Home Care,C03,Adult Social Services & Housing,CARE & CONTINUITY,06/12/2010,108
Bath and North East Somerset Council,21019520,LM8,Home Care,C03,Adult Social Services & Housing,CARE & CONTINUITY,20/12/2010,108
Bath and North East Somerset Council,21019520,LM8,Home Care,C03,Adult Social Services & Housing,CARE & CONTINUITY,20/12/2010,108
Bath and North East Somerset Council,21013953,LM8,Home Care,C03,Adult Social Services & Housing,SOMERSET CARE AT HOME LTD,03/12/2010,114
Bath and North East Somerset Council,21013953,LM8,Home Care,C03,Adult Social Services & Housing,SOMERSET CARE AT HOME LTD,03/12/2010,114
Bath and North East Somerset Council,21013953,LM8,Home Care,C03,Adult Social Services & Housing,SOMERSET CARE AT HOME LTD,03/12/2010,114
Bath and North East Somerset Council,21013953,LM8,Home Care,C03,Adult Social Services & Housing,SOMERSET CARE AT HOME LTD,03/12/2010,114
Bath and North East Somerset Council,21009080,LM8,Home Care,C03,Adult Social Services & Housing,NURSING SOLUTIONS LIMITED,01/12/2010,116
Bath and North East Somerset Council,21009081,LM8,Home Care,C03,Adult Social Services & Housing,NURSING SOLUTIONS LIMITED,08/12/2010,116
Bath and North East Somerset Council,21013074,LM8,Home Care,C03,Adult Social Services & Housing,NURSING SOLUTIONS LIMITED,15/12/2010,116
Bath and North East Somerset Council,21013949,LM8,Home Care,C03,Adult Social Services & Housing,NURSING SOLUTIONS LIMITED,21/12/2010,116
Bath and North East Somerset Council,21018041,LM8,Home Care,C03,Adult Social Services & Housing,NURSING SOLUTIONS LIMITED,24/12/2010,116
Bath and North East Somerset Council,21014124,LM8,Home Care,C03,Adult Social Services & Housing,CARE & CONTINUITY,06/12/2010,131
Bath and North East Somerset Council,21014124,LM8,Home Care,C03,Adult Social Services & Housing,CARE & CONTINUITY,06/12/2010,131
Bath and North East Somerset Council,21019520,LM8,Home Care,C03,Adult Social Services & Housing,CARE & CONTINUITY,20/12/2010,131
Bath and North East Somerset Council,21019520,LM8,Home Care,C03,Adult Social Services & Housing,CARE & CONTINUITY,20/12/2010,131
Bath and North East Somerset Council,21019162,LM8,Home Care,C03,Adult Social Services & Housing,CANDLELIGHT HOMECARE SERVICES LTD,17/12/2010,147.5
Bath and North East Somerset Council,21019162,LM8,Home Care,C03,Adult Social Services & Housing,CANDLELIGHT HOMECARE SERVICES LTD,17/12/2010,147.5
Bath and North East Somerset Council,21019162,LM8,Home Care,C03,Adult Social Services & Housing,CANDLELIGHT HOMECARE SERVICES LTD,17/12/2010,147.5
Bath and North East Somerset Council,21019162,LM8,Home Care,C03,Adult Social Services & Housing,CANDLELIGHT HOMECARE SERVICES LTD,17/12/2010,147.5
Bath and North East Somerset Council,21023689,LM8,Home Care,C03,Adult Social Services & Housing,SAFE & SOUND HOMECARE SERVICES,31/12/2010,149
Bath and North East Somerset Council,21023689,LM8,Home Care,C03,Adult Social Services & Housing,SAFE & SOUND HOMECARE SERVICES,31/12/2010,149
Bath and North East Somerset Council,21023689,LM8,Home Care,C03,Adult Social Services & Housing,SAFE & SOUND HOMECARE SERVICES,31/12/2010,151
Bath and North East Somerset Council,21023689,LM8,Home Care,C03,Adult Social Services & Housing,SAFE & SOUND HOMECARE SERVICES,31/12/2010,151
Bath and North East Somerset Council,21014124,LM8,Home Care,C03,Adult Social Services & Housing,CARE & CONTINUITY,06/12/2010,161.48
Bath and North East Somerset Council,21014124,LM8,Home Care,C03,Adult Social Services & Housing,CARE & CONTINUITY,06/12/2010,161.48
Bath and North East Somerset Council,21019520,LM8,Home Care,C03,Adult Social Services & Housing,CARE & CONTINUITY,20/12/2010,161.48
Bath and North East Somerset Council,21019520,LM8,Home Care,C03,Adult Social Services & Housing,CARE & CONTINUITY,20/12/2010,161.48
Bath and North East Somerset Council,21018033,LM8,Home Care,C03,Adult Social Services & Housing,SAFE & SOUND HOMECARE SERVICES,14/12/2010,172.5
Bath and North East Somerset Council,21023689,LM8,Home Care,C03,Adult Social Services & Housing,SAFE & SOUND HOMECARE SERVICES,31/12/2010,187.5
Bath and North East Somerset Council,21023689,LM8,Home Care,C03,Adult Social Services & Housing,SAFE & SOUND HOMECARE SERVICES,31/12/2010,187.5
Bath and North East Somerset Council,21014124,LM8,Home Care,C03,Adult Social Services & Housing,CARE & CONTINUITY,06/12/2010,194
Bath and North East Somerset Council,21014124,LM8,Home Care,C03,Adult Social Services & Housing,CARE & CONTINUITY,06/12/2010,194
Bath and North East Somerset Council,21019520,LM8,Home Care,C03,Adult Social Services & Housing,CARE & CONTINUITY,20/12/2010,194
Bath and North East Somerset Council,21019520,LM8,Home Care,C03,Adult Social Services & Housing,CARE & CONTINUITY,20/12/2010,194
Bath and North East Somerset Council,21013948,LM8,Home Care,C03,Adult Social Services & Housing,SAFE & SOUND HOMECARE SERVICES,13/12/2010,202
Bath and North East Somerset Council,21013948,LM8,Home Care,C03,Adult Social Services & Housing,SAFE & SOUND HOMECARE SERVICES,13/12/2010,202
Bath and North East Somerset Council,21013948,LM8,Home Care,C03,Adult Social Services & Housing,SAFE & SOUND HOMECARE SERVICES,13/12/2010,202
Bath and North East Somerset Council,21013948,LM8,Home Care,C03,Adult Social Services & Housing,SAFE & SOUND HOMECARE SERVICES,13/12/2010,202
Bath and North East Somerset Council,21023689,LM8,Home Care,C03,Adult Social Services & Housing,SAFE & SOUND HOMECARE SERVICES,31/12/2010,226.5
Bath and North East Somerset Council,21023689,LM8,Home Care,C03,Adult Social Services & Housing,SAFE & SOUND HOMECARE SERVICES,31/12/2010,226.5
Bath and North East Somerset Council,21018046,LM8,Home Care,C03,Adult Social Services & Housing,CARE SOUTH,21/12/2010,233.8
Bath and North East Somerset Council,21018046,LM8,Home Care,C03,Adult Social Services & Housing,CARE SOUTH,21/12/2010,233.8
Bath and North East Somerset Council,21018046,LM8,Home Care,C03,Adult Social Services & Housing,CARE SOUTH,21/12/2010,233.8
Bath and North East Somerset Council,21018047,LM8,Home Care,C03,Adult Social Services & Housing,CARE SOUTH,21/12/2010,233.8
Bath and North East Somerset Council,21018047,LM8,Home Care,C03,Adult Social Services & Housing,CARE SOUTH,21/12/2010,233.8
Bath and North East Somerset Council,21018047,LM8,Home Care,C03,Adult Social Services & Housing,CARE SOUTH,21/12/2010,233.8
Bath and North East Somerset Council,21018047,LM8,Home Care,C03,Adult Social Services & Housing,CARE SOUTH,21/12/2010,233.8
Bath and North East Somerset Council,21023442,LM8,Home Care,C03,Adult Social Services & Housing,SUPPORTED INDEPENDENCE,24/12/2010,234
Bath and North East Somerset Council,21023442,LM8,Home Care,C03,Adult Social Services & Housing,SUPPORTED INDEPENDENCE,24/12/2010,234
Bath and North East Somerset Council,21023442,LM8,Home Care,C03,Adult Social Services & Housing,SUPPORTED INDEPENDENCE,24/12/2010,234
Bath and North East Somerset Council,21023442,LM8,Home Care,C03,Adult Social Services & Housing,SUPPORTED INDEPENDENCE,24/12/2010,234
Bath and North East Somerset Council,21023442,LM8,Home Care,C03,Adult Social Services & Housing,SUPPORTED INDEPENDENCE,24/12/2010,234
Bath and North East Somerset Council,21023442,LM8,Home Care,C03,Adult Social Services & Housing,SUPPORTED INDEPENDENCE,24/12/2010,234
Bath and North East Somerset Council,21023442,LM8,Home Care,C03,Adult Social Services & Housing,SUPPORTED INDEPENDENCE,24/12/2010,234
Bath and North East Somerset Council,21023442,LM8,Home Care,C03,Adult Social Services & Housing,SUPPORTED INDEPENDENCE,24/12/2010,234
Bath and North East Somerset Council,21023442,LM8,Home Care,C03,Adult Social Services & Housing,SUPPORTED INDEPENDENCE,24/12/2010,234
Bath and North East Somerset Council,21023442,LM8,Home Care,C03,Adult Social Services & Housing,SUPPORTED INDEPENDENCE,24/12/2010,234
Bath and North East Somerset Council,21023442,LM8,Home Care,C03,Adult Social Services & Housing,SUPPORTED INDEPENDENCE,24/12/2010,234
Bath and North East Somerset Council,21023442,LM8,Home Care,C03,Adult Social Services & Housing,SUPPORTED INDEPENDENCE,24/12/2010,234
Bath and North East Somerset Council,21023442,LM8,Home Care,C03,Adult Social Services & Housing,SUPPORTED INDEPENDENCE,24/12/2010,234
Bath and North East Somerset Council,21023443,LM8,Home Care,C03,Adult Social Services & Housing,SUPPORTED INDEPENDENCE,24/12/2010,234
Bath and North East Somerset Council,21023443,LM8,Home Care,C03,Adult Social Services & Housing,SUPPORTED INDEPENDENCE,24/12/2010,234
Bath and North East Somerset Council,21023443,LM8,Home Care,C03,Adult Social Services & Housing,SUPPORTED INDEPENDENCE,24/12/2010,234
Bath and North East Somerset Council,21023443,LM8,Home Care,C03,Adult Social Services & Housing,SUPPORTED INDEPENDENCE,24/12/2010,234
Bath and North East Somerset Council,21023443,LM8,Home Care,C03,Adult Social Services & Housing,SUPPORTED INDEPENDENCE,24/12/2010,234
Bath and North East Somerset Council,21023443,LM8,Home Care,C03,Adult Social Services & Housing,SUPPORTED INDEPENDENCE,24/12/2010,234
Bath and North East Somerset Council,21023443,LM8,Home Care,C03,Adult Social Services & Housing,SUPPORTED INDEPENDENCE,24/12/2010,234
Bath and North East Somerset Council,21023443,LM8,Home Care,C03,Adult Social Services & Housing,SUPPORTED INDEPENDENCE,24/12/2010,234
Bath and North East Somerset Council,21023443,LM8,Home Care,C03,Adult Social Services & Housing,SUPPORTED INDEPENDENCE,24/12/2010,234
Bath and North East Somerset Council,21023444,LM8,Home Care,C03,Adult Social Services & Housing,SUPPORTED INDEPENDENCE,24/12/2010,234
Bath and North East Somerset Council,21023444,LM8,Home Care,C03,Adult Social Services & Housing,SUPPORTED INDEPENDENCE,24/12/2010,234
Bath and North East Somerset Council,21023444,LM8,Home Care,C03,Adult Social Services & Housing,SUPPORTED INDEPENDENCE,24/12/2010,234
Bath and North East Somerset Council,21023444,LM8,Home Care,C03,Adult Social Services & Housing,SUPPORTED INDEPENDENCE,24/12/2010,234
Bath and North East Somerset Council,21023444,LM8,Home Care,C03,Adult Social Services & Housing,SUPPORTED INDEPENDENCE,24/12/2010,234
Bath and North East Somerset Council,21023444,LM8,Home Care,C03,Adult Social Services & Housing,SUPPORTED INDEPENDENCE,24/12/2010,234
Bath and North East Somerset Council,21018033,LM8,Home Care,C03,Adult Social Services & Housing,SAFE & SOUND HOMECARE SERVICES,14/12/2010,236.25
Bath and North East Somerset Council,21018033,LM8,Home Care,C03,Adult Social Services & Housing,SAFE & SOUND HOMECARE SERVICES,14/12/2010,236.25
Bath and North East Somerset Council,21009084,LM8,Home Care,C03,Adult Social Services & Housing,AMBER HOMECARE LTD,13/12/2010,243.92
Bath and North East Somerset Council,21009084,LM8,Home Care,C03,Adult Social Services & Housing,AMBER HOMECARE LTD,13/12/2010,243.92
Bath and North East Somerset Council,21009084,LM8,Home Care,C03,Adult Social Services & Housing,AMBER HOMECARE LTD,13/12/2010,243.92
Bath and North East Somerset Council,21009084,LM8,Home Care,C03,Adult Social Services & Housing,AMBER HOMECARE LTD,13/12/2010,243.92
Bath and North East Somerset Council,21019151,LM8,Home Care,C03,Adult Social Services & Housing,AMBER HOMECARE LTD,17/12/2010,243.92
Bath and North East Somerset Council,21019151,LM8,Home Care,C03,Adult Social Services & Housing,AMBER HOMECARE LTD,17/12/2010,243.92
Bath and North East Somerset Council,21019151,LM8,Home Care,C03,Adult Social Services & Housing,AMBER HOMECARE LTD,17/12/2010,243.92
Bath and North East Somerset Council,21019151,LM8,Home Care,C03,Adult Social Services & Housing,AMBER HOMECARE LTD,17/12/2010,243.92
Bath and North East Somerset Council,21023441,LM8,Home Care,C03,Adult Social Services & Housing,SUPPORTED INDEPENDENCE,24/12/2010,253.5
Bath and North East Somerset Council,21023441,LM8,Home Care,C03,Adult Social Services & Housing,SUPPORTED INDEPENDENCE,24/12/2010,253.5
Bath and North East Somerset Council,21023441,LM8,Home Care,C03,Adult Social Services & Housing,SUPPORTED INDEPENDENCE,24/12/2010,253.5
Bath and North East Somerset Council,21023441,LM8,Home Care,C03,Adult Social Services & Housing,SUPPORTED INDEPENDENCE,24/12/2010,253.5
Bath and North East Somerset Council,21023441,LM8,Home Care,C03,Adult Social Services & Housing,SUPPORTED INDEPENDENCE,24/12/2010,253.5
Bath and North East Somerset Council,21023441,LM8,Home Care,C03,Adult Social Services & Housing,SUPPORTED INDEPENDENCE,24/12/2010,253.5
Bath and North East Somerset Council,21023441,LM8,Home Care,C03,Adult Social Services & Housing,SUPPORTED INDEPENDENCE,24/12/2010,253.5
Bath and North East Somerset Council,21023441,LM8,Home Care,C03,Adult Social Services & Housing,SUPPORTED INDEPENDENCE,24/12/2010,253.5
Bath and North East Somerset Council,21023441,LM8,Home Care,C03,Adult Social Services & Housing,SUPPORTED INDEPENDENCE,24/12/2010,253.5
Bath and North East Somerset Council,21023441,LM8,Home Care,C03,Adult Social Services & Housing,SUPPORTED INDEPENDENCE,24/12/2010,253.5
Bath and North East Somerset Council,21023441,LM8,Home Care,C03,Adult Social Services & Housing,SUPPORTED INDEPENDENCE,24/12/2010,253.5
Bath and North East Somerset Council,21023441,LM8,Home Care,C03,Adult Social Services & Housing,SUPPORTED INDEPENDENCE,24/12/2010,253.5
Bath and North East Somerset Council,21023441,LM8,Home Care,C03,Adult Social Services & Housing,SUPPORTED INDEPENDENCE,24/12/2010,253.5
Bath and North East Somerset Council,21023441,LM8,Home Care,C03,Adult Social Services & Housing,SUPPORTED INDEPENDENCE,24/12/2010,253.5
Bath and North East Somerset Council,21023441,LM8,Home Care,C03,Adult Social Services & Housing,SUPPORTED INDEPENDENCE,24/12/2010,253.5
Bath and North East Somerset Council,21023441,LM8,Home Care,C03,Adult Social Services & Housing,SUPPORTED INDEPENDENCE,24/12/2010,253.5
Bath and North East Somerset Council,21023441,LM8,Home Care,C03,Adult Social Services & Housing,SUPPORTED INDEPENDENCE,24/12/2010,253.5
Bath and North East Somerset Council,21023441,LM8,Home Care,C03,Adult Social Services & Housing,SUPPORTED INDEPENDENCE,24/12/2010,253.5
Bath and North East Somerset Council,21023441,LM8,Home Care,C03,Adult Social Services & Housing,SUPPORTED INDEPENDENCE,24/12/2010,253.5
Bath and North East Somerset Council,21023441,LM8,Home Care,C03,Adult Social Services & Housing,SUPPORTED INDEPENDENCE,24/12/2010,253.5
Bath and North East Somerset Council,21003690,LM8,Home Care,C03,Adult Social Services & Housing,GROVE CARE LTD T/A BATH COMMUNITY CARE,08/12/2010,254.4
Bath and North East Somerset Council,21003690,LM8,Home Care,C03,Adult Social Services & Housing,GROVE CARE LTD T/A BATH COMMUNITY CARE,08/12/2010,254.4
Bath and North East Somerset Council,21003690,LM8,Home Care,C03,Adult Social Services & Housing,GROVE CARE LTD T/A BATH COMMUNITY CARE,08/12/2010,254.4
Bath and North East Somerset Council,21003690,LM8,Home Care,C03,Adult Social Services & Housing,GROVE CARE LTD T/A BATH COMMUNITY CARE,08/12/2010,254.4
Bath and North East Somerset Council,21007938,LM8,Home Care,C03,Adult Social Services & Housing,GROVE CARE LTD T/A BATH COMMUNITY CARE,01/12/2010,254.4
Bath and North East Somerset Council,21007938,LM8,Home Care,C03,Adult Social Services & Housing,GROVE CARE LTD T/A BATH COMMUNITY CARE,01/12/2010,254.4
Bath and North East Somerset Council,21007938,LM8,Home Care,C03,Adult Social Services & Housing,GROVE CARE LTD T/A BATH COMMUNITY CARE,01/12/2010,254.4
Bath and North East Somerset Council,21007938,LM8,Home Care,C03,Adult Social Services & Housing,GROVE CARE LTD T/A BATH COMMUNITY CARE,01/12/2010,254.4
Bath and North East Somerset Council,21018026,LM8,Home Care,C03,Adult Social Services & Housing,GROVE CARE LTD T/A BATH COMMUNITY CARE,24/12/2010,254.4
Bath and North East Somerset Council,21018026,LM8,Home Care,C03,Adult Social Services & Housing,GROVE CARE LTD T/A BATH COMMUNITY CARE,24/12/2010,254.4
Bath and North East Somerset Council,21018026,LM8,Home Care,C03,Adult Social Services & Housing,GROVE CARE LTD T/A BATH COMMUNITY CARE,24/12/2010,254.4
Bath and North East Somerset Council,21018026,LM8,Home Care,C03,Adult Social Services & Housing,GROVE CARE LTD T/A BATH COMMUNITY CARE,24/12/2010,254.4
Bath and North East Somerset Council,21013955,LM8,Home Care,C03,Adult Social Services & Housing,SOMERSET CARE AT HOME LTD,13/12/2010,266
Bath and North East Somerset Council,21013955,LM8,Home Care,C03,Adult Social Services & Housing,SOMERSET CARE AT HOME LTD,13/12/2010,266
Bath and North East Somerset Council,21013955,LM8,Home Care,C03,Adult Social Services & Housing,SOMERSET CARE AT HOME LTD,13/12/2010,266
Bath and North East Somerset Council,21013955,LM8,Home Care,C03,Adult Social Services & Housing,SOMERSET CARE AT HOME LTD,13/12/2010,266
Bath and North East Somerset Council,21013956,LM8,Home Care,C03,Adult Social Services & Housing,THORNBURY NURSING SERVICES,08/12/2010,270.33
Bath and North East Somerset Council,21019150,LM8,Home Care,C03,Adult Social Services & Housing,AGINCARE LTD,21/12/2010,282.03
Bath and North East Somerset Council,21019150,LM8,Home Care,C03,Adult Social Services & Housing,AGINCARE LTD,21/12/2010,282.03
Bath and North East Somerset Council,21019150,LM8,Home Care,C03,Adult Social Services & Housing,AGINCARE LTD,21/12/2010,282.03
Bath and North East Somerset Council,21019150,LM8,Home Care,C03,Adult Social Services & Housing,AGINCARE LTD,21/12/2010,282.03
Bath and North East Somerset Council,21019149,LM8,Home Care,C03,Adult Social Services & Housing,LEONARD CHESHIRE FOUNDATION,24/12/2010,293.73
Bath and North East Somerset Council,21019149,LM8,Home Care,C03,Adult Social Services & Housing,LEONARD CHESHIRE FOUNDATION,24/12/2010,293.73
Bath and North East Somerset Council,21019149,LM8,Home Care,C03,Adult Social Services & Housing,LEONARD CHESHIRE FOUNDATION,24/12/2010,293.73
Bath and North East Somerset Council,21019149,LM8,Home Care,C03,Adult Social Services & Housing,LEONARD CHESHIRE FOUNDATION,24/12/2010,293.73
Bath and North East Somerset Council,21023445,LM8,Home Care,C03,Adult Social Services & Housing,LEONARD CHESHIRE FOUNDATION,24/12/2010,293.73
Bath and North East Somerset Council,21023445,LM8,Home Care,C03,Adult Social Services & Housing,LEONARD CHESHIRE FOUNDATION,24/12/2010,293.73
Bath and North East Somerset Council,21023445,LM8,Home Care,C03,Adult Social Services & Housing,LEONARD CHESHIRE FOUNDATION,24/12/2010,293.73
Bath and North East Somerset Council,21023445,LM8,Home Care,C03,Adult Social Services & Housing,LEONARD CHESHIRE FOUNDATION,24/12/2010,293.73
Bath and North East Somerset Council,21007939,LM8,Home Care,C03,Adult Social Services & Housing,GROVE CARE LTD T/A BATH COMMUNITY CARE,01/12/2010,293.85
Bath and North East Somerset Council,21007939,LM8,Home Care,C03,Adult Social Services & Housing,GROVE CARE LTD T/A BATH COMMUNITY CARE,01/12/2010,293.85
Bath and North East Somerset Council,21007939,LM8,Home Care,C03,Adult Social Services & Housing,GROVE CARE LTD T/A BATH COMMUNITY CARE,01/12/2010,293.85
Bath and North East Somerset Council,21007939,LM8,Home Care,C03,Adult Social Services & Housing,GROVE CARE LTD T/A BATH COMMUNITY CARE,01/12/2010,293.85
Bath and North East Somerset Council,21018027,LM8,Home Care,C03,Adult Social Services & Housing,GROVE CARE LTD T/A BATH COMMUNITY CARE,24/12/2010,293.85
Bath and North East Somerset Council,21018027,LM8,Home Care,C03,Adult Social Services & Housing,GROVE CARE LTD T/A BATH COMMUNITY CARE,24/12/2010,293.85
Bath and North East Somerset Council,21018027,LM8,Home Care,C03,Adult Social Services & Housing,GROVE CARE LTD T/A BATH COMMUNITY CARE,24/12/2010,293.85
Bath and North East Somerset Council,21018027,LM8,Home Care,C03,Adult Social Services & Housing,GROVE CARE LTD T/A BATH COMMUNITY CARE,24/12/2010,293.85
Bath and North East Somerset Council,21023444,LM8,Home Care,C03,Adult Social Services & Housing,SUPPORTED INDEPENDENCE,24/12/2010,331.5
Bath and North East Somerset Council,21018046,LM8,Home Care,C03,Adult Social Services & Housing,CARE SOUTH,21/12/2010,350.7
Bath and North East Somerset Council,21018046,LM8,Home Care,C03,Adult Social Services & Housing,CARE SOUTH,21/12/2010,350.7
Bath and North East Somerset Council,21018046,LM8,Home Care,C03,Adult Social Services & Housing,CARE SOUTH,21/12/2010,350.7
Bath and North East Somerset Council,21014124,LM8,Home Care,C03,Adult Social Services & Housing,CARE & CONTINUITY,06/12/2010,400
Bath and North East Somerset Council,21014124,LM8,Home Care,C03,Adult Social Services & Housing,CARE & CONTINUITY,06/12/2010,400
Bath and North East Somerset Council,21019520,LM8,Home Care,C03,Adult Social Services & Housing,CARE & CONTINUITY,20/12/2010,400
Bath and North East Somerset Council,21019520,LM8,Home Care,C03,Adult Social Services & Housing,CARE & CONTINUITY,20/12/2010,400
Bath and North East Somerset Council,21013948,LM8,Home Care,C03,Adult Social Services & Housing,SAFE & SOUND HOMECARE SERVICES,13/12/2010,405
Bath and North East Somerset Council,21013948,LM8,Home Care,C03,Adult Social Services & Housing,SAFE & SOUND HOMECARE SERVICES,13/12/2010,405
Bath and North East Somerset Council,21013948,LM8,Home Care,C03,Adult Social Services & Housing,SAFE & SOUND HOMECARE SERVICES,13/12/2010,405
Bath and North East Somerset Council,21013948,LM8,Home Care,C03,Adult Social Services & Housing,SAFE & SOUND HOMECARE SERVICES,13/12/2010,405
Bath and North East Somerset Council,21023441,LM8,Home Care,C03,Adult Social Services & Housing,SUPPORTED INDEPENDENCE,24/12/2010,409.5
Bath and North East Somerset Council,21013947,LM8,Home Care,C03,Adult Social Services & Housing,CANDLELIGHT HOMECARE SERVICES LTD,20/12/2010,418
Bath and North East Somerset Council,21019156,LM8,Home Care,C03,Adult Social Services & Housing,ROBERT SAGE LTD T/A PRESTIGE NURSING PAYROLL,24/12/2010,418.32
Bath and North East Somerset Council,21013956,LM8,Home Care,C03,Adult Social Services & Housing,THORNBURY NURSING SERVICES,08/12/2010,420.6
Bath and North East Somerset Council,21019158,LM8,Home Care,C03,Adult Social Services & Housing,THORNBURY NURSING SERVICES,24/12/2010,420.6
Bath and North East Somerset Council,21018040,LM8,Home Care,C03,Adult Social Services & Housing,THE CARE BUREAU,10/12/2010,476
Bath and North East Somerset Council,21023441,LM8,Home Care,C03,Adult Social Services & Housing,SUPPORTED INDEPENDENCE,24/12/2010,487.5
Bath and North East Somerset Council,21023441,LM8,Home Care,C03,Adult Social Services & Housing,SUPPORTED INDEPENDENCE,24/12/2010,487.5
Bath and North East Somerset Council,21023441,LM8,Home Care,C03,Adult Social Services & Housing,SUPPORTED INDEPENDENCE,24/12/2010,487.5
Bath and North East Somerset Council,21023441,LM8,Home Care,C03,Adult Social Services & Housing,SUPPORTED INDEPENDENCE,24/12/2010,487.5
Bath and North East Somerset Council,21023441,LM8,Home Care,C03,Adult Social Services & Housing,SUPPORTED INDEPENDENCE,24/12/2010,487.5
Bath and North East Somerset Council,21023441,LM8,Home Care,C03,Adult Social Services & Housing,SUPPORTED INDEPENDENCE,24/12/2010,487.5
Bath and North East Somerset Council,21023441,LM8,Home Care,C03,Adult Social Services & Housing,SUPPORTED INDEPENDENCE,24/12/2010,487.5
Bath and North East Somerset Council,21023441,LM8,Home Care,C03,Adult Social Services & Housing,SUPPORTED INDEPENDENCE,24/12/2010,487.5
Bath and North East Somerset Council,21023441,LM8,Home Care,C03,Adult Social Services & Housing,SUPPORTED INDEPENDENCE,24/12/2010,487.5
Bath and North East Somerset Council,21023441,LM8,Home Care,C03,Adult Social Services & Housing,SUPPORTED INDEPENDENCE,24/12/2010,487.5
Bath and North East Somerset Council,21023441,LM8,Home Care,C03,Adult Social Services & Housing,SUPPORTED INDEPENDENCE,24/12/2010,487.5
Bath and North East Somerset Council,21023441,LM8,Home Care,C03,Adult Social Services & Housing,SUPPORTED INDEPENDENCE,24/12/2010,487.5
Bath and North East Somerset Council,21023441,LM8,Home Care,C03,Adult Social Services & Housing,SUPPORTED INDEPENDENCE,24/12/2010,487.5
Bath and North East Somerset Council,21023441,LM8,Home Care,C03,Adult Social Services & Housing,SUPPORTED INDEPENDENCE,24/12/2010,487.5
Bath and North East Somerset Council,21023441,LM8,Home Care,C03,Adult Social Services & Housing,SUPPORTED INDEPENDENCE,24/12/2010,487.5
Bath and North East Somerset Council,21023441,LM8,Home Care,C03,Adult Social Services & Housing,SUPPORTED INDEPENDENCE,24/12/2010,487.5
Bath and North East Somerset Council,21023441,LM8,Home Care,C03,Adult Social Services & Housing,SUPPORTED INDEPENDENCE,24/12/2010,487.5
Bath and North East Somerset Council,21023441,LM8,Home Care,C03,Adult Social Services & Housing,SUPPORTED INDEPENDENCE,24/12/2010,487.5
Bath and North East Somerset Council,21023441,LM8,Home Care,C03,Adult Social Services & Housing,SUPPORTED INDEPENDENCE,24/12/2010,487.5
Bath and North East Somerset Council,21013950,LM8,Home Care,C03,Adult Social Services & Housing,AMBER HOMECARE LTD,13/12/2010,487.84
Bath and North East Somerset Council,21013950,LM8,Home Care,C03,Adult Social Services & Housing,AMBER HOMECARE LTD,13/12/2010,487.84
Bath and North East Somerset Council,21013950,LM8,Home Care,C03,Adult Social Services & Housing,AMBER HOMECARE LTD,13/12/2010,487.84
Bath and North East Somerset Council,21013950,LM8,Home Care,C03,Adult Social Services & Housing,AMBER HOMECARE LTD,13/12/2010,487.84
Bath and North East Somerset Council,21019152,LM8,Home Care,C03,Adult Social Services & Housing,AMBER HOMECARE LTD,17/12/2010,487.84
Bath and North East Somerset Council,21019152,LM8,Home Care,C03,Adult Social Services & Housing,AMBER HOMECARE LTD,17/12/2010,487.84
Bath and North East Somerset Council,21019152,LM8,Home Care,C03,Adult Social Services & Housing,AMBER HOMECARE LTD,17/12/2010,487.84
Bath and North East Somerset Council,21019152,LM8,Home Care,C03,Adult Social Services & Housing,AMBER HOMECARE LTD,17/12/2010,487.84
Bath and North East Somerset Council,21014124,LM8,Home Care,C03,Adult Social Services & Housing,CARE & CONTINUITY,06/12/2010,514.48
Bath and North East Somerset Council,21014124,LM8,Home Care,C03,Adult Social Services & Housing,CARE & CONTINUITY,06/12/2010,514.48
Bath and North East Somerset Council,21019520,LM8,Home Care,C03,Adult Social Services & Housing,CARE & CONTINUITY,20/12/2010,514.48
Bath and North East Somerset Council,21019520,LM8,Home Care,C03,Adult Social Services & Housing,CARE & CONTINUITY,20/12/2010,514.48
Bath and North East Somerset Council,21009072,LM8,Home Care,C03,Adult Social Services & Housing,STAR HOME CARE SERVICES LIMITED,06/12/2010,524.03
Bath and North East Somerset Council,21009073,LM8,Home Care,C03,Adult Social Services & Housing,STAR HOME CARE SERVICES LIMITED,14/12/2010,524.03
Bath and North East Somerset Council,21013945,LM8,Home Care,C03,Adult Social Services & Housing,STAR HOME CARE SERVICES LIMITED,15/12/2010,524.03
Bath and North East Somerset Council,21018035,LM8,Home Care,C03,Adult Social Services & Housing,STAR HOME CARE SERVICES LIMITED,15/12/2010,524.03
Bath and North East Somerset Council,21019142,LM8,Home Care,C03,Adult Social Services & Housing,STAR HOME CARE SERVICES LIMITED,24/12/2010,524.03
Bath and North East Somerset Council,21019143,LM8,Home Care,C03,Adult Social Services & Housing,STAR HOME CARE SERVICES LIMITED,24/12/2010,524.03
Bath and North East Somerset Council,21018045,LM8,Home Care,C03,Adult Social Services & Housing,OPTIONS FOR LIVING LTD,24/12/2010,530.82
Bath and North East Somerset Council,21018045,LM8,Home Care,C03,Adult Social Services & Housing,OPTIONS FOR LIVING LTD,24/12/2010,530.82
Bath and North East Somerset Council,21018045,LM8,Home Care,C03,Adult Social Services & Housing,OPTIONS FOR LIVING LTD,24/12/2010,530.82
Bath and North East Somerset Council,21018045,LM8,Home Care,C03,Adult Social Services & Housing,OPTIONS FOR LIVING LTD,24/12/2010,530.82
Bath and North East Somerset Council,21013955,LM8,Home Care,C03,Adult Social Services & Housing,SOMERSET CARE AT HOME LTD,13/12/2010,532
Bath and North East Somerset Council,21013955,LM8,Home Care,C03,Adult Social Services & Housing,SOMERSET CARE AT HOME LTD,13/12/2010,532
Bath and North East Somerset Council,21013955,LM8,Home Care,C03,Adult Social Services & Housing,SOMERSET CARE AT HOME LTD,13/12/2010,532
Bath and North East Somerset Council,21013955,LM8,Home Care,C03,Adult Social Services & Housing,SOMERSET CARE AT HOME LTD,13/12/2010,532
Bath and North East Somerset Council,21013946,LM8,Home Care,C03,Adult Social Services & Housing,CANDLELIGHT HOMECARE SERVICES LTD,21/12/2010,579
Bath and North East Somerset Council,21018181,LM8,Home Care,C03,Adult Social Services & Housing,AGINCARE LTD,14/12/2010,616.25
Bath and North East Somerset Council,21013947,LM8,Home Care,C03,Adult Social Services & Housing,CANDLELIGHT HOMECARE SERVICES LTD,20/12/2010,623
Bath and North East Somerset Council,21013947,LM8,Home Care,C03,Adult Social Services & Housing,CANDLELIGHT HOMECARE SERVICES LTD,20/12/2010,623
Bath and North East Somerset Council,21013947,LM8,Home Care,C03,Adult Social Services & Housing,CANDLELIGHT HOMECARE SERVICES LTD,20/12/2010,623
Bath and North East Somerset Council,21013947,LM8,Home Care,C03,Adult Social Services & Housing,CANDLELIGHT HOMECARE SERVICES LTD,20/12/2010,623
Bath and North East Somerset Council,21013946,LM8,Home Care,C03,Adult Social Services & Housing,CANDLELIGHT HOMECARE SERVICES LTD,21/12/2010,644
Bath and North East Somerset Council,21013946,LM8,Home Care,C03,Adult Social Services & Housing,CANDLELIGHT HOMECARE SERVICES LTD,21/12/2010,644
Bath and North East Somerset Council,21013946,LM8,Home Care,C03,Adult Social Services & Housing,CANDLELIGHT HOMECARE SERVICES LTD,21/12/2010,644
Bath and North East Somerset Council,21013946,LM8,Home Care,C03,Adult Social Services & Housing,CANDLELIGHT HOMECARE SERVICES LTD,21/12/2010,644
Bath and North East Somerset Council,21018040,LM8,Home Care,C03,Adult Social Services & Housing,THE CARE BUREAU,10/12/2010,680
Bath and North East Somerset Council,21018040,LM8,Home Care,C03,Adult Social Services & Housing,THE CARE BUREAU,10/12/2010,680
Bath and North East Somerset Council,21018040,LM8,Home Care,C03,Adult Social Services & Housing,THE CARE BUREAU,10/12/2010,680
Bath and North East Somerset Council,21018040,LM8,Home Care,C03,Adult Social Services & Housing,THE CARE BUREAU,10/12/2010,680
Bath and North East Somerset Council,21019158,LM8,Home Care,C03,Adult Social Services & Housing,THORNBURY NURSING SERVICES,24/12/2010,695.14
Bath and North East Somerset Council,21023689,LM8,Home Care,C03,Adult Social Services & Housing,SAFE & SOUND HOMECARE SERVICES,31/12/2010,707
Bath and North East Somerset Council,21023689,LM8,Home Care,C03,Adult Social Services & Housing,SAFE & SOUND HOMECARE SERVICES,31/12/2010,707
Bath and North East Somerset Council,21013957,LM8,Home Care,C03,Adult Social Services & Housing,ACTIVE ASSISTANCE,13/12/2010,1300
Bath and North East Somerset Council,21013958,LM8,Home Care,C03,Adult Social Services & Housing,ACTIVE ASSISTANCE,20/12/2010,1300
Bath and North East Somerset Council,21018049,LM8,Home Care,C03,Adult Social Services & Housing,ACTIVE ASSISTANCE,21/12/2010,1300
Bath and North East Somerset Council,21019159,LM8,Home Care,C03,Adult Social Services & Housing,ACTIVE ASSISTANCE,24/12/2010,1300
Bath and North East Somerset Council,21023448,LM8,Home Care,C03,Adult Social Services & Housing,ACTIVE ASSISTANCE,24/12/2010,1300
Bath and North East Somerset Council,10584091,LM8,Home Care,C03,Adult Social Services & Housing,WAY AHEAD COMMUNITY SERVICES LTD,02/12/2010,1526.28
Bath and North East Somerset Council,21009080,LM8,Home Care,C03,Adult Social Services & Housing,NURSING SOLUTIONS LIMITED,01/12/2010,1552
Bath and North East Somerset Council,21009081,LM8,Home Care,C03,Adult Social Services & Housing,NURSING SOLUTIONS LIMITED,08/12/2010,1552
Bath and North East Somerset Council,21013074,LM8,Home Care,C03,Adult Social Services & Housing,NURSING SOLUTIONS LIMITED,15/12/2010,1552
Bath and North East Somerset Council,21013949,LM8,Home Care,C03,Adult Social Services & Housing,NURSING SOLUTIONS LIMITED,21/12/2010,1552
Bath and North East Somerset Council,21018041,LM8,Home Care,C03,Adult Social Services & Housing,NURSING SOLUTIONS LIMITED,24/12/2010,1552
Bath and North East Somerset Council,21018183,LM8,Home Care,C03,Adult Social Services & Housing,CARE SOUTH,14/12/2010,2505
Bath and North East Somerset Council,21018183,LM8,Home Care,C03,Adult Social Services & Housing,CARE SOUTH,14/12/2010,2505
Bath and North East Somerset Council,21018183,LM8,Home Care,C03,Adult Social Services & Housing,CARE SOUTH,14/12/2010,2505
Bath and North East Somerset Council,21018183,LM8,Home Care,C03,Adult Social Services & Housing,CARE SOUTH,14/12/2010,2505
Bath and North East Somerset Council,21018183,LM8,Home Care,C03,Adult Social Services & Housing,CARE SOUTH,14/12/2010,2505
Bath and North East Somerset Council,21018183,LM8,Home Care,C03,Adult Social Services & Housing,CARE SOUTH,14/12/2010,2505
Bath and North East Somerset Council,21018183,LM8,Home Care,C03,Adult Social Services & Housing,CARE SOUTH,14/12/2010,2505
Bath and North East Somerset Council,21018183,LM8,Home Care,C03,Adult Social Services & Housing,CARE SOUTH,14/12/2010,2505
Bath and North East Somerset Council,21018183,LM8,Home Care,C03,Adult Social Services & Housing,CARE SOUTH,14/12/2010,2505
Bath and North East Somerset Council,21018183,LM8,Home Care,C03,Adult Social Services & Housing,CARE SOUTH,14/12/2010,2505
Bath and North East Somerset Council,21018183,LM8,Home Care,C03,Adult Social Services & Housing,CARE SOUTH,14/12/2010,2505
Bath and North East Somerset Council,21018183,LM8,Home Care,C03,Adult Social Services & Housing,CARE SOUTH,14/12/2010,2505
Bath and North East Somerset Council,21018183,LM8,Home Care,C03,Adult Social Services & Housing,CARE SOUTH,14/12/2010,2505
Bath and North East Somerset Council,10587442,LM8,Home Care,C03,Adult Social Services & Housing,I & S DUTTON LTD T/A CAREWATCH,22/12/2010,2529.4
Bath and North East Somerset Council,10584093,LM8,Home Care,C03,Adult Social Services & Housing,I & S DUTTON LTD T/A CAREWATCH,02/12/2010,2944.05
Bath and North East Somerset Council,21018179,LM8,Home Care,C03,Adult Social Services & Housing,SOMERSET CARE AT HOME,14/12/2010,3142
Bath and North East Somerset Council,21018179,LM8,Home Care,C03,Adult Social Services & Housing,SOMERSET CARE AT HOME,14/12/2010,3142
Bath and North East Somerset Council,21018179,LM8,Home Care,C03,Adult Social Services & Housing,SOMERSET CARE AT HOME,14/12/2010,3142
Bath and North East Somerset Council,21018179,LM8,Home Care,C03,Adult Social Services & Housing,SOMERSET CARE AT HOME,14/12/2010,3142
Bath and North East Somerset Council,21018179,LM8,Home Care,C03,Adult Social Services & Housing,SOMERSET CARE AT HOME,14/12/2010,3142
Bath and North East Somerset Council,21018179,LM8,Home Care,C03,Adult Social Services & Housing,SOMERSET CARE AT HOME,14/12/2010,3142
Bath and North East Somerset Council,21018179,LM8,Home Care,C03,Adult Social Services & Housing,SOMERSET CARE AT HOME,14/12/2010,3142
Bath and North East Somerset Council,21018179,LM8,Home Care,C03,Adult Social Services & Housing,SOMERSET CARE AT HOME,14/12/2010,3142
Bath and North East Somerset Council,21018179,LM8,Home Care,C03,Adult Social Services & Housing,SOMERSET CARE AT HOME,14/12/2010,3142
Bath and North East Somerset Council,21018179,LM8,Home Care,C03,Adult Social Services & Housing,SOMERSET CARE AT HOME,14/12/2010,3142
Bath and North East Somerset Council,21018179,LM8,Home Care,C03,Adult Social Services & Housing,SOMERSET CARE AT HOME,14/12/2010,3142
Bath and North East Somerset Council,21018179,LM8,Home Care,C03,Adult Social Services & Housing,SOMERSET CARE AT HOME,14/12/2010,3142
Bath and North East Somerset Council,21018179,LM8,Home Care,C03,Adult Social Services & Housing,SOMERSET CARE AT HOME,14/12/2010,3142
Bath and North East Somerset Council,10584091,LM8,Home Care,C03,Adult Social Services & Housing,WAY AHEAD COMMUNITY SERVICES LTD,02/12/2010,3259.94
Bath and North East Somerset Council,21018182,LM8,Home Care,C03,Adult Social Services & Housing,WAY AHEAD COMMUNITY SERVICES LTD,14/12/2010,3318
Bath and North East Somerset Council,21018182,LM8,Home Care,C03,Adult Social Services & Housing,WAY AHEAD COMMUNITY SERVICES LTD,14/12/2010,3318
Bath and North East Somerset Council,21018182,LM8,Home Care,C03,Adult Social Services & Housing,WAY AHEAD COMMUNITY SERVICES LTD,14/12/2010,3318
Bath and North East Somerset Council,21018182,LM8,Home Care,C03,Adult Social Services & Housing,WAY AHEAD COMMUNITY SERVICES LTD,14/12/2010,3318
Bath and North East Somerset Council,21018182,LM8,Home Care,C03,Adult Social Services & Housing,WAY AHEAD COMMUNITY SERVICES LTD,14/12/2010,3318
Bath and North East Somerset Council,21018182,LM8,Home Care,C03,Adult Social Services & Housing,WAY AHEAD COMMUNITY SERVICES LTD,14/12/2010,3318
Bath and North East Somerset Council,21018182,LM8,Home Care,C03,Adult Social Services & Housing,WAY AHEAD COMMUNITY SERVICES LTD,14/12/2010,3318
Bath and North East Somerset Council,21018182,LM8,Home Care,C03,Adult Social Services & Housing,WAY AHEAD COMMUNITY SERVICES LTD,14/12/2010,3318
Bath and North East Somerset Council,21018182,LM8,Home Care,C03,Adult Social Services & Housing,WAY AHEAD COMMUNITY SERVICES LTD,14/12/2010,3318
Bath and North East Somerset Council,21018182,LM8,Home Care,C03,Adult Social Services & Housing,WAY AHEAD COMMUNITY SERVICES LTD,14/12/2010,3318
Bath and North East Somerset Council,21018182,LM8,Home Care,C03,Adult Social Services & Housing,WAY AHEAD COMMUNITY SERVICES LTD,14/12/2010,3318
Bath and North East Somerset Council,21018182,LM8,Home Care,C03,Adult Social Services & Housing,WAY AHEAD COMMUNITY SERVICES LTD,14/12/2010,3318
Bath and North East Somerset Council,21018182,LM8,Home Care,C03,Adult Social Services & Housing,WAY AHEAD COMMUNITY SERVICES LTD,14/12/2010,3318
Bath and North East Somerset Council,21018178,LM8,Home Care,C03,Adult Social Services & Housing,I & S DUTTON LTD T/A CAREWATCH,14/12/2010,3340
Bath and North East Somerset Council,21018178,LM8,Home Care,C03,Adult Social Services & Housing,I & S DUTTON LTD T/A CAREWATCH,14/12/2010,3340
Bath and North East Somerset Council,21018178,LM8,Home Care,C03,Adult Social Services & Housing,I & S DUTTON LTD T/A CAREWATCH,14/12/2010,3340
Bath and North East Somerset Council,21018178,LM8,Home Care,C03,Adult Social Services & Housing,I & S DUTTON LTD T/A CAREWATCH,14/12/2010,3340
Bath and North East Somerset Council,21018178,LM8,Home Care,C03,Adult Social Services & Housing,I & S DUTTON LTD T/A CAREWATCH,14/12/2010,3340
Bath and North East Somerset Council,21018178,LM8,Home Care,C03,Adult Social Services & Housing,I & S DUTTON LTD T/A CAREWATCH,14/12/2010,3340
Bath and North East Somerset Council,21018178,LM8,Home Care,C03,Adult Social Services & Housing,I & S DUTTON LTD T/A CAREWATCH,14/12/2010,3340
Bath and North East Somerset Council,21018178,LM8,Home Care,C03,Adult Social Services & Housing,I & S DUTTON LTD T/A CAREWATCH,14/12/2010,3340
Bath and North East Somerset Council,21018178,LM8,Home Care,C03,Adult Social Services & Housing,I & S DUTTON LTD T/A CAREWATCH,14/12/2010,3340
Bath and North East Somerset Council,21018178,LM8,Home Care,C03,Adult Social Services & Housing,I & S DUTTON LTD T/A CAREWATCH,14/12/2010,3340
Bath and North East Somerset Council,21018178,LM8,Home Care,C03,Adult Social Services & Housing,I & S DUTTON LTD T/A CAREWATCH,14/12/2010,3340
Bath and North East Somerset Council,21018178,LM8,Home Care,C03,Adult Social Services & Housing,I & S DUTTON LTD T/A CAREWATCH,14/12/2010,3340
Bath and North East Somerset Council,21018178,LM8,Home Care,C03,Adult Social Services & Housing,I & S DUTTON LTD T/A CAREWATCH,14/12/2010,3340
Bath and North East Somerset Council,10582754,LM8,Home Care,C03,Adult Social Services & Housing,CARE SOUTH,02/12/2010,4010
Bath and North East Somerset Council,10584092,LM8,Home Care,C03,Adult Social Services & Housing,KUMARI HOMECARE SERVICE,02/12/2010,4051.02
Bath and North East Somerset Council,10584091,LM8,Home Care,C03,Adult Social Services & Housing,WAY AHEAD COMMUNITY SERVICES LTD,02/12/2010,4064.55
Bath and North East Somerset Council,10586162,LM8,Home Care,C03,Adult Social Services & Housing,CARE SOUTH,14/12/2010,4190
Bath and North East Somerset Council,10587444,LM8,Home Care,C03,Adult Social Services & Housing,KUMARI HOMECARE SERVICE,22/12/2010,4266.14
Bath and North East Somerset Council,10586161,LM8,Home Care,C03,Adult Social Services & Housing,CARE SOUTH,14/12/2010,5080
Bath and North East Somerset Council,21018181,LM8,Home Care,C03,Adult Social Services & Housing,AGINCARE LTD,14/12/2010,5704
Bath and North East Somerset Council,21018181,LM8,Home Care,C03,Adult Social Services & Housing,AGINCARE LTD,14/12/2010,5704
Bath and North East Somerset Council,21018181,LM8,Home Care,C03,Adult Social Services & Housing,AGINCARE LTD,14/12/2010,5704
Bath and North East Somerset Council,21018181,LM8,Home Care,C03,Adult Social Services & Housing,AGINCARE LTD,14/12/2010,5704
Bath and North East Somerset Council,21018181,LM8,Home Care,C03,Adult Social Services & Housing,AGINCARE LTD,14/12/2010,5704
Bath and North East Somerset Council,21018181,LM8,Home Care,C03,Adult Social Services & Housing,AGINCARE LTD,14/12/2010,5704
Bath and North East Somerset Council,21018181,LM8,Home Care,C03,Adult Social Services & Housing,AGINCARE LTD,14/12/2010,5704
Bath and North East Somerset Council,21018181,LM8,Home Care,C03,Adult Social Services & Housing,AGINCARE LTD,14/12/2010,5704
Bath and North East Somerset Council,21018181,LM8,Home Care,C03,Adult Social Services & Housing,AGINCARE LTD,14/12/2010,5704
Bath and North East Somerset Council,21018181,LM8,Home Care,C03,Adult Social Services & Housing,AGINCARE LTD,14/12/2010,5704
Bath and North East Somerset Council,21018181,LM8,Home Care,C03,Adult Social Services & Housing,AGINCARE LTD,14/12/2010,5704
Bath and North East Somerset Council,21018181,LM8,Home Care,C03,Adult Social Services & Housing,AGINCARE LTD,14/12/2010,5704
Bath and North East Somerset Council,21018181,LM8,Home Care,C03,Adult Social Services & Housing,AGINCARE LTD,14/12/2010,5704
Bath and North East Somerset Council,21018177,LM8,Home Care,C03,Adult Social Services & Housing,I & S DUTTON LTD T/A CAREWATCH,14/12/2010,5845
Bath and North East Somerset Council,21018177,LM8,Home Care,C03,Adult Social Services & Housing,I & S DUTTON LTD T/A CAREWATCH,14/12/2010,5845
Bath and North East Somerset Council,21018177,LM8,Home Care,C03,Adult Social Services & Housing,I & S DUTTON LTD T/A CAREWATCH,14/12/2010,5845
Bath and North East Somerset Council,21018177,LM8,Home Care,C03,Adult Social Services & Housing,I & S DUTTON LTD T/A CAREWATCH,14/12/2010,5845
Bath and North East Somerset Council,21018177,LM8,Home Care,C03,Adult Social Services & Housing,I & S DUTTON LTD T/A CAREWATCH,14/12/2010,5845
Bath and North East Somerset Council,21018177,LM8,Home Care,C03,Adult Social Services & Housing,I & S DUTTON LTD T/A CAREWATCH,14/12/2010,5845
Bath and North East Somerset Council,21018177,LM8,Home Care,C03,Adult Social Services & Housing,I & S DUTTON LTD T/A CAREWATCH,14/12/2010,5845
Bath and North East Somerset Council,21018177,LM8,Home Care,C03,Adult Social Services & Housing,I & S DUTTON LTD T/A CAREWATCH,14/12/2010,5845
Bath and North East Somerset Council,21018177,LM8,Home Care,C03,Adult Social Services & Housing,I & S DUTTON LTD T/A CAREWATCH,14/12/2010,5845
Bath and North East Somerset Council,21018177,LM8,Home Care,C03,Adult Social Services & Housing,I & S DUTTON LTD T/A CAREWATCH,14/12/2010,5845
Bath and North East Somerset Council,21018177,LM8,Home Care,C03,Adult Social Services & Housing,I & S DUTTON LTD T/A CAREWATCH,14/12/2010,5845
Bath and North East Somerset Council,21018177,LM8,Home Care,C03,Adult Social Services & Housing,I & S DUTTON LTD T/A CAREWATCH,14/12/2010,5845
Bath and North East Somerset Council,21018177,LM8,Home Care,C03,Adult Social Services & Housing,I & S DUTTON LTD T/A CAREWATCH,14/12/2010,5845
Bath and North East Somerset Council,21018183,LM8,Home Care,C03,Adult Social Services & Housing,CARE SOUTH,14/12/2010,5886.75
Bath and North East Somerset Council,21018183,LM8,Home Care,C03,Adult Social Services & Housing,CARE SOUTH,14/12/2010,5886.75
Bath and North East Somerset Council,21018183,LM8,Home Care,C03,Adult Social Services & Housing,CARE SOUTH,14/12/2010,5886.75
Bath and North East Somerset Council,21018183,LM8,Home Care,C03,Adult Social Services & Housing,CARE SOUTH,14/12/2010,5886.75
Bath and North East Somerset Council,21018183,LM8,Home Care,C03,Adult Social Services & Housing,CARE SOUTH,14/12/2010,5886.75
Bath and North East Somerset Council,21018183,LM8,Home Care,C03,Adult Social Services & Housing,CARE SOUTH,14/12/2010,5886.75
Bath and North East Somerset Council,21018183,LM8,Home Care,C03,Adult Social Services & Housing,CARE SOUTH,14/12/2010,5886.75
Bath and North East Somerset Council,21018183,LM8,Home Care,C03,Adult Social Services & Housing,CARE SOUTH,14/12/2010,5886.75
Bath and North East Somerset Council,21018183,LM8,Home Care,C03,Adult Social Services & Housing,CARE SOUTH,14/12/2010,5886.75
Bath and North East Somerset Council,21018183,LM8,Home Care,C03,Adult Social Services & Housing,CARE SOUTH,14/12/2010,5886.75
Bath and North East Somerset Council,21018183,LM8,Home Care,C03,Adult Social Services & Housing,CARE SOUTH,14/12/2010,5886.75
Bath and North East Somerset Council,21018183,LM8,Home Care,C03,Adult Social Services & Housing,CARE SOUTH,14/12/2010,5886.75
Bath and North East Somerset Council,21018183,LM8,Home Care,C03,Adult Social Services & Housing,CARE SOUTH,14/12/2010,5886.75
Bath and North East Somerset Council,21018182,LM8,Home Care,C03,Adult Social Services & Housing,WAY AHEAD COMMUNITY SERVICES LTD,14/12/2010,6669.18
Bath and North East Somerset Council,21018182,LM8,Home Care,C03,Adult Social Services & Housing,WAY AHEAD COMMUNITY SERVICES LTD,14/12/2010,6669.18
Bath and North East Somerset Council,21018182,LM8,Home Care,C03,Adult Social Services & Housing,WAY AHEAD COMMUNITY SERVICES LTD,14/12/2010,6669.18
Bath and North East Somerset Council,21018182,LM8,Home Care,C03,Adult Social Services & Housing,WAY AHEAD COMMUNITY SERVICES LTD,14/12/2010,6669.18
Bath and North East Somerset Council,21018182,LM8,Home Care,C03,Adult Social Services & Housing,WAY AHEAD COMMUNITY SERVICES LTD,14/12/2010,6669.18
Bath and North East Somerset Council,21018182,LM8,Home Care,C03,Adult Social Services & Housing,WAY AHEAD COMMUNITY SERVICES LTD,14/12/2010,6669.18
Bath and North East Somerset Council,21018182,LM8,Home Care,C03,Adult Social Services & Housing,WAY AHEAD COMMUNITY SERVICES LTD,14/12/2010,6669.18
Bath and North East Somerset Council,21018182,LM8,Home Care,C03,Adult Social Services & Housing,WAY AHEAD COMMUNITY SERVICES LTD,14/12/2010,6669.18
Bath and North East Somerset Council,21018182,LM8,Home Care,C03,Adult Social Services & Housing,WAY AHEAD COMMUNITY SERVICES LTD,14/12/2010,6669.18
Bath and North East Somerset Council,21018182,LM8,Home Care,C03,Adult Social Services & Housing,WAY AHEAD COMMUNITY SERVICES LTD,14/12/2010,6669.18
Bath and North East Somerset Council,21018182,LM8,Home Care,C03,Adult Social Services & Housing,WAY AHEAD COMMUNITY SERVICES LTD,14/12/2010,6669.18
Bath and North East Somerset Council,21018182,LM8,Home Care,C03,Adult Social Services & Housing,WAY AHEAD COMMUNITY SERVICES LTD,14/12/2010,6669.18
Bath and North East Somerset Council,21018182,LM8,Home Care,C03,Adult Social Services & Housing,WAY AHEAD COMMUNITY SERVICES LTD,14/12/2010,6669.18
Bath and North East Somerset Council,21018183,LM8,Home Care,C03,Adult Social Services & Housing,CARE SOUTH,14/12/2010,6750.98
Bath and North East Somerset Council,21018183,LM8,Home Care,C03,Adult Social Services & Housing,CARE SOUTH,14/12/2010,6750.98
Bath and North East Somerset Council,21018183,LM8,Home Care,C03,Adult Social Services & Housing,CARE SOUTH,14/12/2010,6750.98
Bath and North East Somerset Council,21018183,LM8,Home Care,C03,Adult Social Services & Housing,CARE SOUTH,14/12/2010,6750.98
Bath and North East Somerset Council,21018183,LM8,Home Care,C03,Adult Social Services & Housing,CARE SOUTH,14/12/2010,6750.98
Bath and North East Somerset Council,21018183,LM8,Home Care,C03,Adult Social Services & Housing,CARE SOUTH,14/12/2010,6750.98
Bath and North East Somerset Council,21018183,LM8,Home Care,C03,Adult Social Services & Housing,CARE SOUTH,14/12/2010,6750.98
Bath and North East Somerset Council,21018183,LM8,Home Care,C03,Adult Social Services & Housing,CARE SOUTH,14/12/2010,6750.98
Bath and North East Somerset Council,21018183,LM8,Home Care,C03,Adult Social Services & Housing,CARE SOUTH,14/12/2010,6750.98
Bath and North East Somerset Council,21018183,LM8,Home Care,C03,Adult Social Services & Housing,CARE SOUTH,14/12/2010,6750.98
Bath and North East Somerset Council,21018183,LM8,Home Care,C03,Adult Social Services & Housing,CARE SOUTH,14/12/2010,6750.98
Bath and North East Somerset Council,21018183,LM8,Home Care,C03,Adult Social Services & Housing,CARE SOUTH,14/12/2010,6750.98
Bath and North East Somerset Council,21018183,LM8,Home Care,C03,Adult Social Services & Housing,CARE SOUTH,14/12/2010,6750.98
Bath and North East Somerset Council,21018181,LM8,Home Care,C03,Adult Social Services & Housing,AGINCARE LTD,14/12/2010,7195
Bath and North East Somerset Council,21018181,LM8,Home Care,C03,Adult Social Services & Housing,AGINCARE LTD,14/12/2010,7195
Bath and North East Somerset Council,21018181,LM8,Home Care,C03,Adult Social Services & Housing,AGINCARE LTD,14/12/2010,7195
Bath and North East Somerset Council,21018181,LM8,Home Care,C03,Adult Social Services & Housing,AGINCARE LTD,14/12/2010,7195
Bath and North East Somerset Council,21018181,LM8,Home Care,C03,Adult Social Services & Housing,AGINCARE LTD,14/12/2010,7195
Bath and North East Somerset Council,21018181,LM8,Home Care,C03,Adult Social Services & Housing,AGINCARE LTD,14/12/2010,7195
Bath and North East Somerset Council,21018181,LM8,Home Care,C03,Adult Social Services & Housing,AGINCARE LTD,14/12/2010,7195
Bath and North East Somerset Council,21018181,LM8,Home Care,C03,Adult Social Services & Housing,AGINCARE LTD,14/12/2010,7195
Bath and North East Somerset Council,21018181,LM8,Home Care,C03,Adult Social Services & Housing,AGINCARE LTD,14/12/2010,7195
Bath and North East Somerset Council,21018181,LM8,Home Care,C03,Adult Social Services & Housing,AGINCARE LTD,14/12/2010,7195
Bath and North East Somerset Council,21018181,LM8,Home Care,C03,Adult Social Services & Housing,AGINCARE LTD,14/12/2010,7195
Bath and North East Somerset Council,21018181,LM8,Home Care,C03,Adult Social Services & Housing,AGINCARE LTD,14/12/2010,7195
Bath and North East Somerset Council,21018181,LM8,Home Care,C03,Adult Social Services & Housing,AGINCARE LTD,14/12/2010,7195
Bath and North East Somerset Council,21018179,LM8,Home Care,C03,Adult Social Services & Housing,SOMERSET CARE AT HOME,14/12/2010,7383.7
Bath and North East Somerset Council,21018179,LM8,Home Care,C03,Adult Social Services & Housing,SOMERSET CARE AT HOME,14/12/2010,7383.7
Bath and North East Somerset Council,21018179,LM8,Home Care,C03,Adult Social Services & Housing,SOMERSET CARE AT HOME,14/12/2010,7383.7
Bath and North East Somerset Council,21018179,LM8,Home Care,C03,Adult Social Services & Housing,SOMERSET CARE AT HOME,14/12/2010,7383.7
Bath and North East Somerset Council,21018179,LM8,Home Care,C03,Adult Social Services & Housing,SOMERSET CARE AT HOME,14/12/2010,7383.7
Bath and North East Somerset Council,21018179,LM8,Home Care,C03,Adult Social Services & Housing,SOMERSET CARE AT HOME,14/12/2010,7383.7
Bath and North East Somerset Council,21018179,LM8,Home Care,C03,Adult Social Services & Housing,SOMERSET CARE AT HOME,14/12/2010,7383.7
Bath and North East Somerset Council,21018179,LM8,Home Care,C03,Adult Social Services & Housing,SOMERSET CARE AT HOME,14/12/2010,7383.7
Bath and North East Somerset Council,21018179,LM8,Home Care,C03,Adult Social Services & Housing,SOMERSET CARE AT HOME,14/12/2010,7383.7
Bath and North East Somerset Council,21018179,LM8,Home Care,C03,Adult Social Services & Housing,SOMERSET CARE AT HOME,14/12/2010,7383.7
Bath and North East Somerset Council,21018179,LM8,Home Care,C03,Adult Social Services & Housing,SOMERSET CARE AT HOME,14/12/2010,7383.7
Bath and North East Somerset Council,21018179,LM8,Home Care,C03,Adult Social Services & Housing,SOMERSET CARE AT HOME,14/12/2010,7383.7
Bath and North East Somerset Council,21018179,LM8,Home Care,C03,Adult Social Services & Housing,SOMERSET CARE AT HOME,14/12/2010,7383.7
Bath and North East Somerset Council,21018182,LM8,Home Care,C03,Adult Social Services & Housing,WAY AHEAD COMMUNITY SERVICES LTD,14/12/2010,8610.21
Bath and North East Somerset Council,21018182,LM8,Home Care,C03,Adult Social Services & Housing,WAY AHEAD COMMUNITY SERVICES LTD,14/12/2010,8610.21
Bath and North East Somerset Council,21018182,LM8,Home Care,C03,Adult Social Services & Housing,WAY AHEAD COMMUNITY SERVICES LTD,14/12/2010,8610.21
Bath and North East Somerset Council,21018182,LM8,Home Care,C03,Adult Social Services & Housing,WAY AHEAD COMMUNITY SERVICES LTD,14/12/2010,8610.21
Bath and North East Somerset Council,21018182,LM8,Home Care,C03,Adult Social Services & Housing,WAY AHEAD COMMUNITY SERVICES LTD,14/12/2010,8610.21
Bath and North East Somerset Council,21018182,LM8,Home Care,C03,Adult Social Services & Housing,WAY AHEAD COMMUNITY SERVICES LTD,14/12/2010,8610.21
Bath and North East Somerset Council,21018182,LM8,Home Care,C03,Adult Social Services & Housing,WAY AHEAD COMMUNITY SERVICES LTD,14/12/2010,8610.21
Bath and North East Somerset Council,21018182,LM8,Home Care,C03,Adult Social Services & Housing,WAY AHEAD COMMUNITY SERVICES LTD,14/12/2010,8610.21
Bath and North East Somerset Council,21018182,LM8,Home Care,C03,Adult Social Services & Housing,WAY AHEAD COMMUNITY SERVICES LTD,14/12/2010,8610.21
Bath and North East Somerset Council,21018182,LM8,Home Care,C03,Adult Social Services & Housing,WAY AHEAD COMMUNITY SERVICES LTD,14/12/2010,8610.21
Bath and North East Somerset Council,21018182,LM8,Home Care,C03,Adult Social Services & Housing,WAY AHEAD COMMUNITY SERVICES LTD,14/12/2010,8610.21
Bath and North East Somerset Council,21018182,LM8,Home Care,C03,Adult Social Services & Housing,WAY AHEAD COMMUNITY SERVICES LTD,14/12/2010,8610.21
Bath and North East Somerset Council,21018182,LM8,Home Care,C03,Adult Social Services & Housing,WAY AHEAD COMMUNITY SERVICES LTD,14/12/2010,8610.21
Bath and North East Somerset Council,21018178,LM8,Home Care,C03,Adult Social Services & Housing,I & S DUTTON LTD T/A CAREWATCH,14/12/2010,8667.3
Bath and North East Somerset Council,21018178,LM8,Home Care,C03,Adult Social Services & Housing,I & S DUTTON LTD T/A CAREWATCH,14/12/2010,8667.3
Bath and North East Somerset Council,21018178,LM8,Home Care,C03,Adult Social Services & Housing,I & S DUTTON LTD T/A CAREWATCH,14/12/2010,8667.3
Bath and North East Somerset Council,21018178,LM8,Home Care,C03,Adult Social Services & Housing,I & S DUTTON LTD T/A CAREWATCH,14/12/2010,8667.3
Bath and North East Somerset Council,21018178,LM8,Home Care,C03,Adult Social Services & Housing,I & S DUTTON LTD T/A CAREWATCH,14/12/2010,8667.3
Bath and North East Somerset Council,21018178,LM8,Home Care,C03,Adult Social Services & Housing,I & S DUTTON LTD T/A CAREWATCH,14/12/2010,8667.3
Bath and North East Somerset Council,21018178,LM8,Home Care,C03,Adult Social Services & Housing,I & S DUTTON LTD T/A CAREWATCH,14/12/2010,8667.3
Bath and North East Somerset Council,21018178,LM8,Home Care,C03,Adult Social Services & Housing,I & S DUTTON LTD T/A CAREWATCH,14/12/2010,8667.3
Bath and North East Somerset Council,21018178,LM8,Home Care,C03,Adult Social Services & Housing,I & S DUTTON LTD T/A CAREWATCH,14/12/2010,8667.3
Bath and North East Somerset Council,21018178,LM8,Home Care,C03,Adult Social Services & Housing,I & S DUTTON LTD T/A CAREWATCH,14/12/2010,8667.3
Bath and North East Somerset Council,21018178,LM8,Home Care,C03,Adult Social Services & Housing,I & S DUTTON LTD T/A CAREWATCH,14/12/2010,8667.3
Bath and North East Somerset Council,21018178,LM8,Home Care,C03,Adult Social Services & Housing,I & S DUTTON LTD T/A CAREWATCH,14/12/2010,8667.3
Bath and North East Somerset Council,21018178,LM8,Home Care,C03,Adult Social Services & Housing,I & S DUTTON LTD T/A CAREWATCH,14/12/2010,8667.3
Bath and North East Somerset Council,21018179,LM8,Home Care,C03,Adult Social Services & Housing,SOMERSET CARE AT HOME,14/12/2010,9635.17
Bath and North East Somerset Council,21018181,LM8,Home Care,C03,Adult Social Services & Housing,AGINCARE LTD,14/12/2010,10599
Bath and North East Somerset Council,21018181,LM8,Home Care,C03,Adult Social Services & Housing,AGINCARE LTD,14/12/2010,10599
Bath and North East Somerset Council,21018181,LM8,Home Care,C03,Adult Social Services & Housing,AGINCARE LTD,14/12/2010,10599
Bath and North East Somerset Council,21018181,LM8,Home Care,C03,Adult Social Services & Housing,AGINCARE LTD,14/12/2010,10599
Bath and North East Somerset Council,21018181,LM8,Home Care,C03,Adult Social Services & Housing,AGINCARE LTD,14/12/2010,10599
Bath and North East Somerset Council,21018181,LM8,Home Care,C03,Adult Social Services & Housing,AGINCARE LTD,14/12/2010,10599
Bath and North East Somerset Council,21018181,LM8,Home Care,C03,Adult Social Services & Housing,AGINCARE LTD,14/12/2010,10599
Bath and North East Somerset Council,21018181,LM8,Home Care,C03,Adult Social Services & Housing,AGINCARE LTD,14/12/2010,10599
Bath and North East Somerset Council,21018181,LM8,Home Care,C03,Adult Social Services & Housing,AGINCARE LTD,14/12/2010,10599
Bath and North East Somerset Council,21018181,LM8,Home Care,C03,Adult Social Services & Housing,AGINCARE LTD,14/12/2010,10599
Bath and North East Somerset Council,21018181,LM8,Home Care,C03,Adult Social Services & Housing,AGINCARE LTD,14/12/2010,10599
Bath and North East Somerset Council,21018181,LM8,Home Care,C03,Adult Social Services & Housing,AGINCARE LTD,14/12/2010,10599
Bath and North East Somerset Council,21018181,LM8,Home Care,C03,Adult Social Services & Housing,AGINCARE LTD,14/12/2010,10599
Bath and North East Somerset Council,21018181,LM8,Home Care,C03,Adult Social Services & Housing,AGINCARE LTD,14/12/2010,10912
Bath and North East Somerset Council,21018181,LM8,Home Care,C03,Adult Social Services & Housing,AGINCARE LTD,14/12/2010,10912
Bath and North East Somerset Council,21018181,LM8,Home Care,C03,Adult Social Services & Housing,AGINCARE LTD,14/12/2010,10912
Bath and North East Somerset Council,21018181,LM8,Home Care,C03,Adult Social Services & Housing,AGINCARE LTD,14/12/2010,10912
Bath and North East Somerset Council,21018181,LM8,Home Care,C03,Adult Social Services & Housing,AGINCARE LTD,14/12/2010,10912
Bath and North East Somerset Council,21018181,LM8,Home Care,C03,Adult Social Services & Housing,AGINCARE LTD,14/12/2010,10912
Bath and North East Somerset Council,21018181,LM8,Home Care,C03,Adult Social Services & Housing,AGINCARE LTD,14/12/2010,10912
Bath and North East Somerset Council,21018181,LM8,Home Care,C03,Adult Social Services & Housing,AGINCARE LTD,14/12/2010,10912
Bath and North East Somerset Council,21018181,LM8,Home Care,C03,Adult Social Services & Housing,AGINCARE LTD,14/12/2010,10912
Bath and North East Somerset Council,21018181,LM8,Home Care,C03,Adult Social Services & Housing,AGINCARE LTD,14/12/2010,10912
Bath and North East Somerset Council,21018181,LM8,Home Care,C03,Adult Social Services & Housing,AGINCARE LTD,14/12/2010,10912
Bath and North East Somerset Council,21018181,LM8,Home Care,C03,Adult Social Services & Housing,AGINCARE LTD,14/12/2010,10912
Bath and North East Somerset Council,21018181,LM8,Home Care,C03,Adult Social Services & Housing,AGINCARE LTD,14/12/2010,10912
Bath and North East Somerset Council,10584093,LM8,Home Care,C03,Adult Social Services & Housing,I & S DUTTON LTD T/A CAREWATCH,02/12/2010,13586.6
Bath and North East Somerset Council,10587442,LM8,Home Care,C03,Adult Social Services & Housing,I & S DUTTON LTD T/A CAREWATCH,22/12/2010,18553.35
Bath and North East Somerset Council,21018178,LM8,Home Care,C03,Adult Social Services & Housing,I & S DUTTON LTD T/A CAREWATCH,14/12/2010,20211.04
Bath and North East Somerset Council,10584092,LM8,Home Care,C03,Adult Social Services & Housing,KUMARI HOMECARE SERVICE,02/12/2010,24319.94
Bath and North East Somerset Council,10587444,LM8,Home Care,C03,Adult Social Services & Housing,KUMARI HOMECARE SERVICE,22/12/2010,24553.7
Bath and North East Somerset Council,10587646,LM8,Home Care,C03,Adult Social Services & Housing,PRESTIGE NURSING HEALTHCARE,22/12/2010,1123
Bath and North East Somerset Council,10584712,LM8,Home Care,C03,Adult Social Services & Housing,PRESTIGE NURSING HEALTHCARE,07/12/2010,1128
Bath and North East Somerset Council,10584720,LM8,Home Care,C03,Adult Social Services & Housing,CEDAR CARE HOMES LTD,24/12/2010,1190
Bath and North East Somerset Council,10585582,LM8,Home Care,C03,Adult Social Services & Housing,PRESTIGE NURSING HEALTHCARE,22/12/2010,1316.13
Bath and North East Somerset Council,10584719,LM8,Home Care,C03,Adult Social Services & Housing,CEDAR CARE HOMES LTD,24/12/2010,1820
Bath and North East Somerset Council,10584722,LM8,Home Care,C03,Adult Social Services & Housing,CEDAR CARE HOMES LTD,24/12/2010,1820
Bath and North East Somerset Council,10584721,LM8,Home Care,C03,Adult Social Services & Housing,CEDAR CARE HOMES LTD,07/12/2010,2450
Bath and North East Somerset Council,10587647,LM8,Home Care,C03,Adult Social Services & Housing,PRESTIGE NURSING HEALTHCARE,22/12/2010,2462.96
Bath and North East Somerset Council,10587648,LM8,Home Care,C03,Adult Social Services & Housing,PRESTIGE NURSING HEALTHCARE,22/12/2010,2464.16
Bath and North East Somerset Council,10584098,LM8,Home Care,C03,Adult Social Services & Housing,PRESTIGE NURSING HEALTHCARE,02/12/2010,2464.48
Bath and North East Somerset Council,10584713,LM8,Home Care,C03,Adult Social Services & Housing,PRESTIGE NURSING HEALTHCARE,07/12/2010,2471.76
Bath and North East Somerset Council,10584715,LM8,Home Care,C03,Adult Social Services & Housing,COMPLETE CARE HOLDINGS LIMITED,07/12/2010,23491.84
Bath and North East Somerset Council,10586500,LT2,Hospitality,C06,Service Delivery,THE BATH DELI,15/12/2010,450
Bath and North East Somerset Council,10586088,LT2,Hospitality,C05,Children's Services,BEST PRACTICE NETWORK,24/12/2010,496.9
Bath and North East Somerset Council,10587074,HE6,Improvements,C06,Service Delivery,TPM (SOUTH WEST) LTD,17/12/2010,1850
Bath and North East Somerset Council,10587941,HE6,Improvements,C06,Service Delivery,L D CUNDICK T/A CUNDICK TRANSPORT,21/12/2010,570
Bath and North East Somerset Council,10586952,LL8,Individualised Budget,C03,Adult Social Services & Housing,SHAW TRUST LTD,24/12/2010,95
Bath and North East Somerset Council,21014313,LL8,Individualised Budget,C03,Adult Social Services & Housing,REDACTED,06/12/2010,101.57
Bath and North East Somerset Council,21014313,LL8,Individualised Budget,C03,Adult Social Services & Housing,REDACTED,06/12/2010,101.57
Bath and North East Somerset Council,10586952,LL8,Individualised Budget,C03,Adult Social Services & Housing,SHAW TRUST LTD,24/12/2010,120
Bath and North East Somerset Council,10586952,LL8,Individualised Budget,C03,Adult Social Services & Housing,SHAW TRUST LTD,24/12/2010,147
Bath and North East Somerset Council,21014320,LL8,Individualised Budget,C03,Adult Social Services & Housing,REDACTED,06/12/2010,172.87
